Service Area,Service Division,Expense Type,Expense Code,Detailed Expense Type,Payment Date,Transaction Number,Amount Exc Vat,Supplier Name
Adults Wellbeing and Health,AWH Redundant Cost Centres,Supplies and Services,338089,Services,22-Jul-13,2622529-15467,"1,045.02",RECONSTRUCT LTD.
Adults Wellbeing and Health,AWH Redundant Cost Centres,Supplies and Services,338091,Services,29-Jul-13,2625427,"1,080.00",UNIVERSITY OF TEESSIDE.
Adults Wellbeing and Health,AWH Redundant Cost Centres,Third Party Payments,425040,Rendered by Voluntary Organisations,01-Jul-13,2612667-FC012493,700,FOSTER CARES LTD.
Adults Wellbeing and Health,Commissioning inc Supporting People,Premises,145050,Cleaning and Domestic Supplies,29-Jul-13,2624927-25174,"32,537.70",ANLABY OFFICE CLEANING SERVICES LTD.
Adults Wellbeing and Health,Commissioning inc Supporting People,Supplies and Services,338099,Services,01-Jul-13,2612910-GRI,"1,000.00",RICHMOND COURT.
Adults Wellbeing and Health,Commissioning inc Supporting People,Supplies and Services,338099,Services,01-Jul-13,2613021-RP041450,"2,100.00",UNIVERSITY OF ST ANDREWS.
Adults Wellbeing and Health,Commissioning inc Supporting People,Supplies and Services,338099,Services,04-Jul-13,2614568-GRI,"1,000.00",RICHMOND COURT.
Adults Wellbeing and Health,Commissioning inc Supporting People,Supplies and Services,338099,Services,24-Jul-13,2623637-229225,"1,299.40",ALLPAY.NET LTD.
Adults Wellbeing and Health,Commissioning inc Supporting People,Third Party Payments,479111,Purchase of Care,02-Jul-13,2613720-97,"11,052.25",DURHAM COUNTY CARERS SUPPORT.
Adults Wellbeing and Health,Commissioning inc Supporting People,Third Party Payments,479111,Purchase of Care,02-Jul-13,2613720-98,"11,052.25",DURHAM COUNTY CARERS SUPPORT.
Adults Wellbeing and Health,Commissioning inc Supporting People,Third Party Payments,479111,Purchase of Care,02-Jul-13,2613720-99,"198,118.55",DURHAM COUNTY CARERS SUPPORT.
Adults Wellbeing and Health,Commissioning inc Supporting People,Third Party Payments,479111,Purchase of Care,05-Jul-13,2615137-1576,"3,958.30",SKILLS FOR PEOPLE.
Adults Wellbeing and Health,Commissioning inc Supporting People,Third Party Payments,470111,Purchase of Care,05-Jul-13,2614972-RINVTP,"3,916.67",LEONARD CHESHIRE DISABILITY.
Adults Wellbeing and Health,Commissioning inc Supporting People,Third Party Payments,479111,Purchase of Care,08-Jul-13,2615437-LD23,"6,086.40",THE BEFRIENDER SCHEME.
Adults Wellbeing and Health,Commissioning inc Supporting People,Third Party Payments,470101,Purchase of Care,09-Jul-13,2616144-RINVTP,"3,916.67",LEONARD CHESHIRE DISABILITY.
Adults Wellbeing and Health,Commissioning inc Supporting People,Third Party Payments,473111,Purchase of Care,10-Jul-13,2616246-PSI066336,"5,000.00",ALZHEIMERS SOCIETY..
Adults Wellbeing and Health,Commissioning inc Supporting People,Third Party Payments,473111,Purchase of Care,10-Jul-13,2616593-004/2013,"22,686.09",WADDINGTON STREET CENTRE LTD.
Adults Wellbeing and Health,Commissioning inc Supporting People,Third Party Payments,479111,Purchase of Care,10-Jul-13,2616295-1888,"3,030.30",CARERS FEDERATION LTD.
Adults Wellbeing and Health,Commissioning inc Supporting People,Third Party Payments,441001,Supporting People,10-Jul-13,2616349-1951450,"17,866.88",DURHAM ACTION ON SINGLE HOUSING.
Adults Wellbeing and Health,Commissioning inc Supporting People,Third Party Payments,441001,Supporting People,10-Jul-13,2616355-1951229,"5,402.40",EAST DURHAM COMMUNITY INITIATIVES LTD.
Adults Wellbeing and Health,Commissioning inc Supporting People,Third Party Payments,441001,Supporting People,10-Jul-13,2616403-1951418,"9,190.44",HARBOUR SUPPORT SERVICES.
Adults Wellbeing and Health,Commissioning inc Supporting People,Third Party Payments,441001,Supporting People,10-Jul-13,2616493-1951395,"10,361.68",NORCARE LTD.
Adults Wellbeing and Health,Commissioning inc Supporting People,Third Party Payments,441001,Supporting People,10-Jul-13,2616523-1951528,"9,429.16",RICHMOND FELLOWSHIP.
Adults Wellbeing and Health,Commissioning inc Supporting People,Third Party Payments,441001,Supporting People,10-Jul-13,2616561-1951385,"48,252.08",STONHAM HOUSING ASSOCIATION LTD.
Adults Wellbeing and Health,Commissioning inc Supporting People,Third Party Payments,441001,Supporting People,10-Jul-13,2616561-1951534,"16,646.56",STONHAM HOUSING ASSOCIATION LTD.
Adults Wellbeing and Health,Commissioning inc Supporting People,Third Party Payments,441001,Supporting People,10-Jul-13,2616571-1951529,"29,247.64",TEES VALLEY HOUSING LTD.
Adults Wellbeing and Health,Commissioning inc Supporting People,Third Party Payments,441001,Supporting People,10-Jul-13,2616573-1951533,"19,231.20",THE CYRENIANS LTD.
Adults Wellbeing and Health,Commissioning inc Supporting People,Third Party Payments,441001,Supporting People,10-Jul-13,2616578-1951056,"11,181.61",THREE RIVERS HOUSING ASSOCIATION LTD.
Adults Wellbeing and Health,Commissioning inc Supporting People,Third Party Payments,441001,Supporting People,10-Jul-13,2616578-1951532,"7,692.32",THREE RIVERS HOUSING ASSOCIATION LTD.
Adults Wellbeing and Health,Commissioning inc Supporting People,Third Party Payments,441001,Supporting People,10-Jul-13,2616593-1951527,"1,166.12",WADDINGTON STREET CENTRE LTD.
Adults Wellbeing and Health,Commissioning inc Supporting People,Third Party Payments,441001,Supporting People,10-Jul-13,2616597-1951440,"7,617.32",WEAR VALLEY WOMENS AID.
Adults Wellbeing and Health,Commissioning inc Supporting People,Third Party Payments,442002,Supporting People,10-Jul-13,2616267-1951415,"19,676.48",BID SERVICES WITH DEAF PEOPLE.
Adults Wellbeing and Health,Commissioning inc Supporting People,Third Party Payments,442002,Supporting People,10-Jul-13,2616322-1951544,"18,783.36",CREATIVE SUPPORT LTD.
Adults Wellbeing and Health,Commissioning inc Supporting People,Third Party Payments,442002,Supporting People,10-Jul-13,2616337-1951446,"2,439.44",DERWENTSIDE DOMESTIC ABUSE SERVICE.
Adults Wellbeing and Health,Commissioning inc Supporting People,Third Party Payments,442002,Supporting People,10-Jul-13,2616341-1951447,"35,813.60",DISC LTD.
Adults Wellbeing and Health,Commissioning inc Supporting People,Third Party Payments,442002,Supporting People,10-Jul-13,2616380-1951416,"33,120.40",FOUNDATION.
Adults Wellbeing and Health,Commissioning inc Supporting People,Third Party Payments,442002,Supporting People,10-Jul-13,2616402-1951194,"5,906.84",HANOVER HOUSING ASSOCIATION.
Adults Wellbeing and Health,Commissioning inc Supporting People,Third Party Payments,442002,Supporting People,10-Jul-13,2616403-1951460,"2,965.76",HARBOUR SUPPORT SERVICES.
Adults Wellbeing and Health,Commissioning inc Supporting People,Third Party Payments,442002,Supporting People,10-Jul-13,2616468-1951441,"7,460.12",MENTAL HEALTH MATTERS.
Adults Wellbeing and Health,Commissioning inc Supporting People,Third Party Payments,442002,Supporting People,10-Jul-13,2616475-1951265,"5,561.68",MOVING ON.
Adults Wellbeing and Health,Commissioning inc Supporting People,Third Party Payments,442002,Supporting People,10-Jul-13,2616493-1951542,"3,078.80",NORCARE LTD.
Adults Wellbeing and Health,Commissioning inc Supporting People,Third Party Payments,442002,Supporting People,10-Jul-13,2616493-1951543,"1,954.64",NORCARE LTD.
Adults Wellbeing and Health,Commissioning inc Supporting People,Third Party Payments,442002,Supporting People,10-Jul-13,2616523-1951461,"7,176.97",RICHMOND FELLOWSHIP.
Adults Wellbeing and Health,Commissioning inc Supporting People,Third Party Payments,442002,Supporting People,10-Jul-13,2616540-1951417,"9,294.32",SHAID.
Adults Wellbeing and Health,Commissioning inc Supporting People,Third Party Payments,442002,Supporting People,10-Jul-13,2616561-1951269,"178,650.32",STONHAM HOUSING ASSOCIATION LTD.
Adults Wellbeing and Health,Commissioning inc Supporting People,Third Party Payments,442002,Supporting People,10-Jul-13,2616561-1951539,"28,364.92",STONHAM HOUSING ASSOCIATION LTD.
Adults Wellbeing and Health,Commissioning inc Supporting People,Third Party Payments,442002,Supporting People,10-Jul-13,2616571-1951459,"9,785.24",TEES VALLEY HOUSING LTD.
Adults Wellbeing and Health,Commissioning inc Supporting People,Third Party Payments,442002,Supporting People,10-Jul-13,2616578-1951069,"8,976.12",THREE RIVERS HOUSING ASSOCIATION LTD.
Adults Wellbeing and Health,Commissioning inc Supporting People,Third Party Payments,442002,Supporting People,10-Jul-13,2616578-1951411,"43,230.76",THREE RIVERS HOUSING ASSOCIATION LTD.
Adults Wellbeing and Health,Commissioning inc Supporting People,Third Party Payments,442002,Supporting People,10-Jul-13,2616578-1951442,"3,835.60",THREE RIVERS HOUSING ASSOCIATION LTD.
Adults Wellbeing and Health,Commissioning inc Supporting People,Third Party Payments,443001,Supporting People,10-Jul-13,2616315-1951074,"1,200.00",COMMUNITY INTEGRATED CARE LTD.
Adults Wellbeing and Health,Commissioning inc Supporting People,Third Party Payments,443001,Supporting People,10-Jul-13,2616315-1951077,"1,600.00",COMMUNITY INTEGRATED CARE LTD.
Adults Wellbeing and Health,Commissioning inc Supporting People,Third Party Payments,443001,Supporting People,10-Jul-13,2616315-1951118,"2,800.00",COMMUNITY INTEGRATED CARE LTD.
Adults Wellbeing and Health,Commissioning inc Supporting People,Third Party Payments,443001,Supporting People,10-Jul-13,2616315-1951122,"3,200.00",COMMUNITY INTEGRATED CARE LTD.
Adults Wellbeing and Health,Commissioning inc Supporting People,Third Party Payments,443001,Supporting People,10-Jul-13,2616333-1951402,"4,456.80",DEACONSTAR LTD.
Adults Wellbeing and Health,Commissioning inc Supporting People,Third Party Payments,443001,Supporting People,10-Jul-13,2616349-1951453,"1,454.08",DURHAM ACTION ON SINGLE HOUSING.
Adults Wellbeing and Health,Commissioning inc Supporting People,Third Party Payments,443001,Supporting People,10-Jul-13,2616349-1951455,"2,181.12",DURHAM ACTION ON SINGLE HOUSING.
Adults Wellbeing and Health,Commissioning inc Supporting People,Third Party Payments,443001,Supporting People,10-Jul-13,2616349-1951456,727.04,DURHAM ACTION ON SINGLE HOUSING.
Adults Wellbeing and Health,Commissioning inc Supporting People,Third Party Payments,443001,Supporting People,10-Jul-13,2616408-1951391,"9,797.76",HIGHLEA CARE LTD.
Adults Wellbeing and Health,Commissioning inc Supporting People,Third Party Payments,443001,Supporting People,10-Jul-13,2616413-1951363,"1,029.12",HOME HOUSING ASSOCIATION LTD.
Adults Wellbeing and Health,Commissioning inc Supporting People,Third Party Payments,443001,Supporting People,10-Jul-13,2616423-1951071,"1,125.72",INTEGRATION TRUST.
Adults Wellbeing and Health,Commissioning inc Supporting People,Third Party Payments,443001,Supporting People,10-Jul-13,2616442-1951463,"10,781.36",KINDSTREAM CARE LTD.
Adults Wellbeing and Health,Commissioning inc Supporting People,Third Party Payments,443001,Supporting People,10-Jul-13,2616442-1951470,"2,629.60",KINDSTREAM CARE LTD.
Adults Wellbeing and Health,Commissioning inc Supporting People,Third Party Payments,443001,Supporting People,10-Jul-13,2616467-1951257,"2,484.76",MENCAP.
Adults Wellbeing and Health,Commissioning inc Supporting People,Third Party Payments,443001,Supporting People,10-Jul-13,2616467-1951259,"2,524.44",MENCAP.
Adults Wellbeing and Health,Commissioning inc Supporting People,Third Party Payments,443001,Supporting People,10-Jul-13,2616467-1951260,907.96,MENCAP.
Adults Wellbeing and Health,Commissioning inc Supporting People,Third Party Payments,443001,Supporting People,10-Jul-13,2616554-1951270,"9,593.28",ST ANNES SHELTER & HOUSING ACTION.
Adults Wellbeing and Health,Commissioning inc Supporting People,Third Party Payments,443001,Supporting People,10-Jul-13,2616561-1951245,"8,131.20",STONHAM HOUSING ASSOCIATION LTD.
Adults Wellbeing and Health,Commissioning inc Supporting People,Third Party Payments,443001,Supporting People,10-Jul-13,2616561-1951419,"24,659.96",STONHAM HOUSING ASSOCIATION LTD.
Adults Wellbeing and Health,Commissioning inc Supporting People,Third Party Payments,443001,Supporting People,10-Jul-13,2616593-1951382,"1,374.48",WADDINGTON STREET CENTRE LTD.
Adults Wellbeing and Health,Commissioning inc Supporting People,Third Party Payments,444002,Supporting People,10-Jul-13,2616503-1951278,864,OAKLEA TRUST.
Adults Wellbeing and Health,Commissioning inc Supporting People,Third Party Payments,444002,Supporting People,10-Jul-13,2616503-1951280,"4,320.00",OAKLEA TRUST.
Adults Wellbeing and Health,Commissioning inc Supporting People,Third Party Payments,444002,Supporting People,10-Jul-13,2616503-1951282,"1,728.00",OAKLEA TRUST.
Adults Wellbeing and Health,Commissioning inc Supporting People,Third Party Payments,444002,Supporting People,10-Jul-13,2616503-1951293,"1,296.00",OAKLEA TRUST.
Adults Wellbeing and Health,Commissioning inc Supporting People,Third Party Payments,444002,Supporting People,10-Jul-13,2616503-1951298,"1,296.00",OAKLEA TRUST.
Adults Wellbeing and Health,Commissioning inc Supporting People,Third Party Payments,444002,Supporting People,10-Jul-13,2616523-1951515,"4,595.04",RICHMOND FELLOWSHIP.
Adults Wellbeing and Health,Commissioning inc Supporting People,Third Party Payments,470111,Purchase of Care,12-Jul-13,2617404-RINVTP,"4,047.23",LEONARD CHESHIRE DISABILITY.
Adults Wellbeing and Health,Commissioning inc Supporting People,Third Party Payments,479101,Purchase of Care,15-Jul-13,2618212-4810000340,"4,193.26",TEES ESK & WEAR VALLEY NHS FOUNDATION TRUST.
Adults Wellbeing and Health,Commissioning inc Supporting People,Third Party Payments,479101,Purchase of Care,16-Jul-13,2618996-106,"40,000.00",DURHAM COUNTY CARERS SUPPORT.
Adults Wellbeing and Health,Commissioning inc Supporting People,Third Party Payments,472113,Purchase of Care,18-Jul-13,2620201-1343961H,991.72,DALE CARE LTD.
Adults Wellbeing and Health,Commissioning inc Supporting People,Third Party Payments,472113,Purchase of Care,18-Jul-13,2620201-1347256H,801.84,DALE CARE LTD.
Adults Wellbeing and Health,Commissioning inc Supporting People,Third Party Payments,472113,Purchase of Care,18-Jul-13,2620201-1347641H,696.32,DALE CARE LTD.
Adults Wellbeing and Health,Commissioning inc Supporting People,Third Party Payments,472113,Purchase of Care,18-Jul-13,2620201-1348003H,960.08,DALE CARE LTD.
Adults Wellbeing and Health,Commissioning inc Supporting People,Third Party Payments,472113,Purchase of Care,18-Jul-13,2620201-1348748H,770.16,DALE CARE LTD.
Adults Wellbeing and Health,Commissioning inc Supporting People,Third Party Payments,479101,Purchase of Care,18-Jul-13,2620651-1350629D,500,REDACTED - PAYMENT TO INDIVIDUAL
Adults Wellbeing and Health,Commissioning inc Supporting People,Third Party Payments,479111,Purchase of Care,18-Jul-13,2619932-032,"1,490.00",ASPIRE LEARNING SUPPORT & WELLING CIC.
Adults Wellbeing and Health,Commissioning inc Supporting People,Third Party Payments,479111,Purchase of Care,23-Jul-13,2623567-D1IN,"70,458.25",STONHAM HOUSING ASSOCIATION LTD.
Adults Wellbeing and Health,Commissioning inc Supporting People,Third Party Payments,479111,Purchase of Care,23-Jul-13,2623584-SITRH,"33,334.00",THREE RIVERS HOUSING ASSOCIATION LTD.
Adults Wellbeing and Health,Commissioning inc Supporting People,Third Party Payments,473111,Purchase of Care,24-Jul-13,2623712-0000030038,"13,018.00",EAST DURHAM COLLEGE.
Adults Wellbeing and Health,Commissioning inc Supporting People,Third Party Payments,479101,Purchase of Care,25-Jul-13,2624034-102,"27,709.50",DURHAM COUNTY CARERS SUPPORT.
Adults Wellbeing and Health,Commissioning inc Supporting People,Third Party Payments,479111,Purchase of Care,25-Jul-13,2624010-3910000495,"16,821.75",CO DURHAM & DARLINGTON NHS FOUNDATION TRUST.
Adults Wellbeing and Health,Commissioning inc Supporting People,Third Party Payments,479111,Purchase of Care,25-Jul-13,2624286-15302,"11,565.33",UNIQUE HOME CARE.
Adults Wellbeing and Health,Commissioning inc Supporting People,Third Party Payments,473111,Purchase of Care,29-Jul-13,2625369-2181,"40,347.36",ST MARGARETS CENTRE.
Adults Wellbeing and Health,Commissioning inc Supporting People,Third Party Payments,478111,Purchase of Care,29-Jul-13,2624954,"1,137.50",REDACTED - PAYMENT TO INDIVIDUAL
Adults Wellbeing and Health,Commissioning inc Supporting People,Third Party Payments,478111,Purchase of Care,29-Jul-13,2625419,"1,322.91",REDACTED - PAYMENT TO INDIVIDUAL
Adults Wellbeing and Health,Commissioning inc Supporting People,Transport,240045,Car Allowances,24-Jul-13,2623891-3033,"18,467.09",SOCIAL RESOURCE CENTRE LTD.
Adults Wellbeing and Health,Commissioning inc Supporting People,Transport,230005,Contract Hire,24-Jul-13,2623771-1961,"1,540.00",LANGLEY PARK COMMUNITY TRANSPORT.
Adults Wellbeing and Health,Financing-Adult Services,Debtors,930131,Debtor-Hospital Re-Admission Avoidance Project,01-Jul-13,2612832-877,681,MY CHOICE HOMECARE LTD.
Adults Wellbeing and Health,Financing-Adult Services,Debtors,930024,Debtor-free nursing care,18-Jul-13,2619981-2112196,"1,537.06",BELMONT NURSING HOME.
Adults Wellbeing and Health,Financing-Adult Services,Debtors,930024,Debtor-free nursing care,18-Jul-13,2619985-2110332,604.4,BENFIELD HALL.
Adults Wellbeing and Health,Financing-Adult Services,Debtors,930024,Debtor-free nursing care,18-Jul-13,2620192-2112398,"1,348.85",CROFT HOUSE RESIDENTIAL HOME.
Adults Wellbeing and Health,Financing-Adult Services,Debtors,930024,Debtor-free nursing care,18-Jul-13,2620359-2111085,"1,097.90",ELIZABETH FLEMMING CARE HOME.
Adults Wellbeing and Health,Financing-Adult Services,Debtors,930024,Debtor-free nursing care,18-Jul-13,2620398-2109221,768.53,EUROPEAN CARE (ENGLAND) LTD.
Adults Wellbeing and Health,Financing-Adult Services,Debtors,930024,Debtor-free nursing care,18-Jul-13,2620515-2109205,501.9,GUARDIAN CARE HOMES (WEST) LTD.
Adults Wellbeing and Health,Financing-Adult Services,Debtors,930024,Debtor-free nursing care,18-Jul-13,2620521-2112327,815.58,HADRIAN HEALTHCARE (NE) LTD (ORCHARD MANOR).
Adults Wellbeing and Health,Financing-Adult Services,Debtors,930024,Debtor-free nursing care,18-Jul-13,2620574-2110077,705.79,HOWLISH HALL NURSING HOME.
Adults Wellbeing and Health,Financing-Adult Services,Debtors,930024,Debtor-free nursing care,18-Jul-13,2620814-2110309,"1,537.06",KIMBLESWORTH NURSING HOME.
Adults Wellbeing and Health,Financing-Adult Services,Debtors,930024,Debtor-free nursing care,18-Jul-13,2620814-2110320,604.4,KIMBLESWORTH NURSING HOME.
Adults Wellbeing and Health,Financing-Adult Services,Debtors,930024,Debtor-free nursing care,18-Jul-13,2620956-2111988,501.89,MARIA MALLABAND NURSING HOMES LTD.
Adults Wellbeing and Health,Financing-Adult Services,Debtors,930024,Debtor-free nursing care,18-Jul-13,2621029-2112234,"1,537.06",MELBURY COURT.
Adults Wellbeing and Health,Financing-Adult Services,Debtors,930024,Debtor-free nursing care,18-Jul-13,2621291-2109756,"1,983.92",PARKLANDS NURSING HOME.
Adults Wellbeing and Health,Financing-Adult Services,Debtors,930024,Debtor-free nursing care,18-Jul-13,2621291-2111119,"1,176.32",PARKLANDS NURSING HOME.
Adults Wellbeing and Health,Financing-Adult Services,Debtors,930024,Debtor-free nursing care,18-Jul-13,2621291-2112143,"1,035.16",PARKLANDS NURSING HOME.
Adults Wellbeing and Health,Financing-Adult Services,Debtors,930024,Debtor-free nursing care,18-Jul-13,2621398-2110083,604.4,RAYSON HOMES LTD.
Adults Wellbeing and Health,Financing-Adult Services,Debtors,930024,Debtor-free nursing care,18-Jul-13,2621410-2112080,501.9,REDWORTH HOUSE.
Adults Wellbeing and Health,Financing-Adult Services,Debtors,930024,Debtor-free nursing care,18-Jul-13,2621580-2111175,878.32,ST HELENS NURSING HOME.
Adults Wellbeing and Health,Financing-Adult Services,Debtors,930024,Debtor-free nursing care,18-Jul-13,2621580-2112176,"1,270.43",ST HELENS NURSING HOME.
Adults Wellbeing and Health,Financing-Adult Services,Debtors,930024,Debtor-free nursing care,18-Jul-13,2621646-2109259,604.4,TAMARIS HEALTHCARE LTD.
Adults Wellbeing and Health,Financing-Adult Services,Debtors,930024,Debtor-free nursing care,18-Jul-13,2621650-2109623,501.9,TAMARIS HEALTHCARE LTD.
Adults Wellbeing and Health,Financing-Adult Services,Debtors,930024,Debtor-free nursing care,18-Jul-13,2621652-2109442,604.4,TAMARIS HEALTHCARE LTD.
Adults Wellbeing and Health,Financing-Adult Services,Debtors,930024,Debtor-free nursing care,18-Jul-13,2621652-2109491,604.4,TAMARIS HEALTHCARE LTD.
Adults Wellbeing and Health,Financing-Adult Services,Debtors,930046,Debtor-leasing,26-Jul-13,2624426-512003,"22,213.09",COUNTY DURHAM PCT .
Adults Wellbeing and Health,Head of Adults,Creditors,952131,Creditor-extra care housing est man,04-Jul-13,2614370-SGIN,"1,926.11",HANOVER HOUSING ASSOCIATION.
Adults Wellbeing and Health,Head of Adults,Premises,145023,Cleaning and Domestic Supplies,03-Jul-13,2613985-06/465213,671.04,GREENHAM TRADING LTD.
Adults Wellbeing and Health,Head of Adults,Premises,145009,Cleaning and Domestic Supplies,05-Jul-13,2614825-J,675,COLIN JOBLING T/A RAINBOW INTERNATIONAL.
Adults Wellbeing and Health,Head of Adults,Premises,108099,Service Repairs and Maintenance,05-Jul-13,2615210-1203,"1,405.00",UPNORTH FOODSERVICE EQUIPMENT LTD.
Adults Wellbeing and Health,Head of Adults,Premises,145023,Cleaning and Domestic Supplies,11-Jul-13,2616827-06/466631,606.75,GREENHAM TRADING LTD.
Adults Wellbeing and Health,Head of Adults,Premises,106099,Centrally Controlled Rep and Maint,12-Jul-13,2617350,500,GEOFFREY ROBINSON LTD.
Adults Wellbeing and Health,Head of Adults,Premises,120021,Energy Costs,19-Jul-13,2621969-HEB,696.76,EON UK PLC.
Adults Wellbeing and Health,Head of Adults,Premises,125009,Rents,30-Jul-13,2626167-299167,782.5,KNIGHT FRANK LLP.
Adults Wellbeing and Health,Head of Adults,Summary Income Level,720044,Fees and Charges,01-Jul-13,2612751-50099450,"1,111.55",REDACTED - PAYMENT TO INDIVIDUAL
Adults Wellbeing and Health,Head of Adults,Summary Income Level,720044,Fees and Charges,02-Jul-13,2613795-REF,"2,438.60",REDACTED - PAYMENT TO INDIVIDUAL
Adults Wellbeing and Health,Head of Adults,Summary Income Level,720045,Fees and Charges,03-Jul-13,221608-R,"12,160.93",REDACTED - PAYMENT TO INDIVIDUAL
Adults Wellbeing and Health,Head of Adults,Summary Income Level,720047,Fees and Charges,10-Jul-13,221829-R,990.58,REDACTED - PAYMENT TO INDIVIDUAL
Adults Wellbeing and Health,Head of Adults,Summary Income Level,720044,Fees and Charges,10-Jul-13,221826-OV,868.73,REDACTED - PAYMENT TO INDIVIDUAL
Adults Wellbeing and Health,Head of Adults,Summary Income Level,720045,Fees and Charges,10-Jul-13,2616332-REF,"12,431.16",REDACTED - PAYMENT TO INDIVIDUAL
Adults Wellbeing and Health,Head of Adults,Summary Income Level,720144,Fees and Charges,24-Jul-13,222334-R,"3,294.96",REDACTED - PAYMENT TO INDIVIDUAL
Adults Wellbeing and Health,Head of Adults,Summary Income Level,720044,Fees and Charges,24-Jul-13,222323-R,"1,653.13",REDACTED - PAYMENT TO INDIVIDUAL
Adults Wellbeing and Health,Head of Adults,Summary Income Level,720045,Fees and Charges,24-Jul-13,222315-R,"1,181.56",REDACTED - PAYMENT TO INDIVIDUAL
Adults Wellbeing and Health,Head of Adults,Summary Income Level,720033,Fees and Charges,25-Jul-13,2624107-REF,"2,940.00",REDACTED - PAYMENT TO INDIVIDUAL
Adults Wellbeing and Health,Head of Adults,Summary Income Level,720044,Fees and Charges,31-Jul-13,222558-R,797.5,REDACTED - PAYMENT TO INDIVIDUAL
Adults Wellbeing and Health,Head of Adults,Supplies and Services,308011,Furniture,01-Jul-13,2612741-73550,"1,436.96",J MATTISON.
Adults Wellbeing and Health,Head of Adults,Supplies and Services,324117,Provisions,01-Jul-13,2612759-N35197,"1,032.75",JR HOLLAND FOOD SERVICES LTD.
Adults Wellbeing and Health,Head of Adults,Supplies and Services,324117,Provisions,01-Jul-13,2612759-N35198,808.12,JR HOLLAND FOOD SERVICES LTD.
Adults Wellbeing and Health,Head of Adults,Supplies and Services,328041,"Clothing, Uniforms and Laundry",03-Jul-13,2613985-06/467165,550.59,GREENHAM TRADING LTD.
Adults Wellbeing and Health,Head of Adults,Supplies and Services,304516,Equipment and Materials,03-Jul-13,2613921-9400/05,641.45,CABLES TAXI CONTRACTS.
Adults Wellbeing and Health,Head of Adults,Supplies and Services,308011,Furniture,03-Jul-13,2614095-CLG1611,665.83,RENDLES HOUSE FURNISHER.
Adults Wellbeing and Health,Head of Adults,Supplies and Services,338045,Services,03-Jul-13,221543-174446,"1,000.00",HMCTS.
Adults Wellbeing and Health,Head of Adults,Supplies and Services,338045,Services,03-Jul-13,221543-LA,500,HMCTS.
Adults Wellbeing and Health,Head of Adults,Supplies and Services,338045,Services,03-Jul-13,221543-LA/FM,500,HMCTS.
Adults Wellbeing and Health,Head of Adults,Supplies and Services,338066,Services,03-Jul-13,2614075-263,"12,000.00",PEOPLETOO LTD.
Adults Wellbeing and Health,Head of Adults,Supplies and Services,308013,Furniture,05-Jul-13,2614766-49609,961.79,BAILEYS BLINDS CO LTD.
Adults Wellbeing and Health,Head of Adults,Supplies and Services,308013,Furniture,05-Jul-13,2614953-104422,637.44,JOHNSON WRIGHT FLOORING LTD.
Adults Wellbeing and Health,Head of Adults,Supplies and Services,342013,Computers and Communications,08-Jul-13,2615430-6005074,536.78,SUPPLIES TEAM LTD.
Adults Wellbeing and Health,Head of Adults,Supplies and Services,308011,Furniture,08-Jul-13,2615241-145776,"1,048.00",ALBANY OFFICE EQUIPMENT (WHOLESALE) LTD.
Adults Wellbeing and Health,Head of Adults,Supplies and Services,308013,Furniture,09-Jul-13,2616134-14275,"2,311.00",JEFFREY CARR LTD.
Adults Wellbeing and Health,Head of Adults,Supplies and Services,338045,Services,09-Jul-13,2616159-174446,"1,000.00",MISS VICTORIA BUTLER COLE.
Adults Wellbeing and Health,Head of Adults,Supplies and Services,324117,Provisions,10-Jul-13,2616434-N35193,"1,640.59",JR HOLLAND FOOD SERVICES LTD.
Adults Wellbeing and Health,Head of Adults,Supplies and Services,324117,Provisions,10-Jul-13,2616434-N35200,692.05,JR HOLLAND FOOD SERVICES LTD.
Adults Wellbeing and Health,Head of Adults,Supplies and Services,338370,Services,10-Jul-13,2616309-3910000435,"48,012.25",CO DURHAM & DARLINGTON NHS FOUNDATION TRUST.
Adults Wellbeing and Health,Head of Adults,Supplies and Services,338045,Services,10-Jul-13,221748-C,980.1,DR SB MAHAPATRA.
Adults Wellbeing and Health,Head of Adults,Supplies and Services,338366,Services,11-Jul-13,2616680-8137,"1,951.00",CARE ABILITY.
Adults Wellbeing and Health,Head of Adults,Supplies and Services,338365,Services,11-Jul-13,2617056-12WR,720,RONDEN PROPERTIES LTD.
Adults Wellbeing and Health,Head of Adults,Supplies and Services,338045,Services,12-Jul-13,2617420,"4,993.60",MISS VICTORIA BUTLER COLE.
Adults Wellbeing and Health,Head of Adults,Supplies and Services,304259,Equipment and Materials,15-Jul-13,2618020-56351,747.5,NP STRUCTURES LTD.
Adults Wellbeing and Health,Head of Adults,Supplies and Services,304259,Equipment and Materials,15-Jul-13,2618190-127382,678,SWITCH ON.
Adults Wellbeing and Health,Head of Adults,Supplies and Services,304259,Equipment and Materials,16-Jul-13,2619133-CN,668.7,OCS GROUP UK LTD T/A CANNON HYGIENE.
Adults Wellbeing and Health,Head of Adults,Supplies and Services,384616,Miscellaneous Expenses,16-Jul-13,2619014-SHO71314,"3,129.02",FOUR HOUSING GROUP.
Adults Wellbeing and Health,Head of Adults,Supplies and Services,384616,Miscellaneous Expenses,16-Jul-13,2619051-D15E,602.7,ISOS HOUSING LTD FORMERLY NOMADE5 HOUSING GROUP LTD.
Adults Wellbeing and Health,Head of Adults,Supplies and Services,324117,Provisions,16-Jul-13,2618920-032,"1,593.00",ASHBARTON CATERING.
Adults Wellbeing and Health,Head of Adults,Supplies and Services,324117,Provisions,16-Jul-13,2618920-037,"1,252.80",ASHBARTON CATERING.
Adults Wellbeing and Health,Head of Adults,Supplies and Services,338365,Services,16-Jul-13,2619158-OP/I394391,"1,195.00",ROYAL NATIONAL INSTITUTE FOR THE BLIND.
Adults Wellbeing and Health,Head of Adults,Supplies and Services,304516,Equipment and Materials,17-Jul-13,2619249-9419/06,832.2,CABLES TAXI CONTRACTS.
Adults Wellbeing and Health,Head of Adults,Supplies and Services,308013,Furniture,17-Jul-13,2619243-49308,598.6,BAILEYS BLINDS CO LTD.
Adults Wellbeing and Health,Head of Adults,Supplies and Services,308011,Furniture,18-Jul-13,2621222-7621,680,NELSONS OF DURHAM.
Adults Wellbeing and Health,Head of Adults,Supplies and Services,338366,Services,18-Jul-13,2620061-8884,"1,897.48",CARE ABILITY.
Adults Wellbeing and Health,Head of Adults,Supplies and Services,338366,Services,18-Jul-13,2620061-8892,777.36,CARE ABILITY.
Adults Wellbeing and Health,Head of Adults,Supplies and Services,338366,Services,18-Jul-13,2620061-8893,"1,525.55",CARE ABILITY.
Adults Wellbeing and Health,Head of Adults,Supplies and Services,338366,Services,18-Jul-13,2620061-8894,"1,525.55",CARE ABILITY.
Adults Wellbeing and Health,Head of Adults,Supplies and Services,338366,Services,18-Jul-13,2620061-8895,708.19,CARE ABILITY.
Adults Wellbeing and Health,Head of Adults,Supplies and Services,338366,Services,18-Jul-13,2620061-8896,740.46,CARE ABILITY.
Adults Wellbeing and Health,Head of Adults,Supplies and Services,338366,Services,18-Jul-13,2620061-8897,785.46,CARE ABILITY.
Adults Wellbeing and Health,Head of Adults,Supplies and Services,338365,Services,18-Jul-13,2621448,978.3,ROMPA LTD.
Adults Wellbeing and Health,Head of Adults,Supplies and Services,304259,Equipment and Materials,22-Jul-13,2622482-56326,775.92,NP STRUCTURES LTD.
Adults Wellbeing and Health,Head of Adults,Supplies and Services,384619,Miscellaneous Expenses,22-Jul-13,2622312-3910000440,"7,016.00",CO DURHAM & DARLINGTON NHS FOUNDATION TRUST.
Adults Wellbeing and Health,Head of Adults,Supplies and Services,384619,Miscellaneous Expenses,22-Jul-13,2622312-3910000441,"7,435.00",CO DURHAM & DARLINGTON NHS FOUNDATION TRUST.
Adults Wellbeing and Health,Head of Adults,Supplies and Services,324117,Provisions,22-Jul-13,2622427-N54691,960.04,JR HOLLAND FOOD SERVICES LTD.
Adults Wellbeing and Health,Head of Adults,Supplies and Services,304221,Equipment and Materials,24-Jul-13,2623865-003/56991,620,ROBERT DUNCAN (TIMBER) LTD.
Adults Wellbeing and Health,Head of Adults,Supplies and Services,304259,Equipment and Materials,24-Jul-13,2623742-INV0149943,913,GV MULTI MEDIA LTD.
Adults Wellbeing and Health,Head of Adults,Supplies and Services,308013,Furniture,24-Jul-13,2623648-52317,"2,612.00",BAILEYS BLINDS CO LTD.
Adults Wellbeing and Health,Head of Adults,Supplies and Services,338365,Services,24-Jul-13,2623684-101009,780,CLOSED DOOR SECURITY SYSTEMS.
Adults Wellbeing and Health,Head of Adults,Supplies and Services,338045,Services,24-Jul-13,2623790,850,MISS SUSAN BOOTHROYD.
Adults Wellbeing and Health,Head of Adults,Supplies and Services,338066,Services,24-Jul-13,2623840-274,"7,750.00",PEOPLETOO LTD.
Adults Wellbeing and Health,Head of Adults,Supplies and Services,304259,Equipment and Materials,25-Jul-13,2623977-24228,540,BACK CARE SOLUTIONS LTD.
Adults Wellbeing and Health,Head of Adults,Supplies and Services,324117,Provisions,25-Jul-13,2624110-N54692,875.42,JR HOLLAND FOOD SERVICES LTD.
Adults Wellbeing and Health,Head of Adults,Supplies and Services,324117,Provisions,25-Jul-13,2624110-N54694,746.43,JR HOLLAND FOOD SERVICES LTD.
Adults Wellbeing and Health,Head of Adults,Supplies and Services,338045,Services,25-Jul-13,2624061-1000272,545.49,FOWLER ASSOCIATES.
Adults Wellbeing and Health,Head of Adults,Supplies and Services,304259,Equipment and Materials,26-Jul-13,2624689-553958,"1,005.00",P & N ASSOCIATES LTD.
Adults Wellbeing and Health,Head of Adults,Supplies and Services,324117,Provisions,30-Jul-13,2626163-N54690,"1,305.75",JR HOLLAND FOOD SERVICES LTD.
Adults Wellbeing and Health,Head of Adults,Supplies and Services,324117,Provisions,31-Jul-13,2626444-N54693,849.71,JR HOLLAND FOOD SERVICES LTD.
Adults Wellbeing and Health,Head of Adults,Third Party Payments,473101,Purchase of Care,01-Jul-13,2612513-INV0115233,663.25,ACTION ON HEARING LOSS.
Adults Wellbeing and Health,Head of Adults,Third Party Payments,473101,Purchase of Care,01-Jul-13,2612513-INV0115234,663.25,ACTION ON HEARING LOSS.
Adults Wellbeing and Health,Head of Adults,Third Party Payments,473101,Purchase of Care,01-Jul-13,2612513-INV0127210,663.25,ACTION ON HEARING LOSS.
Adults Wellbeing and Health,Head of Adults,Third Party Payments,473101,Purchase of Care,01-Jul-13,2612513-INV0127211,568.5,ACTION ON HEARING LOSS.
Adults Wellbeing and Health,Head of Adults,Third Party Payments,473101,Purchase of Care,05-Jul-13,2615034-0000013751,"2,717.21",NORTH EAST AUTISM SOCIETY.
Adults Wellbeing and Health,Head of Adults,Third Party Payments,478101,Purchase of Care,09-Jul-13,2616171-12860,"1,788.64",OAKLEA TRUST.
Adults Wellbeing and Health,Head of Adults,Third Party Payments,473101,Purchase of Care,10-Jul-13,2616405-0040101510,"4,180.00",HARTLEPOOL BOROUGH COUNCIL.
Adults Wellbeing and Health,Head of Adults,Third Party Payments,479101,Purchase of Care,10-Jul-13,2616309-3910000436,"5,302.50",CO DURHAM & DARLINGTON NHS FOUNDATION TRUST.
Adults Wellbeing and Health,Head of Adults,Third Party Payments,472101,Purchase of Care,17-Jul-13,2619281-4033,737.75,DCS & D LTD T/A HERITAGE HEALTHCARE.
Adults Wellbeing and Health,Head of Adults,Third Party Payments,472101,Purchase of Care,17-Jul-13,2619281-4034,737.75,DCS & D LTD T/A HERITAGE HEALTHCARE.
Adults Wellbeing and Health,Head of Adults,Third Party Payments,478111,Purchase of Care,17-Jul-13,2619362-1853948,"1,501.20",MENCAP.
Adults Wellbeing and Health,Head of Adults,Third Party Payments,473101,Purchase of Care,18-Jul-13,2619807-1349311D,529.28,ACORN GRANGE NURSING HOME.
Adults Wellbeing and Health,Head of Adults,Third Party Payments,473101,Purchase of Care,18-Jul-13,2619807-1349563D,684,ACORN GRANGE NURSING HOME.
Adults Wellbeing and Health,Head of Adults,Third Party Payments,473101,Purchase of Care,18-Jul-13,2619807-1349749D,537.46,ACORN GRANGE NURSING HOME.
Adults Wellbeing and Health,Head of Adults,Third Party Payments,473101,Purchase of Care,18-Jul-13,2619807-1349945D,531.96,ACORN GRANGE NURSING HOME.
Adults Wellbeing and Health,Head of Adults,Third Party Payments,473101,Purchase of Care,18-Jul-13,2620241-1343682D,"1,003.40",DAYBREAK.
Adults Wellbeing and Health,Head of Adults,Third Party Payments,473101,Purchase of Care,18-Jul-13,2620241-1343736D,"1,059.60",DAYBREAK.
Adults Wellbeing and Health,Head of Adults,Third Party Payments,473101,Purchase of Care,18-Jul-13,2620241-1343878D,595.8,DAYBREAK.
Adults Wellbeing and Health,Head of Adults,Third Party Payments,473101,Purchase of Care,18-Jul-13,2620241-1343916D,"1,041.80",DAYBREAK.
Adults Wellbeing and Health,Head of Adults,Third Party Payments,473101,Purchase of Care,18-Jul-13,2620241-1343988D,"1,092.20",DAYBREAK.
Adults Wellbeing and Health,Head of Adults,Third Party Payments,473101,Purchase of Care,18-Jul-13,2620241-1344022D,646.44,DAYBREAK.
Adults Wellbeing and Health,Head of Adults,Third Party Payments,473101,Purchase of Care,18-Jul-13,2620241-1344079D,523.48,DAYBREAK.
Adults Wellbeing and Health,Head of Adults,Third Party Payments,473101,Purchase of Care,18-Jul-13,2620241-1344089D,"1,006.80",DAYBREAK.
Adults Wellbeing and Health,Head of Adults,Third Party Payments,473101,Purchase of Care,18-Jul-13,2620241-1344963D,648.12,DAYBREAK.
Adults Wellbeing and Health,Head of Adults,Third Party Payments,473101,Purchase of Care,18-Jul-13,2620241-1345023D,601.8,DAYBREAK.
Adults Wellbeing and Health,Head of Adults,Third Party Payments,473101,Purchase of Care,18-Jul-13,2620241-1345035D,733.28,DAYBREAK.
Adults Wellbeing and Health,Head of Adults,Third Party Payments,473101,Purchase of Care,18-Jul-13,2620241-1345068D,649.92,DAYBREAK.
Adults Wellbeing and Health,Head of Adults,Third Party Payments,473101,Purchase of Care,18-Jul-13,2620241-1345077D,815.4,DAYBREAK.
Adults Wellbeing and Health,Head of Adults,Third Party Payments,473101,Purchase of Care,18-Jul-13,2620241-1345206D,603.72,DAYBREAK.
Adults Wellbeing and Health,Head of Adults,Third Party Payments,473101,Purchase of Care,18-Jul-13,2620241-1345672D,"1,009.20",DAYBREAK.
Adults Wellbeing and Health,Head of Adults,Third Party Payments,473101,Purchase of Care,18-Jul-13,2620241-1345713D,731.52,DAYBREAK.
Adults Wellbeing and Health,Head of Adults,Third Party Payments,473101,Purchase of Care,18-Jul-13,2620241-1346134D,858.6,DAYBREAK.
Adults Wellbeing and Health,Head of Adults,Third Party Payments,473101,Purchase of Care,18-Jul-13,2620241-1349176D,918.6,DAYBREAK.
Adults Wellbeing and Health,Head of Adults,Third Party Payments,473101,Purchase of Care,18-Jul-13,2620244-1344013D,765.2,DEACONSTAR LTD.
Adults Wellbeing and Health,Head of Adults,Third Party Payments,473101,Purchase of Care,18-Jul-13,2620244-1344025D,700,DEACONSTAR LTD.
Adults Wellbeing and Health,Head of Adults,Third Party Payments,473101,Purchase of Care,18-Jul-13,2620244-1345098D,703.8,DEACONSTAR LTD.
Adults Wellbeing and Health,Head of Adults,Third Party Payments,473101,Purchase of Care,18-Jul-13,2620244-1346627D,704.6,DEACONSTAR LTD.
Adults Wellbeing and Health,Head of Adults,Third Party Payments,473101,Purchase of Care,18-Jul-13,2620333-1343920D,764.56,EBONEY DAY CARE.
Adults Wellbeing and Health,Head of Adults,Third Party Payments,473101,Purchase of Care,18-Jul-13,2620333-1345248D,802.04,EBONEY DAY CARE.
Adults Wellbeing and Health,Head of Adults,Third Party Payments,473101,Purchase of Care,18-Jul-13,2620333-1345318D,658.8,EBONEY DAY CARE.
Adults Wellbeing and Health,Head of Adults,Third Party Payments,473101,Purchase of Care,18-Jul-13,2620333-1346554D,900.36,EBONEY DAY CARE.
Adults Wellbeing and Health,Head of Adults,Third Party Payments,473101,Purchase of Care,18-Jul-13,2620333-1347065D,"1,847.40",EBONEY DAY CARE.
Adults Wellbeing and Health,Head of Adults,Third Party Payments,473101,Purchase of Care,18-Jul-13,2620333-1347204D,713.8,EBONEY DAY CARE.
Adults Wellbeing and Health,Head of Adults,Third Party Payments,473101,Purchase of Care,18-Jul-13,2620382-1343630D,620,ENDEAVOUR WOODCRAFTS.
Adults Wellbeing and Health,Head of Adults,Third Party Payments,473101,Purchase of Care,18-Jul-13,2620382-1343688D,620,ENDEAVOUR WOODCRAFTS.
Adults Wellbeing and Health,Head of Adults,Third Party Payments,473101,Purchase of Care,18-Jul-13,2620382-1343801D,620,ENDEAVOUR WOODCRAFTS.
Adults Wellbeing and Health,Head of Adults,Third Party Payments,473101,Purchase of Care,18-Jul-13,2620388-1345156D,"1,964.00",ESPA.
Adults Wellbeing and Health,Head of Adults,Third Party Payments,473101,Purchase of Care,18-Jul-13,2620388-1345859D,"4,669.60",ESPA.
Adults Wellbeing and Health,Head of Adults,Third Party Payments,473101,Purchase of Care,18-Jul-13,2620388-1346137D,"2,802.40",ESPA.
Adults Wellbeing and Health,Head of Adults,Third Party Payments,473101,Purchase of Care,18-Jul-13,2620456-1343671D,614.16,GAPPS DAY SERVICES LTD.
Adults Wellbeing and Health,Head of Adults,Third Party Payments,473101,Purchase of Care,18-Jul-13,2620456-1343726D,"1,637.60",GAPPS DAY SERVICES LTD.
Adults Wellbeing and Health,Head of Adults,Third Party Payments,473101,Purchase of Care,18-Jul-13,2620456-1343965D,"1,228.20",GAPPS DAY SERVICES LTD.
Adults Wellbeing and Health,Head of Adults,Third Party Payments,473101,Purchase of Care,18-Jul-13,2620456-1344224D,818.8,GAPPS DAY SERVICES LTD.
Adults Wellbeing and Health,Head of Adults,Third Party Payments,473101,Purchase of Care,18-Jul-13,2620456-1344427D,877.32,GAPPS DAY SERVICES LTD.
Adults Wellbeing and Health,Head of Adults,Third Party Payments,473101,Purchase of Care,18-Jul-13,2620456-1344452D,"1,286.72",GAPPS DAY SERVICES LTD.
Adults Wellbeing and Health,Head of Adults,Third Party Payments,473101,Purchase of Care,18-Jul-13,2620456-1344512D,818.8,GAPPS DAY SERVICES LTD.
Adults Wellbeing and Health,Head of Adults,Third Party Payments,473101,Purchase of Care,18-Jul-13,2620456-1344581D,"2,865.80",GAPPS DAY SERVICES LTD.
Adults Wellbeing and Health,Head of Adults,Third Party Payments,473101,Purchase of Care,18-Jul-13,2620456-1344784D,818.8,GAPPS DAY SERVICES LTD.
Adults Wellbeing and Health,Head of Adults,Third Party Payments,473101,Purchase of Care,18-Jul-13,2620456-1344903D,877.32,GAPPS DAY SERVICES LTD.
Adults Wellbeing and Health,Head of Adults,Third Party Payments,473101,Purchase of Care,18-Jul-13,2620456-1344987D,935.84,GAPPS DAY SERVICES LTD.
Adults Wellbeing and Health,Head of Adults,Third Party Payments,473101,Purchase of Care,18-Jul-13,2620456-1345028D,"1,228.20",GAPPS DAY SERVICES LTD.
Adults Wellbeing and Health,Head of Adults,Third Party Payments,473101,Purchase of Care,18-Jul-13,2620456-1345042D,"1,169.80",GAPPS DAY SERVICES LTD.
Adults Wellbeing and Health,Head of Adults,Third Party Payments,473101,Purchase of Care,18-Jul-13,2620456-1345070D,"1,228.20",GAPPS DAY SERVICES LTD.
Adults Wellbeing and Health,Head of Adults,Third Party Payments,473101,Purchase of Care,18-Jul-13,2620456-1345170D,"1,169.80",GAPPS DAY SERVICES LTD.
Adults Wellbeing and Health,Head of Adults,Third Party Payments,473101,Purchase of Care,18-Jul-13,2620456-1345227D,701.88,GAPPS DAY SERVICES LTD.
Adults Wellbeing and Health,Head of Adults,Third Party Payments,473101,Purchase of Care,18-Jul-13,2620456-1345363D,"1,696.12",GAPPS DAY SERVICES LTD.
Adults Wellbeing and Health,Head of Adults,Third Party Payments,473101,Purchase of Care,18-Jul-13,2620456-1345668D,935.84,GAPPS DAY SERVICES LTD.
Adults Wellbeing and Health,Head of Adults,Third Party Payments,473101,Purchase of Care,18-Jul-13,2620456-1345769D,935.84,GAPPS DAY SERVICES LTD.
Adults Wellbeing and Health,Head of Adults,Third Party Payments,473101,Purchase of Care,18-Jul-13,2620456-1345900D,"1,345.24",GAPPS DAY SERVICES LTD.
Adults Wellbeing and Health,Head of Adults,Third Party Payments,473101,Purchase of Care,18-Jul-13,2620456-1346865D,935.84,GAPPS DAY SERVICES LTD.
Adults Wellbeing and Health,Head of Adults,Third Party Payments,473101,Purchase of Care,18-Jul-13,2620456-1347276D,"1,403.76",GAPPS DAY SERVICES LTD.
Adults Wellbeing and Health,Head of Adults,Third Party Payments,473101,Purchase of Care,18-Jul-13,2620456-1347768D,"1,228.20",GAPPS DAY SERVICES LTD.
Adults Wellbeing and Health,Head of Adults,Third Party Payments,473101,Purchase of Care,18-Jul-13,2620456-1347927D,818.8,GAPPS DAY SERVICES LTD.
Adults Wellbeing and Health,Head of Adults,Third Party Payments,473101,Purchase of Care,18-Jul-13,2620456-1347963D,"1,403.76",GAPPS DAY SERVICES LTD.
Adults Wellbeing and Health,Head of Adults,Third Party Payments,473101,Purchase of Care,18-Jul-13,2620560-1350627H,703.2,HIGHLEA CARE LTD.
Adults Wellbeing and Health,Head of Adults,Third Party Payments,473101,Purchase of Care,18-Jul-13,2620783-1343627D,650.94,KAYDAR.
Adults Wellbeing and Health,Head of Adults,Third Party Payments,473101,Purchase of Care,18-Jul-13,2620783-1344137D,785.28,KAYDAR.
Adults Wellbeing and Health,Head of Adults,Third Party Payments,473101,Purchase of Care,18-Jul-13,2620783-1344344D,"2,748.80",KAYDAR.
Adults Wellbeing and Health,Head of Adults,Third Party Payments,473101,Purchase of Care,18-Jul-13,2620783-1344586D,"1,218.84",KAYDAR.
Adults Wellbeing and Health,Head of Adults,Third Party Payments,473101,Purchase of Care,18-Jul-13,2620783-1345200D,522.72,KAYDAR.
Adults Wellbeing and Health,Head of Adults,Third Party Payments,473101,Purchase of Care,18-Jul-13,2620783-1345208D,576.32,KAYDAR.
Adults Wellbeing and Health,Head of Adults,Third Party Payments,473101,Purchase of Care,18-Jul-13,2620783-1345295D,712.96,KAYDAR.
Adults Wellbeing and Health,Head of Adults,Third Party Payments,473101,Purchase of Care,18-Jul-13,2620783-1345307D,666.5,KAYDAR.
Adults Wellbeing and Health,Head of Adults,Third Party Payments,473101,Purchase of Care,18-Jul-13,2620783-1345329D,737.72,KAYDAR.
Adults Wellbeing and Health,Head of Adults,Third Party Payments,473101,Purchase of Care,18-Jul-13,2620783-1345405D,"1,347.40",KAYDAR.
Adults Wellbeing and Health,Head of Adults,Third Party Payments,473101,Purchase of Care,18-Jul-13,2620783-1345457D,719.04,KAYDAR.
Adults Wellbeing and Health,Head of Adults,Third Party Payments,473101,Purchase of Care,18-Jul-13,2620783-1345502D,511.84,KAYDAR.
Adults Wellbeing and Health,Head of Adults,Third Party Payments,473101,Purchase of Care,18-Jul-13,2620783-1345514D,638.64,KAYDAR.
Adults Wellbeing and Health,Head of Adults,Third Party Payments,473101,Purchase of Care,18-Jul-13,2620783-1345552D,520.5,KAYDAR.
Adults Wellbeing and Health,Head of Adults,Third Party Payments,473101,Purchase of Care,18-Jul-13,2620783-1346164D,"1,291.20",KAYDAR.
Adults Wellbeing and Health,Head of Adults,Third Party Payments,473101,Purchase of Care,18-Jul-13,2620783-1346261D,616.56,KAYDAR.
Adults Wellbeing and Health,Head of Adults,Third Party Payments,473101,Purchase of Care,18-Jul-13,2620783-1350609D,"1,040.40",KAYDAR.
Adults Wellbeing and Health,Head of Adults,Third Party Payments,473101,Purchase of Care,18-Jul-13,2620783-1350620D,548.73,KAYDAR.
Adults Wellbeing and Health,Head of Adults,Third Party Payments,473101,Purchase of Care,18-Jul-13,2620783-1350622D,"1,040.40",KAYDAR.
Adults Wellbeing and Health,Head of Adults,Third Party Payments,473101,Purchase of Care,18-Jul-13,2620783-1350624D,554,KAYDAR.
Adults Wellbeing and Health,Head of Adults,Third Party Payments,473101,Purchase of Care,18-Jul-13,2620783-1350625D,865.7,KAYDAR.
Adults Wellbeing and Health,Head of Adults,Third Party Payments,473101,Purchase of Care,18-Jul-13,2620783-1350669D,"2,048.14",KAYDAR.
Adults Wellbeing and Health,Head of Adults,Third Party Payments,473101,Purchase of Care,18-Jul-13,2620815-1345957D,913.48,KINDSTREAM CARE LTD.
Adults Wellbeing and Health,Head of Adults,Third Party Payments,473101,Purchase of Care,18-Jul-13,2620815-1346412D,620,KINDSTREAM CARE LTD.
Adults Wellbeing and Health,Head of Adults,Third Party Payments,473101,Purchase of Care,18-Jul-13,2620815-1350735D,646.05,KINDSTREAM CARE LTD.
Adults Wellbeing and Health,Head of Adults,Third Party Payments,473101,Purchase of Care,18-Jul-13,2621071-1343890D,540,MOVEABLE FEASTS ARTS.
Adults Wellbeing and Health,Head of Adults,Third Party Payments,473101,Purchase of Care,18-Jul-13,2621241-1344390D,"1,924.40",NORTH EAST AUTISM SOCIETY.
Adults Wellbeing and Health,Head of Adults,Third Party Payments,473101,Purchase of Care,18-Jul-13,2621241-1344460D,"3,162.40",NORTH EAST AUTISM SOCIETY.
Adults Wellbeing and Health,Head of Adults,Third Party Payments,473101,Purchase of Care,18-Jul-13,2621241-1344590D,"2,320.00",NORTH EAST AUTISM SOCIETY.
Adults Wellbeing and Health,Head of Adults,Third Party Payments,473101,Purchase of Care,18-Jul-13,2621241-1344856D,"4,410.00",NORTH EAST AUTISM SOCIETY.
Adults Wellbeing and Health,Head of Adults,Third Party Payments,473101,Purchase of Care,18-Jul-13,2621241-1344916D,"2,720.20",NORTH EAST AUTISM SOCIETY.
Adults Wellbeing and Health,Head of Adults,Third Party Payments,473101,Purchase of Care,18-Jul-13,2621241-1344920D,"2,992.40",NORTH EAST AUTISM SOCIETY.
Adults Wellbeing and Health,Head of Adults,Third Party Payments,473101,Purchase of Care,18-Jul-13,2621241-1344923D,"1,947.40",NORTH EAST AUTISM SOCIETY.
Adults Wellbeing and Health,Head of Adults,Third Party Payments,473101,Purchase of Care,18-Jul-13,2621241-1344926D,"2,320.00",NORTH EAST AUTISM SOCIETY.
Adults Wellbeing and Health,Head of Adults,Third Party Payments,473101,Purchase of Care,18-Jul-13,2621241-1345085D,"1,870.20",NORTH EAST AUTISM SOCIETY.
Adults Wellbeing and Health,Head of Adults,Third Party Payments,473101,Purchase of Care,18-Jul-13,2621241-1345101D,"5,404.00",NORTH EAST AUTISM SOCIETY.
Adults Wellbeing and Health,Head of Adults,Third Party Payments,473101,Purchase of Care,18-Jul-13,2621241-1345146D,"2,328.20",NORTH EAST AUTISM SOCIETY.
Adults Wellbeing and Health,Head of Adults,Third Party Payments,473101,Purchase of Care,18-Jul-13,2621241-1345252D,"3,740.40",NORTH EAST AUTISM SOCIETY.
Adults Wellbeing and Health,Head of Adults,Third Party Payments,473101,Purchase of Care,18-Jul-13,2621241-1345352D,"2,320.00",NORTH EAST AUTISM SOCIETY.
Adults Wellbeing and Health,Head of Adults,Third Party Payments,473101,Purchase of Care,18-Jul-13,2621241-1345601D,"3,740.60",NORTH EAST AUTISM SOCIETY.
Adults Wellbeing and Health,Head of Adults,Third Party Payments,473101,Purchase of Care,18-Jul-13,2621241-1345628D,"2,320.00",NORTH EAST AUTISM SOCIETY.
Adults Wellbeing and Health,Head of Adults,Third Party Payments,473101,Purchase of Care,18-Jul-13,2621241-1345841D,"2,320.00",NORTH EAST AUTISM SOCIETY.
Adults Wellbeing and Health,Head of Adults,Third Party Payments,473101,Purchase of Care,18-Jul-13,2621241-1345854D,"2,320.00",NORTH EAST AUTISM SOCIETY.
Adults Wellbeing and Health,Head of Adults,Third Party Payments,473101,Purchase of Care,18-Jul-13,2621241-1346163D,"4,180.80",NORTH EAST AUTISM SOCIETY.
Adults Wellbeing and Health,Head of Adults,Third Party Payments,473101,Purchase of Care,18-Jul-13,2621241-1346460D,"2,666.60",NORTH EAST AUTISM SOCIETY.
Adults Wellbeing and Health,Head of Adults,Third Party Payments,473101,Purchase of Care,18-Jul-13,2621241-1347971D,"2,091.00",NORTH EAST AUTISM SOCIETY.
Adults Wellbeing and Health,Head of Adults,Third Party Payments,473101,Purchase of Care,18-Jul-13,2621249-1348575D,546.4,NORTH WEST DURHAM RURAL COMMUNITY CARE LTD.
Adults Wellbeing and Health,Head of Adults,Third Party Payments,473101,Purchase of Care,18-Jul-13,2621249-1349924D,705.8,NORTH WEST DURHAM RURAL COMMUNITY CARE LTD.
Adults Wellbeing and Health,Head of Adults,Third Party Payments,473101,Purchase of Care,18-Jul-13,2621327-1343955D,508.8,PEARTREE PROJECTS LTD.
Adults Wellbeing and Health,Head of Adults,Third Party Payments,473101,Purchase of Care,18-Jul-13,2621327-1344233D,636,PEARTREE PROJECTS LTD.
Adults Wellbeing and Health,Head of Adults,Third Party Payments,473101,Purchase of Care,18-Jul-13,2621331-1344845D,"1,028.96",PERCY HEDLEY CENTRE.
Adults Wellbeing and Health,Head of Adults,Third Party Payments,473101,Purchase of Care,18-Jul-13,2621331-1346174D,"1,488.36",PERCY HEDLEY CENTRE.
Adults Wellbeing and Health,Head of Adults,Third Party Payments,473101,Purchase of Care,18-Jul-13,2621353-1343717D,"1,507.66",PORTLAND DAY CARE.
Adults Wellbeing and Health,Head of Adults,Third Party Payments,473101,Purchase of Care,18-Jul-13,2621353-1343740D,"1,294.08",PORTLAND DAY CARE.
Adults Wellbeing and Health,Head of Adults,Third Party Payments,473101,Purchase of Care,18-Jul-13,2621353-1343818D,767.2,PORTLAND DAY CARE.
Adults Wellbeing and Health,Head of Adults,Third Party Payments,473101,Purchase of Care,18-Jul-13,2621353-1344033D,600,PORTLAND DAY CARE.
Adults Wellbeing and Health,Head of Adults,Third Party Payments,473101,Purchase of Care,18-Jul-13,2621353-1344110D,"1,327.48",PORTLAND DAY CARE.
Adults Wellbeing and Health,Head of Adults,Third Party Payments,473101,Purchase of Care,18-Jul-13,2621353-1344563D,"1,806.08",PORTLAND DAY CARE.
Adults Wellbeing and Health,Head of Adults,Third Party Payments,473101,Purchase of Care,18-Jul-13,2621353-1344634D,"1,469.60",PORTLAND DAY CARE.
Adults Wellbeing and Health,Head of Adults,Third Party Payments,473101,Purchase of Care,18-Jul-13,2621353-1344639D,"1,821.80",PORTLAND DAY CARE.
Adults Wellbeing and Health,Head of Adults,Third Party Payments,473101,Purchase of Care,18-Jul-13,2621353-1344943D,"2,153.80",PORTLAND DAY CARE.
Adults Wellbeing and Health,Head of Adults,Third Party Payments,473101,Purchase of Care,18-Jul-13,2621353-1345026D,989.5,PORTLAND DAY CARE.
Adults Wellbeing and Health,Head of Adults,Third Party Payments,473101,Purchase of Care,18-Jul-13,2621353-1345050D,"1,212.00",PORTLAND DAY CARE.
Adults Wellbeing and Health,Head of Adults,Third Party Payments,473101,Purchase of Care,18-Jul-13,2621353-1345389D,"1,847.56",PORTLAND DAY CARE.
Adults Wellbeing and Health,Head of Adults,Third Party Payments,473101,Purchase of Care,18-Jul-13,2621353-1346027D,597.92,PORTLAND DAY CARE.
Adults Wellbeing and Health,Head of Adults,Third Party Payments,473101,Purchase of Care,18-Jul-13,2621353-1346263D,"1,945.03",PORTLAND DAY CARE.
Adults Wellbeing and Health,Head of Adults,Third Party Payments,473101,Purchase of Care,18-Jul-13,2621353-1346929D,521.76,PORTLAND DAY CARE.
Adults Wellbeing and Health,Head of Adults,Third Party Payments,473101,Purchase of Care,18-Jul-13,2621353-1346949D,686.28,PORTLAND DAY CARE.
Adults Wellbeing and Health,Head of Adults,Third Party Payments,473101,Purchase of Care,18-Jul-13,2621355-1344701D,583.92,POSITIVE APPROACH SERVICES LTD.
Adults Wellbeing and Health,Head of Adults,Third Party Payments,473101,Purchase of Care,18-Jul-13,2621357-1343713D,515.2,POTENSIAL LTD.
Adults Wellbeing and Health,Head of Adults,Third Party Payments,473101,Purchase of Care,18-Jul-13,2621528-1344684D,781.6,REDACTED - PAYMENT TO INDIVIDUAL
Adults Wellbeing and Health,Head of Adults,Third Party Payments,473101,Purchase of Care,18-Jul-13,2621528-1344696D,756.4,REDACTED - PAYMENT TO INDIVIDUAL
Adults Wellbeing and Health,Head of Adults,Third Party Payments,473101,Purchase of Care,18-Jul-13,2621528-1344731D,719.2,REDACTED - PAYMENT TO INDIVIDUAL
Adults Wellbeing and Health,Head of Adults,Third Party Payments,473101,Purchase of Care,18-Jul-13,2621528-1344732D,745,REDACTED - PAYMENT TO INDIVIDUAL
Adults Wellbeing and Health,Head of Adults,Third Party Payments,473101,Purchase of Care,18-Jul-13,2621528-1344746D,794,REDACTED - PAYMENT TO INDIVIDUAL
Adults Wellbeing and Health,Head of Adults,Third Party Payments,473101,Purchase of Care,18-Jul-13,2621528-1344775D,717.6,REDACTED - PAYMENT TO INDIVIDUAL
Adults Wellbeing and Health,Head of Adults,Third Party Payments,473101,Purchase of Care,18-Jul-13,2621528-1344795D,615.04,REDACTED - PAYMENT TO INDIVIDUAL
Adults Wellbeing and Health,Head of Adults,Third Party Payments,473101,Purchase of Care,18-Jul-13,2621528-1345768D,748,REDACTED - PAYMENT TO INDIVIDUAL
Adults Wellbeing and Health,Head of Adults,Third Party Payments,473101,Purchase of Care,18-Jul-13,2621528-1345832D,620,REDACTED - PAYMENT TO INDIVIDUAL
Adults Wellbeing and Health,Head of Adults,Third Party Payments,473101,Purchase of Care,18-Jul-13,2621528-1345867D,783.2,REDACTED - PAYMENT TO INDIVIDUAL
Adults Wellbeing and Health,Head of Adults,Third Party Payments,473101,Purchase of Care,18-Jul-13,2621528-1345995D,826.4,REDACTED - PAYMENT TO INDIVIDUAL
Adults Wellbeing and Health,Head of Adults,Third Party Payments,473101,Purchase of Care,18-Jul-13,2621528-1346080D,589.44,REDACTED - PAYMENT TO INDIVIDUAL
Adults Wellbeing and Health,Head of Adults,Third Party Payments,473101,Purchase of Care,18-Jul-13,2621528-1346398D,791.2,REDACTED - PAYMENT TO INDIVIDUAL
Adults Wellbeing and Health,Head of Adults,Third Party Payments,473101,Purchase of Care,18-Jul-13,2621676-1345429D,800,THE AVENUE.
Adults Wellbeing and Health,Head of Adults,Third Party Payments,473101,Purchase of Care,18-Jul-13,2621689-1345886D,504.8,THE HOSPITAL OF GOD AT GREATHAM.
Adults Wellbeing and Health,Head of Adults,Third Party Payments,473101,Purchase of Care,18-Jul-13,2621689-1346072D,631.2,THE HOSPITAL OF GOD AT GREATHAM.
Adults Wellbeing and Health,Head of Adults,Third Party Payments,473101,Purchase of Care,18-Jul-13,2621689-1348598D,518.72,THE HOSPITAL OF GOD AT GREATHAM.
Adults Wellbeing and Health,Head of Adults,Third Party Payments,473101,Purchase of Care,18-Jul-13,2621689-1349440D,535.2,THE HOSPITAL OF GOD AT GREATHAM.
Adults Wellbeing and Health,Head of Adults,Third Party Payments,473101,Purchase of Care,18-Jul-13,2621689-1349547D,522.73,THE HOSPITAL OF GOD AT GREATHAM.
Adults Wellbeing and Health,Head of Adults,Third Party Payments,473101,Purchase of Care,18-Jul-13,2621689-1349686D,514.35,THE HOSPITAL OF GOD AT GREATHAM.
Adults Wellbeing and Health,Head of Adults,Third Party Payments,473101,Purchase of Care,18-Jul-13,2621689-1350644D,863.98,THE HOSPITAL OF GOD AT GREATHAM.
Adults Wellbeing and Health,Head of Adults,Third Party Payments,473101,Purchase of Care,18-Jul-13,2621689-1350650D,"1,230.00",THE HOSPITAL OF GOD AT GREATHAM.
Adults Wellbeing and Health,Head of Adults,Third Party Payments,473101,Purchase of Care,18-Jul-13,2621712-1343637D,954.36,THOMPSON & HOWE LTD.
Adults Wellbeing and Health,Head of Adults,Third Party Payments,473101,Purchase of Care,18-Jul-13,2621712-1343642D,605.12,THOMPSON & HOWE LTD.
Adults Wellbeing and Health,Head of Adults,Third Party Payments,473101,Purchase of Care,18-Jul-13,2621712-1343645D,"1,914.00",THOMPSON & HOWE LTD.
Adults Wellbeing and Health,Head of Adults,Third Party Payments,473101,Purchase of Care,18-Jul-13,2621712-1343703D,"2,422.59",THOMPSON & HOWE LTD.
Adults Wellbeing and Health,Head of Adults,Third Party Payments,473101,Purchase of Care,18-Jul-13,2621712-1343739D,602,THOMPSON & HOWE LTD.
Adults Wellbeing and Health,Head of Adults,Third Party Payments,473101,Purchase of Care,18-Jul-13,2621712-1343765D,970,THOMPSON & HOWE LTD.
Adults Wellbeing and Health,Head of Adults,Third Party Payments,473101,Purchase of Care,18-Jul-13,2621712-1343942D,"1,465.20",THOMPSON & HOWE LTD.
Adults Wellbeing and Health,Head of Adults,Third Party Payments,473101,Purchase of Care,18-Jul-13,2621712-1343953D,"1,525.00",THOMPSON & HOWE LTD.
Adults Wellbeing and Health,Head of Adults,Third Party Payments,473101,Purchase of Care,18-Jul-13,2621712-1343986D,860.64,THOMPSON & HOWE LTD.
Adults Wellbeing and Health,Head of Adults,Third Party Payments,473101,Purchase of Care,18-Jul-13,2621712-1344001D,588,THOMPSON & HOWE LTD.
Adults Wellbeing and Health,Head of Adults,Third Party Payments,473101,Purchase of Care,18-Jul-13,2621712-1344053D,"1,237.44",THOMPSON & HOWE LTD.
Adults Wellbeing and Health,Head of Adults,Third Party Payments,473101,Purchase of Care,18-Jul-13,2621712-1344064D,522.72,THOMPSON & HOWE LTD.
Adults Wellbeing and Health,Head of Adults,Third Party Payments,473101,Purchase of Care,18-Jul-13,2621712-1344070D,"1,480.00",THOMPSON & HOWE LTD.
Adults Wellbeing and Health,Head of Adults,Third Party Payments,473101,Purchase of Care,18-Jul-13,2621712-1344117D,590.16,THOMPSON & HOWE LTD.
Adults Wellbeing and Health,Head of Adults,Third Party Payments,473101,Purchase of Care,18-Jul-13,2621712-1344131D,784,THOMPSON & HOWE LTD.
Adults Wellbeing and Health,Head of Adults,Third Party Payments,473101,Purchase of Care,18-Jul-13,2621712-1344144D,"1,047.40",THOMPSON & HOWE LTD.
Adults Wellbeing and Health,Head of Adults,Third Party Payments,473101,Purchase of Care,18-Jul-13,2621712-1344185D,"1,006.00",THOMPSON & HOWE LTD.
Adults Wellbeing and Health,Head of Adults,Third Party Payments,473101,Purchase of Care,18-Jul-13,2621712-1344214D,586.08,THOMPSON & HOWE LTD.
Adults Wellbeing and Health,Head of Adults,Third Party Payments,473101,Purchase of Care,18-Jul-13,2621712-1344289D,"1,046.00",THOMPSON & HOWE LTD.
Adults Wellbeing and Health,Head of Adults,Third Party Payments,473101,Purchase of Care,18-Jul-13,2621712-1344428D,926.76,THOMPSON & HOWE LTD.
Adults Wellbeing and Health,Head of Adults,Third Party Payments,473101,Purchase of Care,18-Jul-13,2621712-1344623D,"1,469.80",THOMPSON & HOWE LTD.
Adults Wellbeing and Health,Head of Adults,Third Party Payments,473101,Purchase of Care,18-Jul-13,2621712-1344636D,"1,079.20",THOMPSON & HOWE LTD.
Adults Wellbeing and Health,Head of Adults,Third Party Payments,473101,Purchase of Care,18-Jul-13,2621712-1344668D,813.44,THOMPSON & HOWE LTD.
Adults Wellbeing and Health,Head of Adults,Third Party Payments,473101,Purchase of Care,18-Jul-13,2621712-1344680D,772.8,THOMPSON & HOWE LTD.
Adults Wellbeing and Health,Head of Adults,Third Party Payments,473101,Purchase of Care,18-Jul-13,2621712-1344703D,"1,056.84",THOMPSON & HOWE LTD.
Adults Wellbeing and Health,Head of Adults,Third Party Payments,473101,Purchase of Care,18-Jul-13,2621712-1344707D,620.4,THOMPSON & HOWE LTD.
Adults Wellbeing and Health,Head of Adults,Third Party Payments,473101,Purchase of Care,18-Jul-13,2621712-1344709D,"1,508.60",THOMPSON & HOWE LTD.
Adults Wellbeing and Health,Head of Adults,Third Party Payments,473101,Purchase of Care,18-Jul-13,2621712-1344754D,950.81,THOMPSON & HOWE LTD.
Adults Wellbeing and Health,Head of Adults,Third Party Payments,473101,Purchase of Care,18-Jul-13,2621712-1344782D,871.08,THOMPSON & HOWE LTD.
Adults Wellbeing and Health,Head of Adults,Third Party Payments,473101,Purchase of Care,18-Jul-13,2621712-1344965D,"1,628.40",THOMPSON & HOWE LTD.
Adults Wellbeing and Health,Head of Adults,Third Party Payments,473101,Purchase of Care,18-Jul-13,2621712-1345031D,"1,548.00",THOMPSON & HOWE LTD.
Adults Wellbeing and Health,Head of Adults,Third Party Payments,473101,Purchase of Care,18-Jul-13,2621712-1345036D,733,THOMPSON & HOWE LTD.
Adults Wellbeing and Health,Head of Adults,Third Party Payments,473101,Purchase of Care,18-Jul-13,2621712-1345055D,836.16,THOMPSON & HOWE LTD.
Adults Wellbeing and Health,Head of Adults,Third Party Payments,473101,Purchase of Care,18-Jul-13,2621712-1345083D,"1,556.96",THOMPSON & HOWE LTD.
Adults Wellbeing and Health,Head of Adults,Third Party Payments,473101,Purchase of Care,18-Jul-13,2621712-1345087D,906.12,THOMPSON & HOWE LTD.
Adults Wellbeing and Health,Head of Adults,Third Party Payments,473101,Purchase of Care,18-Jul-13,2621712-1345189D,"2,047.40",THOMPSON & HOWE LTD.
Adults Wellbeing and Health,Head of Adults,Third Party Payments,473101,Purchase of Care,18-Jul-13,2621712-1345301D,"1,238.20",THOMPSON & HOWE LTD.
Adults Wellbeing and Health,Head of Adults,Third Party Payments,473101,Purchase of Care,18-Jul-13,2621712-1345371D,"2,229.80",THOMPSON & HOWE LTD.
Adults Wellbeing and Health,Head of Adults,Third Party Payments,473101,Purchase of Care,18-Jul-13,2621712-1345452D,683,THOMPSON & HOWE LTD.
Adults Wellbeing and Health,Head of Adults,Third Party Payments,473101,Purchase of Care,18-Jul-13,2621712-1345522D,"2,047.02",THOMPSON & HOWE LTD.
Adults Wellbeing and Health,Head of Adults,Third Party Payments,473101,Purchase of Care,18-Jul-13,2621712-1345616D,533.12,THOMPSON & HOWE LTD.
Adults Wellbeing and Health,Head of Adults,Third Party Payments,473101,Purchase of Care,18-Jul-13,2621712-1345619D,598,THOMPSON & HOWE LTD.
Adults Wellbeing and Health,Head of Adults,Third Party Payments,473101,Purchase of Care,18-Jul-13,2621712-1345652D,997.2,THOMPSON & HOWE LTD.
Adults Wellbeing and Health,Head of Adults,Third Party Payments,473101,Purchase of Care,18-Jul-13,2621712-1345655D,"1,657.00",THOMPSON & HOWE LTD.
Adults Wellbeing and Health,Head of Adults,Third Party Payments,473101,Purchase of Care,18-Jul-13,2621712-1345665D,644.8,THOMPSON & HOWE LTD.
Adults Wellbeing and Health,Head of Adults,Third Party Payments,473101,Purchase of Care,18-Jul-13,2621712-1345682D,606.4,THOMPSON & HOWE LTD.
Adults Wellbeing and Health,Head of Adults,Third Party Payments,473101,Purchase of Care,18-Jul-13,2621712-1345790D,554.72,THOMPSON & HOWE LTD.
Adults Wellbeing and Health,Head of Adults,Third Party Payments,473101,Purchase of Care,18-Jul-13,2621712-1345803D,"2,044.80",THOMPSON & HOWE LTD.
Adults Wellbeing and Health,Head of Adults,Third Party Payments,473101,Purchase of Care,18-Jul-13,2621712-1345848D,628.6,THOMPSON & HOWE LTD.
Adults Wellbeing and Health,Head of Adults,Third Party Payments,473101,Purchase of Care,18-Jul-13,2621712-1345866D,"1,534.60",THOMPSON & HOWE LTD.
Adults Wellbeing and Health,Head of Adults,Third Party Payments,473101,Purchase of Care,18-Jul-13,2621712-1345872D,891.12,THOMPSON & HOWE LTD.
Adults Wellbeing and Health,Head of Adults,Third Party Payments,473101,Purchase of Care,18-Jul-13,2621712-1345889D,844.32,THOMPSON & HOWE LTD.
Adults Wellbeing and Health,Head of Adults,Third Party Payments,473101,Purchase of Care,18-Jul-13,2621712-1345913D,"1,536.20",THOMPSON & HOWE LTD.
Adults Wellbeing and Health,Head of Adults,Third Party Payments,473101,Purchase of Care,18-Jul-13,2621712-1345949D,533.76,THOMPSON & HOWE LTD.
Adults Wellbeing and Health,Head of Adults,Third Party Payments,473101,Purchase of Care,18-Jul-13,2621712-1345971D,545.92,THOMPSON & HOWE LTD.
Adults Wellbeing and Health,Head of Adults,Third Party Payments,473101,Purchase of Care,18-Jul-13,2621712-1346161D,785.2,THOMPSON & HOWE LTD.
Adults Wellbeing and Health,Head of Adults,Third Party Payments,473101,Purchase of Care,18-Jul-13,2621712-1346275D,"1,263.20",THOMPSON & HOWE LTD.
Adults Wellbeing and Health,Head of Adults,Third Party Payments,473101,Purchase of Care,18-Jul-13,2621712-1346284D,"1,025.64",THOMPSON & HOWE LTD.
Adults Wellbeing and Health,Head of Adults,Third Party Payments,473101,Purchase of Care,18-Jul-13,2621712-1346290D,580,THOMPSON & HOWE LTD.
Adults Wellbeing and Health,Head of Adults,Third Party Payments,473101,Purchase of Care,18-Jul-13,2621712-1346336D,693.28,THOMPSON & HOWE LTD.
Adults Wellbeing and Health,Head of Adults,Third Party Payments,473101,Purchase of Care,18-Jul-13,2621712-1346385D,"1,296.12",THOMPSON & HOWE LTD.
Adults Wellbeing and Health,Head of Adults,Third Party Payments,473101,Purchase of Care,18-Jul-13,2621712-1346582D,"1,508.40",THOMPSON & HOWE LTD.
Adults Wellbeing and Health,Head of Adults,Third Party Payments,473101,Purchase of Care,18-Jul-13,2621712-1346759D,"1,111.80",THOMPSON & HOWE LTD.
Adults Wellbeing and Health,Head of Adults,Third Party Payments,473101,Purchase of Care,18-Jul-13,2621712-1347118D,888.96,THOMPSON & HOWE LTD.
Adults Wellbeing and Health,Head of Adults,Third Party Payments,473101,Purchase of Care,18-Jul-13,2621712-1347375D,526.24,THOMPSON & HOWE LTD.
Adults Wellbeing and Health,Head of Adults,Third Party Payments,473101,Purchase of Care,18-Jul-13,2621712-1347444D,628.8,THOMPSON & HOWE LTD.
Adults Wellbeing and Health,Head of Adults,Third Party Payments,473101,Purchase of Care,18-Jul-13,2621712-1347599D,"2,013.00",THOMPSON & HOWE LTD.
Adults Wellbeing and Health,Head of Adults,Third Party Payments,473101,Purchase of Care,18-Jul-13,2621712-1347620D,675.52,THOMPSON & HOWE LTD.
Adults Wellbeing and Health,Head of Adults,Third Party Payments,473101,Purchase of Care,18-Jul-13,2621712-1348226D,"1,239.52",THOMPSON & HOWE LTD.
Adults Wellbeing and Health,Head of Adults,Third Party Payments,473101,Purchase of Care,18-Jul-13,2621712-1348424D,542.08,THOMPSON & HOWE LTD.
Adults Wellbeing and Health,Head of Adults,Third Party Payments,473101,Purchase of Care,18-Jul-13,2621712-1348666D,"1,520.80",THOMPSON & HOWE LTD.
Adults Wellbeing and Health,Head of Adults,Third Party Payments,473101,Purchase of Care,18-Jul-13,2621712-1348755D,523.2,THOMPSON & HOWE LTD.
Adults Wellbeing and Health,Head of Adults,Third Party Payments,473101,Purchase of Care,18-Jul-13,2621712-1348847D,633.76,THOMPSON & HOWE LTD.
Adults Wellbeing and Health,Head of Adults,Third Party Payments,473101,Purchase of Care,18-Jul-13,2621712-1349291D,"1,262.08",THOMPSON & HOWE LTD.
Adults Wellbeing and Health,Head of Adults,Third Party Payments,473101,Purchase of Care,18-Jul-13,2621712-1350535D,"2,268.84",THOMPSON & HOWE LTD.
Adults Wellbeing and Health,Head of Adults,Third Party Payments,473101,Purchase of Care,18-Jul-13,2621712-1350544D,"1,266.28",THOMPSON & HOWE LTD.
Adults Wellbeing and Health,Head of Adults,Third Party Payments,473101,Purchase of Care,18-Jul-13,2621712-1350546D,907.15,THOMPSON & HOWE LTD.
Adults Wellbeing and Health,Head of Adults,Third Party Payments,473101,Purchase of Care,18-Jul-13,2621712-1350547D,629.56,THOMPSON & HOWE LTD.
Adults Wellbeing and Health,Head of Adults,Third Party Payments,473101,Purchase of Care,18-Jul-13,2621712-1350707D,"2,161.60",THOMPSON & HOWE LTD.
Adults Wellbeing and Health,Head of Adults,Third Party Payments,473101,Purchase of Care,18-Jul-13,2621712-1350709D,705,THOMPSON & HOWE LTD.
Adults Wellbeing and Health,Head of Adults,Third Party Payments,473101,Purchase of Care,18-Jul-13,2621712-1350713D,853.37,THOMPSON & HOWE LTD.
Adults Wellbeing and Health,Head of Adults,Third Party Payments,473101,Purchase of Care,18-Jul-13,2621712-1350724D,532.21,THOMPSON & HOWE LTD.
Adults Wellbeing and Health,Head of Adults,Third Party Payments,473101,Purchase of Care,18-Jul-13,2621712-1350733D,"1,292.52",THOMPSON & HOWE LTD.
Adults Wellbeing and Health,Head of Adults,Third Party Payments,473101,Purchase of Care,18-Jul-13,2621713-1344702D,"4,742.00",THORNBECK COLLEGE.
Adults Wellbeing and Health,Head of Adults,Third Party Payments,473101,Purchase of Care,18-Jul-13,2621713-1345929D,"2,630.40",THORNBECK COLLEGE.
Adults Wellbeing and Health,Head of Adults,Third Party Payments,473101,Purchase of Care,18-Jul-13,2621713-1345960D,"4,504.20",THORNBECK COLLEGE.
Adults Wellbeing and Health,Head of Adults,Third Party Payments,473101,Purchase of Care,18-Jul-13,2621713-1346003D,"3,527.80",THORNBECK COLLEGE.
Adults Wellbeing and Health,Head of Adults,Third Party Payments,473101,Purchase of Care,18-Jul-13,2621713-1346148D,"2,812.60",THORNBECK COLLEGE.
Adults Wellbeing and Health,Head of Adults,Third Party Payments,473101,Purchase of Care,18-Jul-13,2621792-1343839D,"1,514.40",VOID SERVICES LTD.
Adults Wellbeing and Health,Head of Adults,Third Party Payments,473101,Purchase of Care,18-Jul-13,2621792-1343945D,815.2,VOID SERVICES LTD.
Adults Wellbeing and Health,Head of Adults,Third Party Payments,473101,Purchase of Care,18-Jul-13,2621792-1344502D,"1,836.88",VOID SERVICES LTD.
Adults Wellbeing and Health,Head of Adults,Third Party Payments,473101,Purchase of Care,18-Jul-13,2621792-1345164D,"1,222.80",VOID SERVICES LTD.
Adults Wellbeing and Health,Head of Adults,Third Party Payments,473101,Purchase of Care,18-Jul-13,2621804-1347635D,555.04,WEAR VALLEY ANGLING.
Adults Wellbeing and Health,Head of Adults,Third Party Payments,473101,Purchase of Care,18-Jul-13,2621833-1344654D,620,WOODCRAFT FOR LANDSCAPES.
Adults Wellbeing and Health,Head of Adults,Third Party Payments,473101,Purchase of Care,18-Jul-13,2621833-1344819D,620,WOODCRAFT FOR LANDSCAPES.
Adults Wellbeing and Health,Head of Adults,Third Party Payments,473101,Purchase of Care,18-Jul-13,2621833-1350738D,"1,189.50",WOODCRAFT FOR LANDSCAPES.
Adults Wellbeing and Health,Head of Adults,Third Party Payments,473101,Purchase of Care,18-Jul-13,2621847-1345879D,639.73,YODEN LODGE CARE HOME.
Adults Wellbeing and Health,Head of Adults,Third Party Payments,472101,Purchase of Care,18-Jul-13,2619475-1344198H,539.72,360 HEALTHCARE LTD.
Adults Wellbeing and Health,Head of Adults,Third Party Payments,472101,Purchase of Care,18-Jul-13,2619475-1344391H,887.2,360 HEALTHCARE LTD.
Adults Wellbeing and Health,Head of Adults,Third Party Payments,472101,Purchase of Care,18-Jul-13,2619475-1344445H,"1,035.08",360 HEALTHCARE LTD.
Adults Wellbeing and Health,Head of Adults,Third Party Payments,472101,Purchase of Care,18-Jul-13,2619475-1344885H,"1,205.12",360 HEALTHCARE LTD.
Adults Wellbeing and Health,Head of Adults,Third Party Payments,472101,Purchase of Care,18-Jul-13,2619475-1344892H,"1,583.10",360 HEALTHCARE LTD.
Adults Wellbeing and Health,Head of Adults,Third Party Payments,472101,Purchase of Care,18-Jul-13,2619475-1346589H,562.82,360 HEALTHCARE LTD.
Adults Wellbeing and Health,Head of Adults,Third Party Payments,472101,Purchase of Care,18-Jul-13,2619475-1346703H,643.24,360 HEALTHCARE LTD.
Adults Wellbeing and Health,Head of Adults,Third Party Payments,472101,Purchase of Care,18-Jul-13,2619475-1346958H,510.16,360 HEALTHCARE LTD.
Adults Wellbeing and Health,Head of Adults,Third Party Payments,472101,Purchase of Care,18-Jul-13,2619475-1347209H,618.27,360 HEALTHCARE LTD.
Adults Wellbeing and Health,Head of Adults,Third Party Payments,472101,Purchase of Care,18-Jul-13,2619475-1347312H,"1,127.48",360 HEALTHCARE LTD.
Adults Wellbeing and Health,Head of Adults,Third Party Payments,472101,Purchase of Care,18-Jul-13,2619475-1347571H,"1,449.08",360 HEALTHCARE LTD.
Adults Wellbeing and Health,Head of Adults,Third Party Payments,472101,Purchase of Care,18-Jul-13,2619475-1347700H,953.76,360 HEALTHCARE LTD.
Adults Wellbeing and Health,Head of Adults,Third Party Payments,472101,Purchase of Care,18-Jul-13,2619475-1347726H,502.76,360 HEALTHCARE LTD.
Adults Wellbeing and Health,Head of Adults,Third Party Payments,472101,Purchase of Care,18-Jul-13,2619475-1347809H,743.04,360 HEALTHCARE LTD.
Adults Wellbeing and Health,Head of Adults,Third Party Payments,472101,Purchase of Care,18-Jul-13,2619475-1347881H,635.84,360 HEALTHCARE LTD.
Adults Wellbeing and Health,Head of Adults,Third Party Payments,472101,Purchase of Care,18-Jul-13,2619475-1348067H,754.12,360 HEALTHCARE LTD.
Adults Wellbeing and Health,Head of Adults,Third Party Payments,472101,Purchase of Care,18-Jul-13,2619475-1348695H,"1,219.92",360 HEALTHCARE LTD.
Adults Wellbeing and Health,Head of Adults,Third Party Payments,472101,Purchase of Care,18-Jul-13,2619475-1348733H,672.8,360 HEALTHCARE LTD.
Adults Wellbeing and Health,Head of Adults,Third Party Payments,472101,Purchase of Care,18-Jul-13,2619475-1349185H,621.04,360 HEALTHCARE LTD.
Adults Wellbeing and Health,Head of Adults,Third Party Payments,472101,Purchase of Care,18-Jul-13,2619475-1349788H,573,360 HEALTHCARE LTD.
Adults Wellbeing and Health,Head of Adults,Third Party Payments,472101,Purchase of Care,18-Jul-13,2619475-1349809H,746.72,360 HEALTHCARE LTD.
Adults Wellbeing and Health,Head of Adults,Third Party Payments,472101,Purchase of Care,18-Jul-13,2619475-1349878H,931.56,360 HEALTHCARE LTD.
Adults Wellbeing and Health,Head of Adults,Third Party Payments,472101,Purchase of Care,18-Jul-13,2619475-1349884H,543.4,360 HEALTHCARE LTD.
Adults Wellbeing and Health,Head of Adults,Third Party Payments,472101,Purchase of Care,18-Jul-13,2619475-1350068H,931.56,360 HEALTHCARE LTD.
Adults Wellbeing and Health,Head of Adults,Third Party Payments,472101,Purchase of Care,18-Jul-13,2619475-1350171H,956.52,360 HEALTHCARE LTD.
Adults Wellbeing and Health,Head of Adults,Third Party Payments,472101,Purchase of Care,18-Jul-13,2619475-1350548H,"1,508.24",360 HEALTHCARE LTD.
Adults Wellbeing and Health,Head of Adults,Third Party Payments,472101,Purchase of Care,18-Jul-13,2619492-1345163H,"3,964.00",ACCEPT CARE LTD.
Adults Wellbeing and Health,Head of Adults,Third Party Payments,472101,Purchase of Care,18-Jul-13,2619492-1346146H,672,ACCEPT CARE LTD.
Adults Wellbeing and Health,Head of Adults,Third Party Payments,472101,Purchase of Care,18-Jul-13,2619913-1344258H,"1,386.24",APPLEJACK HOME CARE LTD.
Adults Wellbeing and Health,Head of Adults,Third Party Payments,472101,Purchase of Care,18-Jul-13,2619913-1346229H,942.64,APPLEJACK HOME CARE LTD.
Adults Wellbeing and Health,Head of Adults,Third Party Payments,472101,Purchase of Care,18-Jul-13,2619913-1346309H,532.32,APPLEJACK HOME CARE LTD.
Adults Wellbeing and Health,Head of Adults,Third Party Payments,472101,Purchase of Care,18-Jul-13,2619913-1346468H,564.58,APPLEJACK HOME CARE LTD.
Adults Wellbeing and Health,Head of Adults,Third Party Payments,472101,Purchase of Care,18-Jul-13,2619913-1346919H,631.22,APPLEJACK HOME CARE LTD.
Adults Wellbeing and Health,Head of Adults,Third Party Payments,472101,Purchase of Care,18-Jul-13,2619913-1347315H,575.76,APPLEJACK HOME CARE LTD.
Adults Wellbeing and Health,Head of Adults,Third Party Payments,472101,Purchase of Care,18-Jul-13,2619913-1347623H,661.71,APPLEJACK HOME CARE LTD.
Adults Wellbeing and Health,Head of Adults,Third Party Payments,472101,Purchase of Care,18-Jul-13,2619913-1347643H,"1,563.68",APPLEJACK HOME CARE LTD.
Adults Wellbeing and Health,Head of Adults,Third Party Payments,472101,Purchase of Care,18-Jul-13,2619913-1347704H,652.2,APPLEJACK HOME CARE LTD.
Adults Wellbeing and Health,Head of Adults,Third Party Payments,472101,Purchase of Care,18-Jul-13,2619913-1348062H,584.08,APPLEJACK HOME CARE LTD.
Adults Wellbeing and Health,Head of Adults,Third Party Payments,472101,Purchase of Care,18-Jul-13,2619913-1348171H,847.47,APPLEJACK HOME CARE LTD.
Adults Wellbeing and Health,Head of Adults,Third Party Payments,472101,Purchase of Care,18-Jul-13,2619913-1348182H,731.96,APPLEJACK HOME CARE LTD.
Adults Wellbeing and Health,Head of Adults,Third Party Payments,472101,Purchase of Care,18-Jul-13,2619913-1348415H,519.95,APPLEJACK HOME CARE LTD.
Adults Wellbeing and Health,Head of Adults,Third Party Payments,472101,Purchase of Care,18-Jul-13,2619913-1348446H,565.59,APPLEJACK HOME CARE LTD.
Adults Wellbeing and Health,Head of Adults,Third Party Payments,472101,Purchase of Care,18-Jul-13,2619913-1348531H,"1,079.44",APPLEJACK HOME CARE LTD.
Adults Wellbeing and Health,Head of Adults,Third Party Payments,472101,Purchase of Care,18-Jul-13,2619913-1348546H,707.9,APPLEJACK HOME CARE LTD.
Adults Wellbeing and Health,Head of Adults,Third Party Payments,472101,Purchase of Care,18-Jul-13,2619913-1348811H,772.2,APPLEJACK HOME CARE LTD.
Adults Wellbeing and Health,Head of Adults,Third Party Payments,472101,Purchase of Care,18-Jul-13,2619913-1348989H,577.8,APPLEJACK HOME CARE LTD.
Adults Wellbeing and Health,Head of Adults,Third Party Payments,472101,Purchase of Care,18-Jul-13,2619913-1348994H,576.68,APPLEJACK HOME CARE LTD.
Adults Wellbeing and Health,Head of Adults,Third Party Payments,472101,Purchase of Care,18-Jul-13,2619913-1349047H,693.77,APPLEJACK HOME CARE LTD.
Adults Wellbeing and Health,Head of Adults,Third Party Payments,472101,Purchase of Care,18-Jul-13,2619913-1349049H,633.06,APPLEJACK HOME CARE LTD.
Adults Wellbeing and Health,Head of Adults,Third Party Payments,472101,Purchase of Care,18-Jul-13,2619913-1349115H,539.72,APPLEJACK HOME CARE LTD.
Adults Wellbeing and Health,Head of Adults,Third Party Payments,472101,Purchase of Care,18-Jul-13,2619913-1349275H,709.76,APPLEJACK HOME CARE LTD.
Adults Wellbeing and Health,Head of Adults,Third Party Payments,472101,Purchase of Care,18-Jul-13,2619913-1349307H,687.6,APPLEJACK HOME CARE LTD.
Adults Wellbeing and Health,Head of Adults,Third Party Payments,472101,Purchase of Care,18-Jul-13,2619913-1349567H,505.68,APPLEJACK HOME CARE LTD.
Adults Wellbeing and Health,Head of Adults,Third Party Payments,472101,Purchase of Care,18-Jul-13,2619913-1349833H,662.63,APPLEJACK HOME CARE LTD.
Adults Wellbeing and Health,Head of Adults,Third Party Payments,472101,Purchase of Care,18-Jul-13,2619913-1349845H,"1,776.60",APPLEJACK HOME CARE LTD.
Adults Wellbeing and Health,Head of Adults,Third Party Payments,472101,Purchase of Care,18-Jul-13,2619913-1349959H,510.88,APPLEJACK HOME CARE LTD.
Adults Wellbeing and Health,Head of Adults,Third Party Payments,472101,Purchase of Care,18-Jul-13,2619913-1350008H,952.94,APPLEJACK HOME CARE LTD.
Adults Wellbeing and Health,Head of Adults,Third Party Payments,472101,Purchase of Care,18-Jul-13,2619913-1350088H,"1,543.56",APPLEJACK HOME CARE LTD.
Adults Wellbeing and Health,Head of Adults,Third Party Payments,472101,Purchase of Care,18-Jul-13,2619913-1350235H,539.72,APPLEJACK HOME CARE LTD.
Adults Wellbeing and Health,Head of Adults,Third Party Payments,472101,Purchase of Care,18-Jul-13,2619913-1350252H,720.86,APPLEJACK HOME CARE LTD.
Adults Wellbeing and Health,Head of Adults,Third Party Payments,472101,Purchase of Care,18-Jul-13,2619913-1350260H,804.4,APPLEJACK HOME CARE LTD.
Adults Wellbeing and Health,Head of Adults,Third Party Payments,472101,Purchase of Care,18-Jul-13,2619913-1350261H,527.2,APPLEJACK HOME CARE LTD.
Adults Wellbeing and Health,Head of Adults,Third Party Payments,472101,Purchase of Care,18-Jul-13,2619913-1350375H,"1,275.37",APPLEJACK HOME CARE LTD.
Adults Wellbeing and Health,Head of Adults,Third Party Payments,472101,Purchase of Care,18-Jul-13,2620014-1344787H,575,BOLTONSHAW HOMECARE.
Adults Wellbeing and Health,Head of Adults,Third Party Payments,472101,Purchase of Care,18-Jul-13,2620014-1345220H,"1,951.80",BOLTONSHAW HOMECARE.
Adults Wellbeing and Health,Head of Adults,Third Party Payments,472101,Purchase of Care,18-Jul-13,2620014-1346094H,840,BOLTONSHAW HOMECARE.
Adults Wellbeing and Health,Head of Adults,Third Party Payments,472101,Purchase of Care,18-Jul-13,2620062-1346577H,749.04,CARE CONCERN (DURHAM) LTD.
Adults Wellbeing and Health,Head of Adults,Third Party Payments,472101,Purchase of Care,18-Jul-13,2620062-1347079H,"1,185.11",CARE CONCERN (DURHAM) LTD.
Adults Wellbeing and Health,Head of Adults,Third Party Payments,472101,Purchase of Care,18-Jul-13,2620062-1347190H,538.04,CARE CONCERN (DURHAM) LTD.
Adults Wellbeing and Health,Head of Adults,Third Party Payments,472101,Purchase of Care,18-Jul-13,2620062-1348904H,671.69,CARE CONCERN (DURHAM) LTD.
Adults Wellbeing and Health,Head of Adults,Third Party Payments,472101,Purchase of Care,18-Jul-13,2620062-1349407H,"1,118.32",CARE CONCERN (DURHAM) LTD.
Adults Wellbeing and Health,Head of Adults,Third Party Payments,472101,Purchase of Care,18-Jul-13,2620065-1343607H,609.95,CAREWATCH (DURHAM & EASINGTON) FASTFLOW ACC.
Adults Wellbeing and Health,Head of Adults,Third Party Payments,472101,Purchase of Care,18-Jul-13,2620065-1344326H,602.56,CAREWATCH (DURHAM & EASINGTON) FASTFLOW ACC.
Adults Wellbeing and Health,Head of Adults,Third Party Payments,472101,Purchase of Care,18-Jul-13,2620065-1344331H,"1,519.33",CAREWATCH (DURHAM & EASINGTON) FASTFLOW ACC.
Adults Wellbeing and Health,Head of Adults,Third Party Payments,472101,Purchase of Care,18-Jul-13,2620065-1344339H,"1,596.96",CAREWATCH (DURHAM & EASINGTON) FASTFLOW ACC.
Adults Wellbeing and Health,Head of Adults,Third Party Payments,472101,Purchase of Care,18-Jul-13,2620065-1344361H,524.92,CAREWATCH (DURHAM & EASINGTON) FASTFLOW ACC.
Adults Wellbeing and Health,Head of Adults,Third Party Payments,472101,Purchase of Care,18-Jul-13,2620065-1344362H,"1,480.51",CAREWATCH (DURHAM & EASINGTON) FASTFLOW ACC.
Adults Wellbeing and Health,Head of Adults,Third Party Payments,472101,Purchase of Care,18-Jul-13,2620065-1344373H,654.32,CAREWATCH (DURHAM & EASINGTON) FASTFLOW ACC.
Adults Wellbeing and Health,Head of Adults,Third Party Payments,472101,Purchase of Care,18-Jul-13,2620065-1344413H,887.2,CAREWATCH (DURHAM & EASINGTON) FASTFLOW ACC.
Adults Wellbeing and Health,Head of Adults,Third Party Payments,472101,Purchase of Care,18-Jul-13,2620065-1344537H,"1,752.24",CAREWATCH (DURHAM & EASINGTON) FASTFLOW ACC.
Adults Wellbeing and Health,Head of Adults,Third Party Payments,472101,Purchase of Care,18-Jul-13,2620065-1344869H,755.96,CAREWATCH (DURHAM & EASINGTON) FASTFLOW ACC.
Adults Wellbeing and Health,Head of Adults,Third Party Payments,472101,Purchase of Care,18-Jul-13,2620065-1344889H,561.88,CAREWATCH (DURHAM & EASINGTON) FASTFLOW ACC.
Adults Wellbeing and Health,Head of Adults,Third Party Payments,472101,Purchase of Care,18-Jul-13,2620065-1344894H,687.6,CAREWATCH (DURHAM & EASINGTON) FASTFLOW ACC.
Adults Wellbeing and Health,Head of Adults,Third Party Payments,472101,Purchase of Care,18-Jul-13,2620065-1344968H,602.57,CAREWATCH (DURHAM & EASINGTON) FASTFLOW ACC.
Adults Wellbeing and Health,Head of Adults,Third Party Payments,472101,Purchase of Care,18-Jul-13,2620065-1345004H,510.15,CAREWATCH (DURHAM & EASINGTON) FASTFLOW ACC.
Adults Wellbeing and Health,Head of Adults,Third Party Payments,472101,Purchase of Care,18-Jul-13,2620065-1345015H,"1,338.20",CAREWATCH (DURHAM & EASINGTON) FASTFLOW ACC.
Adults Wellbeing and Health,Head of Adults,Third Party Payments,472101,Purchase of Care,18-Jul-13,2620065-1345411H,"1,574.80",CAREWATCH (DURHAM & EASINGTON) FASTFLOW ACC.
Adults Wellbeing and Health,Head of Adults,Third Party Payments,472101,Purchase of Care,18-Jul-13,2620065-1345442H,"2,972.12",CAREWATCH (DURHAM & EASINGTON) FASTFLOW ACC.
Adults Wellbeing and Health,Head of Adults,Third Party Payments,472101,Purchase of Care,18-Jul-13,2620065-1345485H,532.32,CAREWATCH (DURHAM & EASINGTON) FASTFLOW ACC.
Adults Wellbeing and Health,Head of Adults,Third Party Payments,472101,Purchase of Care,18-Jul-13,2620065-1345739H,"1,131.20",CAREWATCH (DURHAM & EASINGTON) FASTFLOW ACC.
Adults Wellbeing and Health,Head of Adults,Third Party Payments,472101,Purchase of Care,18-Jul-13,2620065-1345762H,"1,463.87",CAREWATCH (DURHAM & EASINGTON) FASTFLOW ACC.
Adults Wellbeing and Health,Head of Adults,Third Party Payments,472101,Purchase of Care,18-Jul-13,2620065-1345777H,"1,574.78",CAREWATCH (DURHAM & EASINGTON) FASTFLOW ACC.
Adults Wellbeing and Health,Head of Adults,Third Party Payments,472101,Purchase of Care,18-Jul-13,2620065-1345778H,588.7,CAREWATCH (DURHAM & EASINGTON) FASTFLOW ACC.
Adults Wellbeing and Health,Head of Adults,Third Party Payments,472101,Purchase of Care,18-Jul-13,2620065-1345809H,776.32,CAREWATCH (DURHAM & EASINGTON) FASTFLOW ACC.
Adults Wellbeing and Health,Head of Adults,Third Party Payments,472101,Purchase of Care,18-Jul-13,2620065-1345835H,676.5,CAREWATCH (DURHAM & EASINGTON) FASTFLOW ACC.
Adults Wellbeing and Health,Head of Adults,Third Party Payments,472101,Purchase of Care,18-Jul-13,2620065-1345837H,643.22,CAREWATCH (DURHAM & EASINGTON) FASTFLOW ACC.
Adults Wellbeing and Health,Head of Adults,Third Party Payments,472101,Purchase of Care,18-Jul-13,2620065-1345847H,687.6,CAREWATCH (DURHAM & EASINGTON) FASTFLOW ACC.
Adults Wellbeing and Health,Head of Adults,Third Party Payments,472101,Purchase of Care,18-Jul-13,2620065-1345864H,"1,164.45",CAREWATCH (DURHAM & EASINGTON) FASTFLOW ACC.
Adults Wellbeing and Health,Head of Adults,Third Party Payments,472101,Purchase of Care,18-Jul-13,2620065-1345954H,973.15,CAREWATCH (DURHAM & EASINGTON) FASTFLOW ACC.
Adults Wellbeing and Health,Head of Adults,Third Party Payments,472101,Purchase of Care,18-Jul-13,2620065-1346057H,820.68,CAREWATCH (DURHAM & EASINGTON) FASTFLOW ACC.
Adults Wellbeing and Health,Head of Adults,Third Party Payments,472101,Purchase of Care,18-Jul-13,2620065-1346093H,853.92,CAREWATCH (DURHAM & EASINGTON) FASTFLOW ACC.
Adults Wellbeing and Health,Head of Adults,Third Party Payments,472101,Purchase of Care,18-Jul-13,2620065-1346099H,510.16,CAREWATCH (DURHAM & EASINGTON) FASTFLOW ACC.
Adults Wellbeing and Health,Head of Adults,Third Party Payments,472101,Purchase of Care,18-Jul-13,2620065-1346101H,587.78,CAREWATCH (DURHAM & EASINGTON) FASTFLOW ACC.
Adults Wellbeing and Health,Head of Adults,Third Party Payments,472101,Purchase of Care,18-Jul-13,2620065-1346127H,887.2,CAREWATCH (DURHAM & EASINGTON) FASTFLOW ACC.
Adults Wellbeing and Health,Head of Adults,Third Party Payments,472101,Purchase of Care,18-Jul-13,2620065-1346175H,"1,060.96",CAREWATCH (DURHAM & EASINGTON) FASTFLOW ACC.
Adults Wellbeing and Health,Head of Adults,Third Party Payments,472101,Purchase of Care,18-Jul-13,2620065-1346278H,"2,302.10",CAREWATCH (DURHAM & EASINGTON) FASTFLOW ACC.
Adults Wellbeing and Health,Head of Adults,Third Party Payments,472101,Purchase of Care,18-Jul-13,2620065-1346428H,"1,086.84",CAREWATCH (DURHAM & EASINGTON) FASTFLOW ACC.
Adults Wellbeing and Health,Head of Adults,Third Party Payments,472101,Purchase of Care,18-Jul-13,2620065-1346459H,"1,255.94",CAREWATCH (DURHAM & EASINGTON) FASTFLOW ACC.
Adults Wellbeing and Health,Head of Adults,Third Party Payments,472101,Purchase of Care,18-Jul-13,2620065-1346498H,"1,242.08",CAREWATCH (DURHAM & EASINGTON) FASTFLOW ACC.
Adults Wellbeing and Health,Head of Adults,Third Party Payments,472101,Purchase of Care,18-Jul-13,2620065-1346503H,"1,397.36",CAREWATCH (DURHAM & EASINGTON) FASTFLOW ACC.
Adults Wellbeing and Health,Head of Adults,Third Party Payments,472101,Purchase of Care,18-Jul-13,2620065-1346524H,602.56,CAREWATCH (DURHAM & EASINGTON) FASTFLOW ACC.
Adults Wellbeing and Health,Head of Adults,Third Party Payments,472101,Purchase of Care,18-Jul-13,2620065-1346596H,"1,413.98",CAREWATCH (DURHAM & EASINGTON) FASTFLOW ACC.
Adults Wellbeing and Health,Head of Adults,Third Party Payments,472101,Purchase of Care,18-Jul-13,2620065-1346716H,"1,181.09",CAREWATCH (DURHAM & EASINGTON) FASTFLOW ACC.
Adults Wellbeing and Health,Head of Adults,Third Party Payments,472101,Purchase of Care,18-Jul-13,2620065-1346727H,"1,020.00",CAREWATCH (DURHAM & EASINGTON) FASTFLOW ACC.
Adults Wellbeing and Health,Head of Adults,Third Party Payments,472101,Purchase of Care,18-Jul-13,2620065-1346752H,"1,200.49",CAREWATCH (DURHAM & EASINGTON) FASTFLOW ACC.
Adults Wellbeing and Health,Head of Adults,Third Party Payments,472101,Purchase of Care,18-Jul-13,2620065-1346825H,987.02,CAREWATCH (DURHAM & EASINGTON) FASTFLOW ACC.
Adults Wellbeing and Health,Head of Adults,Third Party Payments,472101,Purchase of Care,18-Jul-13,2620065-1346917H,543.4,CAREWATCH (DURHAM & EASINGTON) FASTFLOW ACC.
Adults Wellbeing and Health,Head of Adults,Third Party Payments,472101,Purchase of Care,18-Jul-13,2620065-1346977H,551.73,CAREWATCH (DURHAM & EASINGTON) FASTFLOW ACC.
Adults Wellbeing and Health,Head of Adults,Third Party Payments,472101,Purchase of Care,18-Jul-13,2620065-1347087H,520.31,CAREWATCH (DURHAM & EASINGTON) FASTFLOW ACC.
Adults Wellbeing and Health,Head of Adults,Third Party Payments,472101,Purchase of Care,18-Jul-13,2620065-1347107H,"1,542.92",CAREWATCH (DURHAM & EASINGTON) FASTFLOW ACC.
Adults Wellbeing and Health,Head of Adults,Third Party Payments,472101,Purchase of Care,18-Jul-13,2620065-1347161H,573.91,CAREWATCH (DURHAM & EASINGTON) FASTFLOW ACC.
Adults Wellbeing and Health,Head of Adults,Third Party Payments,472101,Purchase of Care,18-Jul-13,2620065-1347193H,"1,707.86",CAREWATCH (DURHAM & EASINGTON) FASTFLOW ACC.
Adults Wellbeing and Health,Head of Adults,Third Party Payments,472101,Purchase of Care,18-Jul-13,2620065-1347343H,532.32,CAREWATCH (DURHAM & EASINGTON) FASTFLOW ACC.
Adults Wellbeing and Health,Head of Adults,Third Party Payments,472101,Purchase of Care,18-Jul-13,2620065-1347454H,517.52,CAREWATCH (DURHAM & EASINGTON) FASTFLOW ACC.
Adults Wellbeing and Health,Head of Adults,Third Party Payments,472101,Purchase of Care,18-Jul-13,2620065-1347566H,565.59,CAREWATCH (DURHAM & EASINGTON) FASTFLOW ACC.
Adults Wellbeing and Health,Head of Adults,Third Party Payments,472101,Purchase of Care,18-Jul-13,2620065-1347754H,655.23,CAREWATCH (DURHAM & EASINGTON) FASTFLOW ACC.
Adults Wellbeing and Health,Head of Adults,Third Party Payments,472101,Purchase of Care,18-Jul-13,2620065-1347800H,591.48,CAREWATCH (DURHAM & EASINGTON) FASTFLOW ACC.
Adults Wellbeing and Health,Head of Adults,Third Party Payments,472101,Purchase of Care,18-Jul-13,2620065-1347855H,"1,425.07",CAREWATCH (DURHAM & EASINGTON) FASTFLOW ACC.
Adults Wellbeing and Health,Head of Adults,Third Party Payments,472101,Purchase of Care,18-Jul-13,2620065-1347923H,528.62,CAREWATCH (DURHAM & EASINGTON) FASTFLOW ACC.
Adults Wellbeing and Health,Head of Adults,Third Party Payments,472101,Purchase of Care,18-Jul-13,2620065-1347957H,"1,086.84",CAREWATCH (DURHAM & EASINGTON) FASTFLOW ACC.
Adults Wellbeing and Health,Head of Adults,Third Party Payments,472101,Purchase of Care,18-Jul-13,2620065-1347995H,"1,397.36",CAREWATCH (DURHAM & EASINGTON) FASTFLOW ACC.
Adults Wellbeing and Health,Head of Adults,Third Party Payments,472101,Purchase of Care,18-Jul-13,2620065-1348198H,665.4,CAREWATCH (DURHAM & EASINGTON) FASTFLOW ACC.
Adults Wellbeing and Health,Head of Adults,Third Party Payments,472101,Purchase of Care,18-Jul-13,2620065-1348222H,598.88,CAREWATCH (DURHAM & EASINGTON) FASTFLOW ACC.
Adults Wellbeing and Health,Head of Adults,Third Party Payments,472101,Purchase of Care,18-Jul-13,2620065-1348344H,643.24,CAREWATCH (DURHAM & EASINGTON) FASTFLOW ACC.
Adults Wellbeing and Health,Head of Adults,Third Party Payments,472101,Purchase of Care,18-Jul-13,2620065-1348359H,682.04,CAREWATCH (DURHAM & EASINGTON) FASTFLOW ACC.
Adults Wellbeing and Health,Head of Adults,Third Party Payments,472101,Purchase of Care,18-Jul-13,2620065-1348362H,"1,125.65",CAREWATCH (DURHAM & EASINGTON) FASTFLOW ACC.
Adults Wellbeing and Health,Head of Adults,Third Party Payments,472101,Purchase of Care,18-Jul-13,2620065-1348654H,621.04,CAREWATCH (DURHAM & EASINGTON) FASTFLOW ACC.
Adults Wellbeing and Health,Head of Adults,Third Party Payments,472101,Purchase of Care,18-Jul-13,2620065-1348670H,621.04,CAREWATCH (DURHAM & EASINGTON) FASTFLOW ACC.
Adults Wellbeing and Health,Head of Adults,Third Party Payments,472101,Purchase of Care,18-Jul-13,2620065-1348849H,569.28,CAREWATCH (DURHAM & EASINGTON) FASTFLOW ACC.
Adults Wellbeing and Health,Head of Adults,Third Party Payments,472101,Purchase of Care,18-Jul-13,2620065-1348852H,687.59,CAREWATCH (DURHAM & EASINGTON) FASTFLOW ACC.
Adults Wellbeing and Health,Head of Adults,Third Party Payments,472101,Purchase of Care,18-Jul-13,2620065-1348947H,"1,530.44",CAREWATCH (DURHAM & EASINGTON) FASTFLOW ACC.
Adults Wellbeing and Health,Head of Adults,Third Party Payments,472101,Purchase of Care,18-Jul-13,2620065-1348961H,669.08,CAREWATCH (DURHAM & EASINGTON) FASTFLOW ACC.
Adults Wellbeing and Health,Head of Adults,Third Party Payments,472101,Purchase of Care,18-Jul-13,2620065-1349015H,754.12,CAREWATCH (DURHAM & EASINGTON) FASTFLOW ACC.
Adults Wellbeing and Health,Head of Adults,Third Party Payments,472101,Purchase of Care,18-Jul-13,2620065-1349158H,687.6,CAREWATCH (DURHAM & EASINGTON) FASTFLOW ACC.
Adults Wellbeing and Health,Head of Adults,Third Party Payments,472101,Purchase of Care,18-Jul-13,2620065-1349197H,729.18,CAREWATCH (DURHAM & EASINGTON) FASTFLOW ACC.
Adults Wellbeing and Health,Head of Adults,Third Party Payments,472101,Purchase of Care,18-Jul-13,2620065-1349279H,691.28,CAREWATCH (DURHAM & EASINGTON) FASTFLOW ACC.
Adults Wellbeing and Health,Head of Adults,Third Party Payments,472101,Purchase of Care,18-Jul-13,2620065-1349345H,707.91,CAREWATCH (DURHAM & EASINGTON) FASTFLOW ACC.
Adults Wellbeing and Health,Head of Adults,Third Party Payments,472101,Purchase of Care,18-Jul-13,2620065-1349358H,621.04,CAREWATCH (DURHAM & EASINGTON) FASTFLOW ACC.
Adults Wellbeing and Health,Head of Adults,Third Party Payments,472101,Purchase of Care,18-Jul-13,2620065-1349524H,837.3,CAREWATCH (DURHAM & EASINGTON) FASTFLOW ACC.
Adults Wellbeing and Health,Head of Adults,Third Party Payments,472101,Purchase of Care,18-Jul-13,2620065-1349724H,554.5,CAREWATCH (DURHAM & EASINGTON) FASTFLOW ACC.
Adults Wellbeing and Health,Head of Adults,Third Party Payments,472101,Purchase of Care,18-Jul-13,2620065-1349727H,584.07,CAREWATCH (DURHAM & EASINGTON) FASTFLOW ACC.
Adults Wellbeing and Health,Head of Adults,Third Party Payments,472101,Purchase of Care,18-Jul-13,2620065-1349899H,643.24,CAREWATCH (DURHAM & EASINGTON) FASTFLOW ACC.
Adults Wellbeing and Health,Head of Adults,Third Party Payments,472101,Purchase of Care,18-Jul-13,2620065-1349917H,502.76,CAREWATCH (DURHAM & EASINGTON) FASTFLOW ACC.
Adults Wellbeing and Health,Head of Adults,Third Party Payments,472101,Purchase of Care,18-Jul-13,2620065-1349938H,"1,286.44",CAREWATCH (DURHAM & EASINGTON) FASTFLOW ACC.
Adults Wellbeing and Health,Head of Adults,Third Party Payments,472101,Purchase of Care,18-Jul-13,2620065-1350030H,576.68,CAREWATCH (DURHAM & EASINGTON) FASTFLOW ACC.
Adults Wellbeing and Health,Head of Adults,Third Party Payments,472101,Purchase of Care,18-Jul-13,2620065-1350168H,532.32,CAREWATCH (DURHAM & EASINGTON) FASTFLOW ACC.
Adults Wellbeing and Health,Head of Adults,Third Party Payments,472101,Purchase of Care,18-Jul-13,2620065-1350254H,604.42,CAREWATCH (DURHAM & EASINGTON) FASTFLOW ACC.
Adults Wellbeing and Health,Head of Adults,Third Party Payments,472101,Purchase of Care,18-Jul-13,2620065-1350280H,628.44,CAREWATCH (DURHAM & EASINGTON) FASTFLOW ACC.
Adults Wellbeing and Health,Head of Adults,Third Party Payments,472101,Purchase of Care,18-Jul-13,2620065-1350287H,604.42,CAREWATCH (DURHAM & EASINGTON) FASTFLOW ACC.
Adults Wellbeing and Health,Head of Adults,Third Party Payments,472101,Purchase of Care,18-Jul-13,2620065-1350293H,517.52,CAREWATCH (DURHAM & EASINGTON) FASTFLOW ACC.
Adults Wellbeing and Health,Head of Adults,Third Party Payments,472101,Purchase of Care,18-Jul-13,2620065-1350327H,665.4,CAREWATCH (DURHAM & EASINGTON) FASTFLOW ACC.
Adults Wellbeing and Health,Head of Adults,Third Party Payments,472101,Purchase of Care,18-Jul-13,2620080-1345631H,"1,055.90",CASTLE CARE TEESDALE LTD.
Adults Wellbeing and Health,Head of Adults,Third Party Payments,472101,Purchase of Care,18-Jul-13,2620080-1348203H,896.76,CASTLE CARE TEESDALE LTD.
Adults Wellbeing and Health,Head of Adults,Third Party Payments,472101,Purchase of Care,18-Jul-13,2620080-1348243H,"1,455.92",CASTLE CARE TEESDALE LTD.
Adults Wellbeing and Health,Head of Adults,Third Party Payments,472101,Purchase of Care,18-Jul-13,2620080-1349836H,770.17,CASTLE CARE TEESDALE LTD.
Adults Wellbeing and Health,Head of Adults,Third Party Payments,472101,Purchase of Care,18-Jul-13,2620160-1343718H,591.48,COMFORT CALL LTD.
Adults Wellbeing and Health,Head of Adults,Third Party Payments,472101,Purchase of Care,18-Jul-13,2620160-1343837H,820.68,COMFORT CALL LTD.
Adults Wellbeing and Health,Head of Adults,Third Party Payments,472101,Purchase of Care,18-Jul-13,2620160-1344315H,"1,027.66",COMFORT CALL LTD.
Adults Wellbeing and Health,Head of Adults,Third Party Payments,472101,Purchase of Care,18-Jul-13,2620160-1344356H,909.38,COMFORT CALL LTD.
Adults Wellbeing and Health,Head of Adults,Third Party Payments,472101,Purchase of Care,18-Jul-13,2620160-1344375H,517.52,COMFORT CALL LTD.
Adults Wellbeing and Health,Head of Adults,Third Party Payments,472101,Purchase of Care,18-Jul-13,2620160-1344383H,737.49,COMFORT CALL LTD.
Adults Wellbeing and Health,Head of Adults,Third Party Payments,472101,Purchase of Care,18-Jul-13,2620160-1344479H,842.84,COMFORT CALL LTD.
Adults Wellbeing and Health,Head of Adults,Third Party Payments,472101,Purchase of Care,18-Jul-13,2620160-1344482H,510.16,COMFORT CALL LTD.
Adults Wellbeing and Health,Head of Adults,Third Party Payments,472101,Purchase of Care,18-Jul-13,2620160-1344799H,"1,133.97",COMFORT CALL LTD.
Adults Wellbeing and Health,Head of Adults,Third Party Payments,472101,Purchase of Care,18-Jul-13,2620160-1344905H,524,COMFORT CALL LTD.
Adults Wellbeing and Health,Head of Adults,Third Party Payments,472101,Purchase of Care,18-Jul-13,2620160-1344939H,"1,269.82",COMFORT CALL LTD.
Adults Wellbeing and Health,Head of Adults,Third Party Payments,472101,Purchase of Care,18-Jul-13,2620160-1345726H,571.14,COMFORT CALL LTD.
Adults Wellbeing and Health,Head of Adults,Third Party Payments,472101,Purchase of Care,18-Jul-13,2620160-1345729H,"3,105.20",COMFORT CALL LTD.
Adults Wellbeing and Health,Head of Adults,Third Party Payments,472101,Purchase of Care,18-Jul-13,2620160-1345738H,571.15,COMFORT CALL LTD.
Adults Wellbeing and Health,Head of Adults,Third Party Payments,472101,Purchase of Care,18-Jul-13,2620160-1345741H,942.66,COMFORT CALL LTD.
Adults Wellbeing and Health,Head of Adults,Third Party Payments,472101,Purchase of Care,18-Jul-13,2620160-1345797H,"1,269.82",COMFORT CALL LTD.
Adults Wellbeing and Health,Head of Adults,Third Party Payments,472101,Purchase of Care,18-Jul-13,2620160-1345801H,609.96,COMFORT CALL LTD.
Adults Wellbeing and Health,Head of Adults,Third Party Payments,472101,Purchase of Care,18-Jul-13,2620160-1345810H,506.44,COMFORT CALL LTD.
Adults Wellbeing and Health,Head of Adults,Third Party Payments,472101,Purchase of Care,18-Jul-13,2620160-1345824H,510.16,COMFORT CALL LTD.
Adults Wellbeing and Health,Head of Adults,Third Party Payments,472101,Purchase of Care,18-Jul-13,2620160-1345844H,502.76,COMFORT CALL LTD.
Adults Wellbeing and Health,Head of Adults,Third Party Payments,472101,Purchase of Care,18-Jul-13,2620160-1345852H,"1,027.68",COMFORT CALL LTD.
Adults Wellbeing and Health,Head of Adults,Third Party Payments,472101,Purchase of Care,18-Jul-13,2620160-1345855H,"1,081.29",COMFORT CALL LTD.
Adults Wellbeing and Health,Head of Adults,Third Party Payments,472101,Purchase of Care,18-Jul-13,2620160-1345933H,720.84,COMFORT CALL LTD.
Adults Wellbeing and Health,Head of Adults,Third Party Payments,472101,Purchase of Care,18-Jul-13,2620160-1345955H,507.37,COMFORT CALL LTD.
Adults Wellbeing and Health,Head of Adults,Third Party Payments,472101,Purchase of Care,18-Jul-13,2620160-1345966H,657.09,COMFORT CALL LTD.
Adults Wellbeing and Health,Head of Adults,Third Party Payments,472101,Purchase of Care,18-Jul-13,2620160-1345967H,"1,397.36",COMFORT CALL LTD.
Adults Wellbeing and Health,Head of Adults,Third Party Payments,472101,Purchase of Care,18-Jul-13,2620160-1345973H,"1,449.08",COMFORT CALL LTD.
Adults Wellbeing and Health,Head of Adults,Third Party Payments,472101,Purchase of Care,18-Jul-13,2620160-1345974H,613.64,COMFORT CALL LTD.
Adults Wellbeing and Health,Head of Adults,Third Party Payments,472101,Purchase of Care,18-Jul-13,2620160-1346039H,543.4,COMFORT CALL LTD.
Adults Wellbeing and Health,Head of Adults,Third Party Payments,472101,Purchase of Care,18-Jul-13,2620160-1346078H,774.45,COMFORT CALL LTD.
Adults Wellbeing and Health,Head of Adults,Third Party Payments,472101,Purchase of Care,18-Jul-13,2620160-1346211H,523.09,COMFORT CALL LTD.
Adults Wellbeing and Health,Head of Adults,Third Party Payments,472101,Purchase of Care,18-Jul-13,2620160-1346224H,510.16,COMFORT CALL LTD.
Adults Wellbeing and Health,Head of Adults,Third Party Payments,472101,Purchase of Care,18-Jul-13,2620160-1346239H,643.24,COMFORT CALL LTD.
Adults Wellbeing and Health,Head of Adults,Third Party Payments,472101,Purchase of Care,18-Jul-13,2620160-1346312H,"1,242.08",COMFORT CALL LTD.
Adults Wellbeing and Health,Head of Adults,Third Party Payments,472101,Purchase of Care,18-Jul-13,2620160-1346353H,517.52,COMFORT CALL LTD.
Adults Wellbeing and Health,Head of Adults,Third Party Payments,472101,Purchase of Care,18-Jul-13,2620160-1346397H,787.4,COMFORT CALL LTD.
Adults Wellbeing and Health,Head of Adults,Third Party Payments,472101,Purchase of Care,18-Jul-13,2620160-1346437H,543.42,COMFORT CALL LTD.
Adults Wellbeing and Health,Head of Adults,Third Party Payments,472101,Purchase of Care,18-Jul-13,2620160-1346487H,876.12,COMFORT CALL LTD.
Adults Wellbeing and Health,Head of Adults,Third Party Payments,472101,Purchase of Care,18-Jul-13,2620160-1346552H,"1,208.81",COMFORT CALL LTD.
Adults Wellbeing and Health,Head of Adults,Third Party Payments,472101,Purchase of Care,18-Jul-13,2620160-1346597H,931.58,COMFORT CALL LTD.
Adults Wellbeing and Health,Head of Adults,Third Party Payments,472101,Purchase of Care,18-Jul-13,2620160-1346712H,626.6,COMFORT CALL LTD.
Adults Wellbeing and Health,Head of Adults,Third Party Payments,472101,Purchase of Care,18-Jul-13,2620160-1346723H,580.36,COMFORT CALL LTD.
Adults Wellbeing and Health,Head of Adults,Third Party Payments,472101,Purchase of Care,18-Jul-13,2620160-1346942H,510.16,COMFORT CALL LTD.
Adults Wellbeing and Health,Head of Adults,Third Party Payments,472101,Purchase of Care,18-Jul-13,2620160-1346946H,743.03,COMFORT CALL LTD.
Adults Wellbeing and Health,Head of Adults,Third Party Payments,472101,Purchase of Care,18-Jul-13,2620160-1346961H,809.56,COMFORT CALL LTD.
Adults Wellbeing and Health,Head of Adults,Third Party Payments,472101,Purchase of Care,18-Jul-13,2620160-1347134H,621.04,COMFORT CALL LTD.
Adults Wellbeing and Health,Head of Adults,Third Party Payments,472101,Purchase of Care,18-Jul-13,2620160-1347234H,794.8,COMFORT CALL LTD.
Adults Wellbeing and Health,Head of Adults,Third Party Payments,472101,Purchase of Care,18-Jul-13,2620160-1347237H,607.19,COMFORT CALL LTD.
Adults Wellbeing and Health,Head of Adults,Third Party Payments,472101,Purchase of Care,18-Jul-13,2620160-1347338H,"1,513.79",COMFORT CALL LTD.
Adults Wellbeing and Health,Head of Adults,Third Party Payments,472101,Purchase of Care,18-Jul-13,2620160-1347388H,665.4,COMFORT CALL LTD.
Adults Wellbeing and Health,Head of Adults,Third Party Payments,472101,Purchase of Care,18-Jul-13,2620160-1347460H,646,COMFORT CALL LTD.
Adults Wellbeing and Health,Head of Adults,Third Party Payments,472101,Purchase of Care,18-Jul-13,2620160-1347563H,"1,027.68",COMFORT CALL LTD.
Adults Wellbeing and Health,Head of Adults,Third Party Payments,472101,Purchase of Care,18-Jul-13,2620160-1347579H,"1,308.64",COMFORT CALL LTD.
Adults Wellbeing and Health,Head of Adults,Third Party Payments,472101,Purchase of Care,18-Jul-13,2620160-1347668H,754.12,COMFORT CALL LTD.
Adults Wellbeing and Health,Head of Adults,Third Party Payments,472101,Purchase of Care,18-Jul-13,2620160-1347909H,669.08,COMFORT CALL LTD.
Adults Wellbeing and Health,Head of Adults,Third Party Payments,472101,Purchase of Care,18-Jul-13,2620160-1348184H,579.46,COMFORT CALL LTD.
Adults Wellbeing and Health,Head of Adults,Third Party Payments,472101,Purchase of Care,18-Jul-13,2620160-1348218H,632.12,COMFORT CALL LTD.
Adults Wellbeing and Health,Head of Adults,Third Party Payments,472101,Purchase of Care,18-Jul-13,2620160-1348267H,"1,234.68",COMFORT CALL LTD.
Adults Wellbeing and Health,Head of Adults,Third Party Payments,472101,Purchase of Care,18-Jul-13,2620160-1348379H,554.52,COMFORT CALL LTD.
Adults Wellbeing and Health,Head of Adults,Third Party Payments,472101,Purchase of Care,18-Jul-13,2620160-1348408H,898.28,COMFORT CALL LTD.
Adults Wellbeing and Health,Head of Adults,Third Party Payments,472101,Purchase of Care,18-Jul-13,2620160-1348648H,621.04,COMFORT CALL LTD.
Adults Wellbeing and Health,Head of Adults,Third Party Payments,472101,Purchase of Care,18-Jul-13,2620160-1348657H,643.22,COMFORT CALL LTD.
Adults Wellbeing and Health,Head of Adults,Third Party Payments,472101,Purchase of Care,18-Jul-13,2620160-1348701H,565.59,COMFORT CALL LTD.
Adults Wellbeing and Health,Head of Adults,Third Party Payments,472101,Purchase of Care,18-Jul-13,2620160-1348936H,"1,046.16",COMFORT CALL LTD.
Adults Wellbeing and Health,Head of Adults,Third Party Payments,472101,Purchase of Care,18-Jul-13,2620160-1348953H,"1,230.99",COMFORT CALL LTD.
Adults Wellbeing and Health,Head of Adults,Third Party Payments,472101,Purchase of Care,18-Jul-13,2620160-1348992H,640.45,COMFORT CALL LTD.
Adults Wellbeing and Health,Head of Adults,Third Party Payments,472101,Purchase of Care,18-Jul-13,2620160-1349068H,517.52,COMFORT CALL LTD.
Adults Wellbeing and Health,Head of Adults,Third Party Payments,472101,Purchase of Care,18-Jul-13,2620160-1349186H,510.16,COMFORT CALL LTD.
Adults Wellbeing and Health,Head of Adults,Third Party Payments,472101,Purchase of Care,18-Jul-13,2620160-1349335H,528.64,COMFORT CALL LTD.
Adults Wellbeing and Health,Head of Adults,Third Party Payments,472101,Purchase of Care,18-Jul-13,2620160-1349364H,518.47,COMFORT CALL LTD.
Adults Wellbeing and Health,Head of Adults,Third Party Payments,472101,Purchase of Care,18-Jul-13,2620160-1349434H,762.45,COMFORT CALL LTD.
Adults Wellbeing and Health,Head of Adults,Third Party Payments,472101,Purchase of Care,18-Jul-13,2620160-1349486H,673.73,COMFORT CALL LTD.
Adults Wellbeing and Health,Head of Adults,Third Party Payments,472101,Purchase of Care,18-Jul-13,2620160-1349538H,826.21,COMFORT CALL LTD.
Adults Wellbeing and Health,Head of Adults,Third Party Payments,472101,Purchase of Care,18-Jul-13,2620160-1349659H,"1,264.28",COMFORT CALL LTD.
Adults Wellbeing and Health,Head of Adults,Third Party Payments,472101,Purchase of Care,18-Jul-13,2620160-1349673H,521.24,COMFORT CALL LTD.
Adults Wellbeing and Health,Head of Adults,Third Party Payments,472101,Purchase of Care,18-Jul-13,2620160-1349743H,872.4,COMFORT CALL LTD.
Adults Wellbeing and Health,Head of Adults,Third Party Payments,472101,Purchase of Care,18-Jul-13,2620160-1349791H,"1,020.28",COMFORT CALL LTD.
Adults Wellbeing and Health,Head of Adults,Third Party Payments,472101,Purchase of Care,18-Jul-13,2620160-1349842H,609.96,COMFORT CALL LTD.
Adults Wellbeing and Health,Head of Adults,Third Party Payments,472101,Purchase of Care,18-Jul-13,2620160-1349912H,979.62,COMFORT CALL LTD.
Adults Wellbeing and Health,Head of Adults,Third Party Payments,472101,Purchase of Care,18-Jul-13,2620160-1349943H,"1,286.44",COMFORT CALL LTD.
Adults Wellbeing and Health,Head of Adults,Third Party Payments,472101,Purchase of Care,18-Jul-13,2620160-1349990H,609.96,COMFORT CALL LTD.
Adults Wellbeing and Health,Head of Adults,Third Party Payments,472101,Purchase of Care,18-Jul-13,2620160-1350073H,"1,083.13",COMFORT CALL LTD.
Adults Wellbeing and Health,Head of Adults,Third Party Payments,472101,Purchase of Care,18-Jul-13,2620160-1350119H,"1,079.44",COMFORT CALL LTD.
Adults Wellbeing and Health,Head of Adults,Third Party Payments,472101,Purchase of Care,18-Jul-13,2620160-1350136H,567.44,COMFORT CALL LTD.
Adults Wellbeing and Health,Head of Adults,Third Party Payments,472101,Purchase of Care,18-Jul-13,2620160-1350147H,539.72,COMFORT CALL LTD.
Adults Wellbeing and Health,Head of Adults,Third Party Payments,472101,Purchase of Care,18-Jul-13,2620160-1350160H,560.04,COMFORT CALL LTD.
Adults Wellbeing and Health,Head of Adults,Third Party Payments,472101,Purchase of Care,18-Jul-13,2620160-1350194H,687.6,COMFORT CALL LTD.
Adults Wellbeing and Health,Head of Adults,Third Party Payments,472101,Purchase of Care,18-Jul-13,2620160-1350312H,"1,256.87",COMFORT CALL LTD.
Adults Wellbeing and Health,Head of Adults,Third Party Payments,472101,Purchase of Care,18-Jul-13,2620190-1347356H,672,CREATIVE SUPPORT LTD.
Adults Wellbeing and Health,Head of Adults,Third Party Payments,472101,Purchase of Care,18-Jul-13,2620190-1350608H,768,CREATIVE SUPPORT LTD.
Adults Wellbeing and Health,Head of Adults,Third Party Payments,472101,Purchase of Care,18-Jul-13,2620190-1350687H,"1,488.00",CREATIVE SUPPORT LTD.
Adults Wellbeing and Health,Head of Adults,Third Party Payments,472101,Purchase of Care,18-Jul-13,2620190-1350715H,900,CREATIVE SUPPORT LTD.
Adults Wellbeing and Health,Head of Adults,Third Party Payments,472101,Purchase of Care,18-Jul-13,2620191-1344353H,"1,861.40",CRESCENT HOMECARE LTD.
Adults Wellbeing and Health,Head of Adults,Third Party Payments,472101,Purchase of Care,18-Jul-13,2620191-1348418H,525.88,CRESCENT HOMECARE LTD.
Adults Wellbeing and Health,Head of Adults,Third Party Payments,472101,Purchase of Care,18-Jul-13,2620191-1349222H,"1,857.60",CRESCENT HOMECARE LTD.
Adults Wellbeing and Health,Head of Adults,Third Party Payments,472101,Purchase of Care,18-Jul-13,2620191-1349767H,635.6,CRESCENT HOMECARE LTD.
Adults Wellbeing and Health,Head of Adults,Third Party Payments,472101,Purchase of Care,18-Jul-13,2620201-1343620H,"1,131.18",DALE CARE LTD.
Adults Wellbeing and Health,Head of Adults,Third Party Payments,472101,Purchase of Care,18-Jul-13,2620201-1343657H,"1,319.72",DALE CARE LTD.
Adults Wellbeing and Health,Head of Adults,Third Party Payments,472101,Purchase of Care,18-Jul-13,2620201-1343690H,"1,286.44",DALE CARE LTD.
Adults Wellbeing and Health,Head of Adults,Third Party Payments,472101,Purchase of Care,18-Jul-13,2620201-1343710H,"1,386.27",DALE CARE LTD.
Adults Wellbeing and Health,Head of Adults,Third Party Payments,472101,Purchase of Care,18-Jul-13,2620201-1343711H,561.88,DALE CARE LTD.
Adults Wellbeing and Health,Head of Adults,Third Party Payments,472101,Purchase of Care,18-Jul-13,2620201-1343712H,"1,386.24",DALE CARE LTD.
Adults Wellbeing and Health,Head of Adults,Third Party Payments,472101,Purchase of Care,18-Jul-13,2620201-1343748H,632.12,DALE CARE LTD.
Adults Wellbeing and Health,Head of Adults,Third Party Payments,472101,Purchase of Care,18-Jul-13,2620201-1343761H,569.28,DALE CARE LTD.
Adults Wellbeing and Health,Head of Adults,Third Party Payments,472101,Purchase of Care,18-Jul-13,2620201-1343784H,"1,053.56",DALE CARE LTD.
Adults Wellbeing and Health,Head of Adults,Third Party Payments,472101,Purchase of Care,18-Jul-13,2620201-1343803H,698.68,DALE CARE LTD.
Adults Wellbeing and Health,Head of Adults,Third Party Payments,472101,Purchase of Care,18-Jul-13,2620201-1343823H,522.15,DALE CARE LTD.
Adults Wellbeing and Health,Head of Adults,Third Party Payments,472101,Purchase of Care,18-Jul-13,2620201-1343860H,687.6,DALE CARE LTD.
Adults Wellbeing and Health,Head of Adults,Third Party Payments,472101,Purchase of Care,18-Jul-13,2620201-1343898H,757.8,DALE CARE LTD.
Adults Wellbeing and Health,Head of Adults,Third Party Payments,472101,Purchase of Care,18-Jul-13,2620201-1343908H,937.11,DALE CARE LTD.
Adults Wellbeing and Health,Head of Adults,Third Party Payments,472101,Purchase of Care,18-Jul-13,2620201-1343931H,521.24,DALE CARE LTD.
Adults Wellbeing and Health,Head of Adults,Third Party Payments,472101,Purchase of Care,18-Jul-13,2620201-1343996H,"1,147.82",DALE CARE LTD.
Adults Wellbeing and Health,Head of Adults,Third Party Payments,472101,Purchase of Care,18-Jul-13,2620201-1344005H,701.45,DALE CARE LTD.
Adults Wellbeing and Health,Head of Adults,Third Party Payments,472101,Purchase of Care,18-Jul-13,2620201-1344020H,532.32,DALE CARE LTD.
Adults Wellbeing and Health,Head of Adults,Third Party Payments,472101,Purchase of Care,18-Jul-13,2620201-1344041H,543.4,DALE CARE LTD.
Adults Wellbeing and Health,Head of Adults,Third Party Payments,472101,Purchase of Care,18-Jul-13,2620201-1344044H,543.4,DALE CARE LTD.
Adults Wellbeing and Health,Head of Adults,Third Party Payments,472101,Purchase of Care,18-Jul-13,2620201-1344059H,584.08,DALE CARE LTD.
Adults Wellbeing and Health,Head of Adults,Third Party Payments,472101,Purchase of Care,18-Jul-13,2620201-1344092H,523.07,DALE CARE LTD.
Adults Wellbeing and Health,Head of Adults,Third Party Payments,472101,Purchase of Care,18-Jul-13,2620201-1344095H,565.6,DALE CARE LTD.
Adults Wellbeing and Health,Head of Adults,Third Party Payments,472101,Purchase of Care,18-Jul-13,2620201-1344096H,654.32,DALE CARE LTD.
Adults Wellbeing and Health,Head of Adults,Third Party Payments,472101,Purchase of Care,18-Jul-13,2620201-1344100H,"1,242.08",DALE CARE LTD.
Adults Wellbeing and Health,Head of Adults,Third Party Payments,472101,Purchase of Care,18-Jul-13,2620201-1344107H,609.96,DALE CARE LTD.
Adults Wellbeing and Health,Head of Adults,Third Party Payments,472101,Purchase of Care,18-Jul-13,2620201-1344145H,975.92,DALE CARE LTD.
Adults Wellbeing and Health,Head of Adults,Third Party Payments,472101,Purchase of Care,18-Jul-13,2620201-1344152H,585.93,DALE CARE LTD.
Adults Wellbeing and Health,Head of Adults,Third Party Payments,472101,Purchase of Care,18-Jul-13,2620201-1344164H,743.04,DALE CARE LTD.
Adults Wellbeing and Health,Head of Adults,Third Party Payments,472101,Purchase of Care,18-Jul-13,2620201-1344165H,720.84,DALE CARE LTD.
Adults Wellbeing and Health,Head of Adults,Third Party Payments,472101,Purchase of Care,18-Jul-13,2620201-1344173H,"1,818.76",DALE CARE LTD.
Adults Wellbeing and Health,Head of Adults,Third Party Payments,472101,Purchase of Care,18-Jul-13,2620201-1344194H,787.4,DALE CARE LTD.
Adults Wellbeing and Health,Head of Adults,Third Party Payments,472101,Purchase of Care,18-Jul-13,2620201-1344230H,517.52,DALE CARE LTD.
Adults Wellbeing and Health,Head of Adults,Third Party Payments,472101,Purchase of Care,18-Jul-13,2620201-1344232H,604.42,DALE CARE LTD.
Adults Wellbeing and Health,Head of Adults,Third Party Payments,472101,Purchase of Care,18-Jul-13,2620201-1344241H,"1,475.44",DALE CARE LTD.
Adults Wellbeing and Health,Head of Adults,Third Party Payments,472101,Purchase of Care,18-Jul-13,2620201-1344242H,505.04,DALE CARE LTD.
Adults Wellbeing and Health,Head of Adults,Third Party Payments,472101,Purchase of Care,18-Jul-13,2620201-1344246H,517.52,DALE CARE LTD.
Adults Wellbeing and Health,Head of Adults,Third Party Payments,472101,Purchase of Care,18-Jul-13,2620201-1344256H,554.52,DALE CARE LTD.
Adults Wellbeing and Health,Head of Adults,Third Party Payments,472101,Purchase of Care,18-Jul-13,2620201-1344266H,621.04,DALE CARE LTD.
Adults Wellbeing and Health,Head of Adults,Third Party Payments,472101,Purchase of Care,18-Jul-13,2620201-1344269H,"1,025.84",DALE CARE LTD.
Adults Wellbeing and Health,Head of Adults,Third Party Payments,472101,Purchase of Care,18-Jul-13,2620201-1344287H,"1,436.17",DALE CARE LTD.
Adults Wellbeing and Health,Head of Adults,Third Party Payments,472101,Purchase of Care,18-Jul-13,2620201-1344305H,"1,319.71",DALE CARE LTD.
Adults Wellbeing and Health,Head of Adults,Third Party Payments,472101,Purchase of Care,18-Jul-13,2620201-1344986H,981.47,DALE CARE LTD.
Adults Wellbeing and Health,Head of Adults,Third Party Payments,472101,Purchase of Care,18-Jul-13,2620201-1345025H,737.5,DALE CARE LTD.
Adults Wellbeing and Health,Head of Adults,Third Party Payments,472101,Purchase of Care,18-Jul-13,2620201-1345041H,532.33,DALE CARE LTD.
Adults Wellbeing and Health,Head of Adults,Third Party Payments,472101,Purchase of Care,18-Jul-13,2620201-1345121H,"1,596.96",DALE CARE LTD.
Adults Wellbeing and Health,Head of Adults,Third Party Payments,472101,Purchase of Care,18-Jul-13,2620201-1345133H,532.32,DALE CARE LTD.
Adults Wellbeing and Health,Head of Adults,Third Party Payments,472101,Purchase of Care,18-Jul-13,2620201-1345153H,737.49,DALE CARE LTD.
Adults Wellbeing and Health,Head of Adults,Third Party Payments,472101,Purchase of Care,18-Jul-13,2620201-1345162H,659.85,DALE CARE LTD.
Adults Wellbeing and Health,Head of Adults,Third Party Payments,472101,Purchase of Care,18-Jul-13,2620201-1345188H,"1,048.01",DALE CARE LTD.
Adults Wellbeing and Health,Head of Adults,Third Party Payments,472101,Purchase of Care,18-Jul-13,2620201-1345235H,709.76,DALE CARE LTD.
Adults Wellbeing and Health,Head of Adults,Third Party Payments,472101,Purchase of Care,18-Jul-13,2620201-1345239H,521.24,DALE CARE LTD.
Adults Wellbeing and Health,Head of Adults,Third Party Payments,472101,Purchase of Care,18-Jul-13,2620201-1345255H,584.08,DALE CARE LTD.
Adults Wellbeing and Health,Head of Adults,Third Party Payments,472101,Purchase of Care,18-Jul-13,2620201-1345257H,628.44,DALE CARE LTD.
Adults Wellbeing and Health,Head of Adults,Third Party Payments,472101,Purchase of Care,18-Jul-13,2620201-1345309H,565.6,DALE CARE LTD.
Adults Wellbeing and Health,Head of Adults,Third Party Payments,472101,Purchase of Care,18-Jul-13,2620201-1345339H,615.51,DALE CARE LTD.
Adults Wellbeing and Health,Head of Adults,Third Party Payments,472101,Purchase of Care,18-Jul-13,2620201-1345369H,892.75,DALE CARE LTD.
Adults Wellbeing and Health,Head of Adults,Third Party Payments,472101,Purchase of Care,18-Jul-13,2620201-1345392H,584.08,DALE CARE LTD.
Adults Wellbeing and Health,Head of Adults,Third Party Payments,472101,Purchase of Care,18-Jul-13,2620201-1345482H,521.24,DALE CARE LTD.
Adults Wellbeing and Health,Head of Adults,Third Party Payments,472101,Purchase of Care,18-Jul-13,2620201-1345512H,"1,397.36",DALE CARE LTD.
Adults Wellbeing and Health,Head of Adults,Third Party Payments,472101,Purchase of Care,18-Jul-13,2620201-1345528H,"1,305.80",DALE CARE LTD.
Adults Wellbeing and Health,Head of Adults,Third Party Payments,472101,Purchase of Care,18-Jul-13,2620201-1345569H,537.88,DALE CARE LTD.
Adults Wellbeing and Health,Head of Adults,Third Party Payments,472101,Purchase of Care,18-Jul-13,2620201-1345593H,"1,089.61",DALE CARE LTD.
Adults Wellbeing and Health,Head of Adults,Third Party Payments,472101,Purchase of Care,18-Jul-13,2620201-1345617H,621.04,DALE CARE LTD.
Adults Wellbeing and Health,Head of Adults,Third Party Payments,472101,Purchase of Care,18-Jul-13,2620201-1345673H,617.36,DALE CARE LTD.
Adults Wellbeing and Health,Head of Adults,Third Party Payments,472101,Purchase of Care,18-Jul-13,2620201-1345679H,676.48,DALE CARE LTD.
Adults Wellbeing and Health,Head of Adults,Third Party Payments,472101,Purchase of Care,18-Jul-13,2620201-1346016H,"1,242.08",DALE CARE LTD.
Adults Wellbeing and Health,Head of Adults,Third Party Payments,472101,Purchase of Care,18-Jul-13,2620201-1346021H,966,DALE CARE LTD.
Adults Wellbeing and Health,Head of Adults,Third Party Payments,472101,Purchase of Care,18-Jul-13,2620201-1346033H,632.12,DALE CARE LTD.
Adults Wellbeing and Health,Head of Adults,Third Party Payments,472101,Purchase of Care,18-Jul-13,2620201-1346054H,886.24,DALE CARE LTD.
Adults Wellbeing and Health,Head of Adults,Third Party Payments,472101,Purchase of Care,18-Jul-13,2620201-1346088H,569.28,DALE CARE LTD.
Adults Wellbeing and Health,Head of Adults,Third Party Payments,472101,Purchase of Care,18-Jul-13,2620201-1346135H,"1,397.36",DALE CARE LTD.
Adults Wellbeing and Health,Head of Adults,Third Party Payments,472101,Purchase of Care,18-Jul-13,2620201-1346177H,513.84,DALE CARE LTD.
Adults Wellbeing and Health,Head of Adults,Third Party Payments,472101,Purchase of Care,18-Jul-13,2620201-1346234H,646.92,DALE CARE LTD.
Adults Wellbeing and Health,Head of Adults,Third Party Payments,472101,Purchase of Care,18-Jul-13,2620201-1346257H,639.52,DALE CARE LTD.
Adults Wellbeing and Health,Head of Adults,Third Party Payments,472101,Purchase of Care,18-Jul-13,2620201-1346268H,780.72,DALE CARE LTD.
Adults Wellbeing and Health,Head of Adults,Third Party Payments,472101,Purchase of Care,18-Jul-13,2620201-1346301H,"1,619.16",DALE CARE LTD.
Adults Wellbeing and Health,Head of Adults,Third Party Payments,472101,Purchase of Care,18-Jul-13,2620201-1346319H,754.12,DALE CARE LTD.
Adults Wellbeing and Health,Head of Adults,Third Party Payments,472101,Purchase of Care,18-Jul-13,2620201-1346369H,658,DALE CARE LTD.
Adults Wellbeing and Health,Head of Adults,Third Party Payments,472101,Purchase of Care,18-Jul-13,2620201-1346383H,604.96,DALE CARE LTD.
Adults Wellbeing and Health,Head of Adults,Third Party Payments,472101,Purchase of Care,18-Jul-13,2620201-1346395H,621.04,DALE CARE LTD.
Adults Wellbeing and Health,Head of Adults,Third Party Payments,472101,Purchase of Care,18-Jul-13,2620201-1346423H,"1,604.36",DALE CARE LTD.
Adults Wellbeing and Health,Head of Adults,Third Party Payments,472101,Purchase of Care,18-Jul-13,2620201-1346444H,654.12,DALE CARE LTD.
Adults Wellbeing and Health,Head of Adults,Third Party Payments,472101,Purchase of Care,18-Jul-13,2620201-1346448H,"1,023.06",DALE CARE LTD.
Adults Wellbeing and Health,Head of Adults,Third Party Payments,472101,Purchase of Care,18-Jul-13,2620201-1346464H,778.15,DALE CARE LTD.
Adults Wellbeing and Health,Head of Adults,Third Party Payments,472101,Purchase of Care,18-Jul-13,2620201-1346472H,706.08,DALE CARE LTD.
Adults Wellbeing and Health,Head of Adults,Third Party Payments,472101,Purchase of Care,18-Jul-13,2620201-1346514H,532.32,DALE CARE LTD.
Adults Wellbeing and Health,Head of Adults,Third Party Payments,472101,Purchase of Care,18-Jul-13,2620201-1346538H,"1,391.81",DALE CARE LTD.
Adults Wellbeing and Health,Head of Adults,Third Party Payments,472101,Purchase of Care,18-Jul-13,2620201-1346544H,611.8,DALE CARE LTD.
Adults Wellbeing and Health,Head of Adults,Third Party Payments,472101,Purchase of Care,18-Jul-13,2620201-1346617H,513.84,DALE CARE LTD.
Adults Wellbeing and Health,Head of Adults,Third Party Payments,472101,Purchase of Care,18-Jul-13,2620201-1346642H,"1,397.36",DALE CARE LTD.
Adults Wellbeing and Health,Head of Adults,Third Party Payments,472101,Purchase of Care,18-Jul-13,2620201-1346678H,654.32,DALE CARE LTD.
Adults Wellbeing and Health,Head of Adults,Third Party Payments,472101,Purchase of Care,18-Jul-13,2620201-1346715H,"1,242.08",DALE CARE LTD.
Adults Wellbeing and Health,Head of Adults,Third Party Payments,472101,Purchase of Care,18-Jul-13,2620201-1346726H,654.32,DALE CARE LTD.
Adults Wellbeing and Health,Head of Adults,Third Party Payments,472101,Purchase of Care,18-Jul-13,2620201-1346817H,658,DALE CARE LTD.
Adults Wellbeing and Health,Head of Adults,Third Party Payments,472101,Purchase of Care,18-Jul-13,2620201-1346838H,772.6,DALE CARE LTD.
Adults Wellbeing and Health,Head of Adults,Third Party Payments,472101,Purchase of Care,18-Jul-13,2620201-1346854H,"1,682.92",DALE CARE LTD.
Adults Wellbeing and Health,Head of Adults,Third Party Payments,472101,Purchase of Care,18-Jul-13,2620201-1346915H,776.32,DALE CARE LTD.
Adults Wellbeing and Health,Head of Adults,Third Party Payments,472101,Purchase of Care,18-Jul-13,2620201-1347010H,576.68,DALE CARE LTD.
Adults Wellbeing and Health,Head of Adults,Third Party Payments,472101,Purchase of Care,18-Jul-13,2620201-1347023H,670.95,DALE CARE LTD.
Adults Wellbeing and Health,Head of Adults,Third Party Payments,472101,Purchase of Care,18-Jul-13,2620201-1347049H,"1,354.91",DALE CARE LTD.
Adults Wellbeing and Health,Head of Adults,Third Party Payments,472101,Purchase of Care,18-Jul-13,2620201-1347058H,702.36,DALE CARE LTD.
Adults Wellbeing and Health,Head of Adults,Third Party Payments,472101,Purchase of Care,18-Jul-13,2620201-1347097H,632.12,DALE CARE LTD.
Adults Wellbeing and Health,Head of Adults,Third Party Payments,472101,Purchase of Care,18-Jul-13,2620201-1347143H,776.32,DALE CARE LTD.
Adults Wellbeing and Health,Head of Adults,Third Party Payments,472101,Purchase of Care,18-Jul-13,2620201-1347166H,709.76,DALE CARE LTD.
Adults Wellbeing and Health,Head of Adults,Third Party Payments,472101,Purchase of Care,18-Jul-13,2620201-1347184H,680.2,DALE CARE LTD.
Adults Wellbeing and Health,Head of Adults,Third Party Payments,472101,Purchase of Care,18-Jul-13,2620201-1347202H,510.15,DALE CARE LTD.
Adults Wellbeing and Health,Head of Adults,Third Party Payments,472101,Purchase of Care,18-Jul-13,2620201-1347247H,554.52,DALE CARE LTD.
Adults Wellbeing and Health,Head of Adults,Third Party Payments,472101,Purchase of Care,18-Jul-13,2620201-1347248H,731.96,DALE CARE LTD.
Adults Wellbeing and Health,Head of Adults,Third Party Payments,472101,Purchase of Care,18-Jul-13,2620201-1347296H,587.76,DALE CARE LTD.
Adults Wellbeing and Health,Head of Adults,Third Party Payments,472101,Purchase of Care,18-Jul-13,2620201-1347301H,709.76,DALE CARE LTD.
Adults Wellbeing and Health,Head of Adults,Third Party Payments,472101,Purchase of Care,18-Jul-13,2620201-1347304H,776.32,DALE CARE LTD.
Adults Wellbeing and Health,Head of Adults,Third Party Payments,472101,Purchase of Care,18-Jul-13,2620201-1347320H,502.76,DALE CARE LTD.
Adults Wellbeing and Health,Head of Adults,Third Party Payments,472101,Purchase of Care,18-Jul-13,2620201-1347331H,698.68,DALE CARE LTD.
Adults Wellbeing and Health,Head of Adults,Third Party Payments,472101,Purchase of Care,18-Jul-13,2620201-1347358H,743.04,DALE CARE LTD.
Adults Wellbeing and Health,Head of Adults,Third Party Payments,472101,Purchase of Care,18-Jul-13,2620201-1347393H,820.68,DALE CARE LTD.
Adults Wellbeing and Health,Head of Adults,Third Party Payments,472101,Purchase of Care,18-Jul-13,2620201-1347406H,558.2,DALE CARE LTD.
Adults Wellbeing and Health,Head of Adults,Third Party Payments,472101,Purchase of Care,18-Jul-13,2620201-1347463H,621.04,DALE CARE LTD.
Adults Wellbeing and Health,Head of Adults,Third Party Payments,472101,Purchase of Care,18-Jul-13,2620201-1347552H,619.19,DALE CARE LTD.
Adults Wellbeing and Health,Head of Adults,Third Party Payments,472101,Purchase of Care,18-Jul-13,2620201-1347554H,"1,097.24",DALE CARE LTD.
Adults Wellbeing and Health,Head of Adults,Third Party Payments,472101,Purchase of Care,18-Jul-13,2620201-1347592H,654.32,DALE CARE LTD.
Adults Wellbeing and Health,Head of Adults,Third Party Payments,472101,Purchase of Care,18-Jul-13,2620201-1347605H,560.06,DALE CARE LTD.
Adults Wellbeing and Health,Head of Adults,Third Party Payments,472101,Purchase of Care,18-Jul-13,2620201-1347634H,927.86,DALE CARE LTD.
Adults Wellbeing and Health,Head of Adults,Third Party Payments,472101,Purchase of Care,18-Jul-13,2620201-1347659H,"1,552.60",DALE CARE LTD.
Adults Wellbeing and Health,Head of Adults,Third Party Payments,472101,Purchase of Care,18-Jul-13,2620201-1347688H,798.48,DALE CARE LTD.
Adults Wellbeing and Health,Head of Adults,Third Party Payments,472101,Purchase of Care,18-Jul-13,2620201-1347699H,709.76,DALE CARE LTD.
Adults Wellbeing and Health,Head of Adults,Third Party Payments,472101,Purchase of Care,18-Jul-13,2620201-1347738H,998.1,DALE CARE LTD.
Adults Wellbeing and Health,Head of Adults,Third Party Payments,472101,Purchase of Care,18-Jul-13,2620201-1347765H,787.4,DALE CARE LTD.
Adults Wellbeing and Health,Head of Adults,Third Party Payments,472101,Purchase of Care,18-Jul-13,2620201-1347769H,"1,552.60",DALE CARE LTD.
Adults Wellbeing and Health,Head of Adults,Third Party Payments,472101,Purchase of Care,18-Jul-13,2620201-1347812H,558.2,DALE CARE LTD.
Adults Wellbeing and Health,Head of Adults,Third Party Payments,472101,Purchase of Care,18-Jul-13,2620201-1347840H,987,DALE CARE LTD.
Adults Wellbeing and Health,Head of Adults,Third Party Payments,472101,Purchase of Care,18-Jul-13,2620201-1347842H,623.81,DALE CARE LTD.
Adults Wellbeing and Health,Head of Adults,Third Party Payments,472101,Purchase of Care,18-Jul-13,2620201-1347854H,"1,014.75",DALE CARE LTD.
Adults Wellbeing and Health,Head of Adults,Third Party Payments,472101,Purchase of Care,18-Jul-13,2620201-1347856H,937.11,DALE CARE LTD.
Adults Wellbeing and Health,Head of Adults,Third Party Payments,472101,Purchase of Care,18-Jul-13,2620201-1348011H,543.4,DALE CARE LTD.
Adults Wellbeing and Health,Head of Adults,Third Party Payments,472101,Purchase of Care,18-Jul-13,2620201-1348031H,"1,730.06",DALE CARE LTD.
Adults Wellbeing and Health,Head of Adults,Third Party Payments,472101,Purchase of Care,18-Jul-13,2620201-1348098H,"1,190.32",DALE CARE LTD.
Adults Wellbeing and Health,Head of Adults,Third Party Payments,472101,Purchase of Care,18-Jul-13,2620201-1348099H,569.28,DALE CARE LTD.
Adults Wellbeing and Health,Head of Adults,Third Party Payments,472101,Purchase of Care,18-Jul-13,2620201-1348100H,770.16,DALE CARE LTD.
Adults Wellbeing and Health,Head of Adults,Third Party Payments,472101,Purchase of Care,18-Jul-13,2620201-1348101H,584.08,DALE CARE LTD.
Adults Wellbeing and Health,Head of Adults,Third Party Payments,472101,Purchase of Care,18-Jul-13,2620201-1348128H,502.76,DALE CARE LTD.
Adults Wellbeing and Health,Head of Adults,Third Party Payments,472101,Purchase of Care,18-Jul-13,2620201-1348136H,606.24,DALE CARE LTD.
Adults Wellbeing and Health,Head of Adults,Third Party Payments,472101,Purchase of Care,18-Jul-13,2620201-1348144H,970.38,DALE CARE LTD.
Adults Wellbeing and Health,Head of Adults,Third Party Payments,472101,Purchase of Care,18-Jul-13,2620201-1348146H,524.92,DALE CARE LTD.
Adults Wellbeing and Health,Head of Adults,Third Party Payments,472101,Purchase of Care,18-Jul-13,2620201-1348151H,632.12,DALE CARE LTD.
Adults Wellbeing and Health,Head of Adults,Third Party Payments,472101,Purchase of Care,18-Jul-13,2620201-1348161H,"1,608.07",DALE CARE LTD.
Adults Wellbeing and Health,Head of Adults,Third Party Payments,472101,Purchase of Care,18-Jul-13,2620201-1348162H,"1,131.20",DALE CARE LTD.
Adults Wellbeing and Health,Head of Adults,Third Party Payments,472101,Purchase of Care,18-Jul-13,2620201-1348199H,502.74,DALE CARE LTD.
Adults Wellbeing and Health,Head of Adults,Third Party Payments,472101,Purchase of Care,18-Jul-13,2620201-1348201H,537.88,DALE CARE LTD.
Adults Wellbeing and Health,Head of Adults,Third Party Payments,472101,Purchase of Care,18-Jul-13,2620201-1348240H,"1,123.80",DALE CARE LTD.
Adults Wellbeing and Health,Head of Adults,Third Party Payments,472101,Purchase of Care,18-Jul-13,2620201-1348274H,"1,197.72",DALE CARE LTD.
Adults Wellbeing and Health,Head of Adults,Third Party Payments,472101,Purchase of Care,18-Jul-13,2620201-1348293H,675.24,DALE CARE LTD.
Adults Wellbeing and Health,Head of Adults,Third Party Payments,472101,Purchase of Care,18-Jul-13,2620201-1348304H,765.2,DALE CARE LTD.
Adults Wellbeing and Health,Head of Adults,Third Party Payments,472101,Purchase of Care,18-Jul-13,2620201-1348305H,815.12,DALE CARE LTD.
Adults Wellbeing and Health,Head of Adults,Third Party Payments,472101,Purchase of Care,18-Jul-13,2620201-1348370H,"1,286.44",DALE CARE LTD.
Adults Wellbeing and Health,Head of Adults,Third Party Payments,472101,Purchase of Care,18-Jul-13,2620201-1348393H,696.32,DALE CARE LTD.
Adults Wellbeing and Health,Head of Adults,Third Party Payments,472101,Purchase of Care,18-Jul-13,2620201-1348416H,668.17,DALE CARE LTD.
Adults Wellbeing and Health,Head of Adults,Third Party Payments,472101,Purchase of Care,18-Jul-13,2620201-1348421H,511.98,DALE CARE LTD.
Adults Wellbeing and Health,Head of Adults,Third Party Payments,472101,Purchase of Care,18-Jul-13,2620201-1348448H,729.17,DALE CARE LTD.
Adults Wellbeing and Health,Head of Adults,Third Party Payments,472101,Purchase of Care,18-Jul-13,2620201-1348456H,613.64,DALE CARE LTD.
Adults Wellbeing and Health,Head of Adults,Third Party Payments,472101,Purchase of Care,18-Jul-13,2620201-1348480H,576.68,DALE CARE LTD.
Adults Wellbeing and Health,Head of Adults,Third Party Payments,472101,Purchase of Care,18-Jul-13,2620201-1348498H,676.48,DALE CARE LTD.
Adults Wellbeing and Health,Head of Adults,Third Party Payments,472101,Purchase of Care,18-Jul-13,2620201-1348530H,598.88,DALE CARE LTD.
Adults Wellbeing and Health,Head of Adults,Third Party Payments,472101,Purchase of Care,18-Jul-13,2620201-1348561H,654.32,DALE CARE LTD.
Adults Wellbeing and Health,Head of Adults,Third Party Payments,472101,Purchase of Care,18-Jul-13,2620201-1348591H,907.32,DALE CARE LTD.
Adults Wellbeing and Health,Head of Adults,Third Party Payments,472101,Purchase of Care,18-Jul-13,2620201-1348619H,709.78,DALE CARE LTD.
Adults Wellbeing and Health,Head of Adults,Third Party Payments,472101,Purchase of Care,18-Jul-13,2620201-1348641H,565.6,DALE CARE LTD.
Adults Wellbeing and Health,Head of Adults,Third Party Payments,472101,Purchase of Care,18-Jul-13,2620201-1348682H,621.04,DALE CARE LTD.
Adults Wellbeing and Health,Head of Adults,Third Party Payments,472101,Purchase of Care,18-Jul-13,2620201-1348697H,643.24,DALE CARE LTD.
Adults Wellbeing and Health,Head of Adults,Third Party Payments,472101,Purchase of Care,18-Jul-13,2620201-1348735H,665.4,DALE CARE LTD.
Adults Wellbeing and Health,Head of Adults,Third Party Payments,472101,Purchase of Care,18-Jul-13,2620201-1348786H,613.64,DALE CARE LTD.
Adults Wellbeing and Health,Head of Adults,Third Party Payments,472101,Purchase of Care,18-Jul-13,2620201-1348800H,726.39,DALE CARE LTD.
Adults Wellbeing and Health,Head of Adults,Third Party Payments,472101,Purchase of Care,18-Jul-13,2620201-1348805H,876.12,DALE CARE LTD.
Adults Wellbeing and Health,Head of Adults,Third Party Payments,472101,Purchase of Care,18-Jul-13,2620201-1348850H,554.52,DALE CARE LTD.
Adults Wellbeing and Health,Head of Adults,Third Party Payments,472101,Purchase of Care,18-Jul-13,2620201-1348875H,865.04,DALE CARE LTD.
Adults Wellbeing and Health,Head of Adults,Third Party Payments,472101,Purchase of Care,18-Jul-13,2620201-1348876H,998.12,DALE CARE LTD.
Adults Wellbeing and Health,Head of Adults,Third Party Payments,472101,Purchase of Care,18-Jul-13,2620201-1348888H,510.15,DALE CARE LTD.
Adults Wellbeing and Health,Head of Adults,Third Party Payments,472101,Purchase of Care,18-Jul-13,2620201-1348934H,754.12,DALE CARE LTD.
Adults Wellbeing and Health,Head of Adults,Third Party Payments,472101,Purchase of Care,18-Jul-13,2620201-1348955H,576.68,DALE CARE LTD.
Adults Wellbeing and Health,Head of Adults,Third Party Payments,472101,Purchase of Care,18-Jul-13,2620201-1348969H,576.68,DALE CARE LTD.
Adults Wellbeing and Health,Head of Adults,Third Party Payments,472101,Purchase of Care,18-Jul-13,2620201-1348980H,"1,286.44",DALE CARE LTD.
Adults Wellbeing and Health,Head of Adults,Third Party Payments,472101,Purchase of Care,18-Jul-13,2620201-1348984H,543.4,DALE CARE LTD.
Adults Wellbeing and Health,Head of Adults,Third Party Payments,472101,Purchase of Care,18-Jul-13,2620201-1348997H,543.41,DALE CARE LTD.
Adults Wellbeing and Health,Head of Adults,Third Party Payments,472101,Purchase of Care,18-Jul-13,2620201-1348999H,"1,206.96",DALE CARE LTD.
Adults Wellbeing and Health,Head of Adults,Third Party Payments,472101,Purchase of Care,18-Jul-13,2620201-1349001H,696.32,DALE CARE LTD.
Adults Wellbeing and Health,Head of Adults,Third Party Payments,472101,Purchase of Care,18-Jul-13,2620201-1349085H,624.72,DALE CARE LTD.
Adults Wellbeing and Health,Head of Adults,Third Party Payments,472101,Purchase of Care,18-Jul-13,2620201-1349089H,"1,105.32",DALE CARE LTD.
Adults Wellbeing and Health,Head of Adults,Third Party Payments,472101,Purchase of Care,18-Jul-13,2620201-1349102H,643.56,DALE CARE LTD.
Adults Wellbeing and Health,Head of Adults,Third Party Payments,472101,Purchase of Care,18-Jul-13,2620201-1349128H,"1,400.00",DALE CARE LTD.
Adults Wellbeing and Health,Head of Adults,Third Party Payments,472101,Purchase of Care,18-Jul-13,2620201-1349162H,661.72,DALE CARE LTD.
Adults Wellbeing and Health,Head of Adults,Third Party Payments,472101,Purchase of Care,18-Jul-13,2620201-1349211H,554.52,DALE CARE LTD.
Adults Wellbeing and Health,Head of Adults,Third Party Payments,472101,Purchase of Care,18-Jul-13,2620201-1349226H,556.36,DALE CARE LTD.
Adults Wellbeing and Health,Head of Adults,Third Party Payments,472101,Purchase of Care,18-Jul-13,2620201-1349237H,662.63,DALE CARE LTD.
Adults Wellbeing and Health,Head of Adults,Third Party Payments,472101,Purchase of Care,18-Jul-13,2620201-1349286H,"2,381.59",DALE CARE LTD.
Adults Wellbeing and Health,Head of Adults,Third Party Payments,472101,Purchase of Care,18-Jul-13,2620201-1349300H,521.24,DALE CARE LTD.
Adults Wellbeing and Health,Head of Adults,Third Party Payments,472101,Purchase of Care,18-Jul-13,2620201-1349312H,"6,251.79",DALE CARE LTD.
Adults Wellbeing and Health,Head of Adults,Third Party Payments,472101,Purchase of Care,18-Jul-13,2620201-1349323H,545.26,DALE CARE LTD.
Adults Wellbeing and Health,Head of Adults,Third Party Payments,472101,Purchase of Care,18-Jul-13,2620201-1349351H,731.96,DALE CARE LTD.
Adults Wellbeing and Health,Head of Adults,Third Party Payments,472101,Purchase of Care,18-Jul-13,2620201-1349381H,987,DALE CARE LTD.
Adults Wellbeing and Health,Head of Adults,Third Party Payments,472101,Purchase of Care,18-Jul-13,2620201-1349389H,621.04,DALE CARE LTD.
Adults Wellbeing and Health,Head of Adults,Third Party Payments,472101,Purchase of Care,18-Jul-13,2620201-1349439H,698.68,DALE CARE LTD.
Adults Wellbeing and Health,Head of Adults,Third Party Payments,472101,Purchase of Care,18-Jul-13,2620201-1349443H,523.08,DALE CARE LTD.
Adults Wellbeing and Health,Head of Adults,Third Party Payments,472101,Purchase of Care,18-Jul-13,2620201-1349446H,731.96,DALE CARE LTD.
Adults Wellbeing and Health,Head of Adults,Third Party Payments,472101,Purchase of Care,18-Jul-13,2620201-1349645H,804.04,DALE CARE LTD.
Adults Wellbeing and Health,Head of Adults,Third Party Payments,472101,Purchase of Care,18-Jul-13,2620201-1349684H,543.4,DALE CARE LTD.
Adults Wellbeing and Health,Head of Adults,Third Party Payments,472101,Purchase of Care,18-Jul-13,2620201-1349720H,"1,197.72",DALE CARE LTD.
Adults Wellbeing and Health,Head of Adults,Third Party Payments,472101,Purchase of Care,18-Jul-13,2620201-1349735H,690.35,DALE CARE LTD.
Adults Wellbeing and Health,Head of Adults,Third Party Payments,472101,Purchase of Care,18-Jul-13,2620201-1349760H,"1,434.32",DALE CARE LTD.
Adults Wellbeing and Health,Head of Adults,Third Party Payments,472101,Purchase of Care,18-Jul-13,2620201-1349782H,587.77,DALE CARE LTD.
Adults Wellbeing and Health,Head of Adults,Third Party Payments,472101,Purchase of Care,18-Jul-13,2620201-1349789H,548.96,DALE CARE LTD.
Adults Wellbeing and Health,Head of Adults,Third Party Payments,472101,Purchase of Care,18-Jul-13,2620201-1349832H,779.07,DALE CARE LTD.
Adults Wellbeing and Health,Head of Adults,Third Party Payments,472101,Purchase of Care,18-Jul-13,2620201-1349866H,"1,270.72",DALE CARE LTD.
Adults Wellbeing and Health,Head of Adults,Third Party Payments,472101,Purchase of Care,18-Jul-13,2620201-1349882H,"1,247.63",DALE CARE LTD.
Adults Wellbeing and Health,Head of Adults,Third Party Payments,472101,Purchase of Care,18-Jul-13,2620201-1349897H,621.04,DALE CARE LTD.
Adults Wellbeing and Health,Head of Adults,Third Party Payments,472101,Purchase of Care,18-Jul-13,2620201-1349922H,787.4,DALE CARE LTD.
Adults Wellbeing and Health,Head of Adults,Third Party Payments,472101,Purchase of Care,18-Jul-13,2620201-1349955H,748.59,DALE CARE LTD.
Adults Wellbeing and Health,Head of Adults,Third Party Payments,472101,Purchase of Care,18-Jul-13,2620201-1349956H,"1,571.08",DALE CARE LTD.
Adults Wellbeing and Health,Head of Adults,Third Party Payments,472101,Purchase of Care,18-Jul-13,2620201-1350009H,584.08,DALE CARE LTD.
Adults Wellbeing and Health,Head of Adults,Third Party Payments,472101,Purchase of Care,18-Jul-13,2620201-1350012H,726.4,DALE CARE LTD.
Adults Wellbeing and Health,Head of Adults,Third Party Payments,472101,Purchase of Care,18-Jul-13,2620201-1350019H,643.24,DALE CARE LTD.
Adults Wellbeing and Health,Head of Adults,Third Party Payments,472101,Purchase of Care,18-Jul-13,2620201-1350022H,576.69,DALE CARE LTD.
Adults Wellbeing and Health,Head of Adults,Third Party Payments,472101,Purchase of Care,18-Jul-13,2620201-1350044H,506.44,DALE CARE LTD.
Adults Wellbeing and Health,Head of Adults,Third Party Payments,472101,Purchase of Care,18-Jul-13,2620201-1350065H,"1,261.49",DALE CARE LTD.
Adults Wellbeing and Health,Head of Adults,Third Party Payments,472101,Purchase of Care,18-Jul-13,2620201-1350084H,554.5,DALE CARE LTD.
Adults Wellbeing and Health,Head of Adults,Third Party Payments,472101,Purchase of Care,18-Jul-13,2620201-1350089H,511.98,DALE CARE LTD.
Adults Wellbeing and Health,Head of Adults,Third Party Payments,472101,Purchase of Care,18-Jul-13,2620201-1350098H,696.32,DALE CARE LTD.
Adults Wellbeing and Health,Head of Adults,Third Party Payments,472101,Purchase of Care,18-Jul-13,2620201-1350144H,"1,242.08",DALE CARE LTD.
Adults Wellbeing and Health,Head of Adults,Third Party Payments,472101,Purchase of Care,18-Jul-13,2620201-1350162H,887.19,DALE CARE LTD.
Adults Wellbeing and Health,Head of Adults,Third Party Payments,472101,Purchase of Care,18-Jul-13,2620201-1350179H,539.72,DALE CARE LTD.
Adults Wellbeing and Health,Head of Adults,Third Party Payments,472101,Purchase of Care,18-Jul-13,2620201-1350208H,"1,303.09",DALE CARE LTD.
Adults Wellbeing and Health,Head of Adults,Third Party Payments,472101,Purchase of Care,18-Jul-13,2620201-1350244H,621.04,DALE CARE LTD.
Adults Wellbeing and Health,Head of Adults,Third Party Payments,472101,Purchase of Care,18-Jul-13,2620201-1350253H,609.96,DALE CARE LTD.
Adults Wellbeing and Health,Head of Adults,Third Party Payments,472101,Purchase of Care,18-Jul-13,2620201-1350383H,539.72,DALE CARE LTD.
Adults Wellbeing and Health,Head of Adults,Third Party Payments,472101,Purchase of Care,18-Jul-13,2620201-1350574H,516.62,DALE CARE LTD.
Adults Wellbeing and Health,Head of Adults,Third Party Payments,472101,Purchase of Care,18-Jul-13,2620201-1350582H,690.36,DALE CARE LTD.
Adults Wellbeing and Health,Head of Adults,Third Party Payments,472101,Purchase of Care,18-Jul-13,2620201-1350613H,667.25,DALE CARE LTD.
Adults Wellbeing and Health,Head of Adults,Third Party Payments,472101,Purchase of Care,18-Jul-13,2620277-1346485H,520,DISC LTD.
Adults Wellbeing and Health,Head of Adults,Third Party Payments,472101,Purchase of Care,18-Jul-13,2620329-1344724H,578.86,EASINGTON DISTRICT CROSSROADS.
Adults Wellbeing and Health,Head of Adults,Third Party Payments,472101,Purchase of Care,18-Jul-13,2620329-1346109H,"3,296.00",EASINGTON DISTRICT CROSSROADS.
Adults Wellbeing and Health,Head of Adults,Third Party Payments,472101,Purchase of Care,18-Jul-13,2620329-1347958H,544.8,EASINGTON DISTRICT CROSSROADS.
Adults Wellbeing and Health,Head of Adults,Third Party Payments,472101,Purchase of Care,18-Jul-13,2620334-1347622H,"1,253.36",EBONEY HOME CARE LTD.
Adults Wellbeing and Health,Head of Adults,Third Party Payments,472101,Purchase of Care,18-Jul-13,2620334-1349193H,"1,413.72",EBONEY HOME CARE LTD.
Adults Wellbeing and Health,Head of Adults,Third Party Payments,472101,Purchase of Care,18-Jul-13,2620562-1343956H,"1,885.04",HIGHLEA CARE LTD.
Adults Wellbeing and Health,Head of Adults,Third Party Payments,472101,Purchase of Care,18-Jul-13,2620562-1344257H,"1,570.60",HIGHLEA CARE LTD.
Adults Wellbeing and Health,Head of Adults,Third Party Payments,472101,Purchase of Care,18-Jul-13,2620562-1344993H,"1,885.04",HIGHLEA CARE LTD.
Adults Wellbeing and Health,Head of Adults,Third Party Payments,472101,Purchase of Care,18-Jul-13,2620562-1347299H,"1,885.04",HIGHLEA CARE LTD.
Adults Wellbeing and Health,Head of Adults,Third Party Payments,472101,Purchase of Care,18-Jul-13,2620795-1344468H,510.16,KELLY PARK CARING AGENCY LTD.
Adults Wellbeing and Health,Head of Adults,Third Party Payments,472101,Purchase of Care,18-Jul-13,2620795-1345198H,"1,341.88",KELLY PARK CARING AGENCY LTD.
Adults Wellbeing and Health,Head of Adults,Third Party Payments,472101,Purchase of Care,18-Jul-13,2620795-1345238H,510.16,KELLY PARK CARING AGENCY LTD.
Adults Wellbeing and Health,Head of Adults,Third Party Payments,472101,Purchase of Care,18-Jul-13,2620795-1345258H,558.72,KELLY PARK CARING AGENCY LTD.
Adults Wellbeing and Health,Head of Adults,Third Party Payments,472101,Purchase of Care,18-Jul-13,2620795-1345310H,"1,020.28",KELLY PARK CARING AGENCY LTD.
Adults Wellbeing and Health,Head of Adults,Third Party Payments,472101,Purchase of Care,18-Jul-13,2620795-1345342H,698.68,KELLY PARK CARING AGENCY LTD.
Adults Wellbeing and Health,Head of Adults,Third Party Payments,472101,Purchase of Care,18-Jul-13,2620795-1345395H,754.12,KELLY PARK CARING AGENCY LTD.
Adults Wellbeing and Health,Head of Adults,Third Party Payments,472101,Purchase of Care,18-Jul-13,2620795-1345479H,"1,330.80",KELLY PARK CARING AGENCY LTD.
Adults Wellbeing and Health,Head of Adults,Third Party Payments,472101,Purchase of Care,18-Jul-13,2620795-1345487H,798.48,KELLY PARK CARING AGENCY LTD.
Adults Wellbeing and Health,Head of Adults,Third Party Payments,472101,Purchase of Care,18-Jul-13,2620795-1345494H,853.92,KELLY PARK CARING AGENCY LTD.
Adults Wellbeing and Health,Head of Adults,Third Party Payments,472101,Purchase of Care,18-Jul-13,2620795-1345529H,"1,630.24",KELLY PARK CARING AGENCY LTD.
Adults Wellbeing and Health,Head of Adults,Third Party Payments,472101,Purchase of Care,18-Jul-13,2620795-1345534H,"1,042.48",KELLY PARK CARING AGENCY LTD.
Adults Wellbeing and Health,Head of Adults,Third Party Payments,472101,Purchase of Care,18-Jul-13,2620795-1346092H,795.82,KELLY PARK CARING AGENCY LTD.
Adults Wellbeing and Health,Head of Adults,Third Party Payments,472101,Purchase of Care,18-Jul-13,2620795-1346167H,517.52,KELLY PARK CARING AGENCY LTD.
Adults Wellbeing and Health,Head of Adults,Third Party Payments,472101,Purchase of Care,18-Jul-13,2620795-1346242H,656.38,KELLY PARK CARING AGENCY LTD.
Adults Wellbeing and Health,Head of Adults,Third Party Payments,472101,Purchase of Care,18-Jul-13,2620795-1346455H,621.04,KELLY PARK CARING AGENCY LTD.
Adults Wellbeing and Health,Head of Adults,Third Party Payments,472101,Purchase of Care,18-Jul-13,2620795-1346475H,687.6,KELLY PARK CARING AGENCY LTD.
Adults Wellbeing and Health,Head of Adults,Third Party Payments,472101,Purchase of Care,18-Jul-13,2620795-1346490H,621.04,KELLY PARK CARING AGENCY LTD.
Adults Wellbeing and Health,Head of Adults,Third Party Payments,472101,Purchase of Care,18-Jul-13,2620795-1346784H,731.96,KELLY PARK CARING AGENCY LTD.
Adults Wellbeing and Health,Head of Adults,Third Party Payments,472101,Purchase of Care,18-Jul-13,2620795-1347333H,"1,449.08",KELLY PARK CARING AGENCY LTD.
Adults Wellbeing and Health,Head of Adults,Third Party Payments,472101,Purchase of Care,18-Jul-13,2620795-1347484H,842.84,KELLY PARK CARING AGENCY LTD.
Adults Wellbeing and Health,Head of Adults,Third Party Payments,472101,Purchase of Care,18-Jul-13,2620795-1347602H,702.36,KELLY PARK CARING AGENCY LTD.
Adults Wellbeing and Health,Head of Adults,Third Party Payments,472101,Purchase of Care,18-Jul-13,2620795-1347607H,609.96,KELLY PARK CARING AGENCY LTD.
Adults Wellbeing and Health,Head of Adults,Third Party Payments,472101,Purchase of Care,18-Jul-13,2620795-1347952H,687.6,KELLY PARK CARING AGENCY LTD.
Adults Wellbeing and Health,Head of Adults,Third Party Payments,472101,Purchase of Care,18-Jul-13,2620795-1347978H,670.95,KELLY PARK CARING AGENCY LTD.
Adults Wellbeing and Health,Head of Adults,Third Party Payments,472101,Purchase of Care,18-Jul-13,2620795-1348132H,561.88,KELLY PARK CARING AGENCY LTD.
Adults Wellbeing and Health,Head of Adults,Third Party Payments,472101,Purchase of Care,18-Jul-13,2620795-1348140H,508.3,KELLY PARK CARING AGENCY LTD.
Adults Wellbeing and Health,Head of Adults,Third Party Payments,472101,Purchase of Care,18-Jul-13,2620795-1348310H,643.24,KELLY PARK CARING AGENCY LTD.
Adults Wellbeing and Health,Head of Adults,Third Party Payments,472101,Purchase of Care,18-Jul-13,2620795-1348535H,765.21,KELLY PARK CARING AGENCY LTD.
Adults Wellbeing and Health,Head of Adults,Third Party Payments,472101,Purchase of Care,18-Jul-13,2620795-1348564H,539.72,KELLY PARK CARING AGENCY LTD.
Adults Wellbeing and Health,Head of Adults,Third Party Payments,472101,Purchase of Care,18-Jul-13,2620795-1348795H,639.52,KELLY PARK CARING AGENCY LTD.
Adults Wellbeing and Health,Head of Adults,Third Party Payments,472101,Purchase of Care,18-Jul-13,2620795-1348829H,521.24,KELLY PARK CARING AGENCY LTD.
Adults Wellbeing and Health,Head of Adults,Third Party Payments,472101,Purchase of Care,18-Jul-13,2620795-1349218H,624.73,KELLY PARK CARING AGENCY LTD.
Adults Wellbeing and Health,Head of Adults,Third Party Payments,472101,Purchase of Care,18-Jul-13,2620795-1349397H,506.44,KELLY PARK CARING AGENCY LTD.
Adults Wellbeing and Health,Head of Adults,Third Party Payments,472101,Purchase of Care,18-Jul-13,2620795-1349418H,931.56,KELLY PARK CARING AGENCY LTD.
Adults Wellbeing and Health,Head of Adults,Third Party Payments,472101,Purchase of Care,18-Jul-13,2620795-1349542H,543.4,KELLY PARK CARING AGENCY LTD.
Adults Wellbeing and Health,Head of Adults,Third Party Payments,472101,Purchase of Care,18-Jul-13,2620795-1349835H,"1,236.54",KELLY PARK CARING AGENCY LTD.
Adults Wellbeing and Health,Head of Adults,Third Party Payments,472101,Purchase of Care,18-Jul-13,2620795-1349869H,698.68,KELLY PARK CARING AGENCY LTD.
Adults Wellbeing and Health,Head of Adults,Third Party Payments,472101,Purchase of Care,18-Jul-13,2620795-1349988H,635.82,KELLY PARK CARING AGENCY LTD.
Adults Wellbeing and Health,Head of Adults,Third Party Payments,472101,Purchase of Care,18-Jul-13,2620795-1350140H,931.56,KELLY PARK CARING AGENCY LTD.
Adults Wellbeing and Health,Head of Adults,Third Party Payments,472101,Purchase of Care,18-Jul-13,2620796-1343999H,754.12,KELLY PARK OHC.
Adults Wellbeing and Health,Head of Adults,Third Party Payments,472101,Purchase of Care,18-Jul-13,2620796-1344411H,510.16,KELLY PARK OHC.
Adults Wellbeing and Health,Head of Adults,Third Party Payments,472101,Purchase of Care,18-Jul-13,2620796-1344481H,"4,436.00",KELLY PARK OHC.
Adults Wellbeing and Health,Head of Adults,Third Party Payments,472101,Purchase of Care,18-Jul-13,2620796-1344596H,587.76,KELLY PARK OHC.
Adults Wellbeing and Health,Head of Adults,Third Party Payments,472101,Purchase of Care,18-Jul-13,2620796-1344816H,"1,707.88",KELLY PARK OHC.
Adults Wellbeing and Health,Head of Adults,Third Party Payments,472101,Purchase of Care,18-Jul-13,2620796-1344851H,613.64,KELLY PARK OHC.
Adults Wellbeing and Health,Head of Adults,Third Party Payments,472101,Purchase of Care,18-Jul-13,2620796-1344864H,"1,652.40",KELLY PARK OHC.
Adults Wellbeing and Health,Head of Adults,Third Party Payments,472101,Purchase of Care,18-Jul-13,2620796-1344900H,621.04,KELLY PARK OHC.
Adults Wellbeing and Health,Head of Adults,Third Party Payments,472101,Purchase of Care,18-Jul-13,2620796-1344919H,"1,353.00",KELLY PARK OHC.
Adults Wellbeing and Health,Head of Adults,Third Party Payments,472101,Purchase of Care,18-Jul-13,2620796-1345211H,643.24,KELLY PARK OHC.
Adults Wellbeing and Health,Head of Adults,Third Party Payments,472101,Purchase of Care,18-Jul-13,2620796-1345237H,565.6,KELLY PARK OHC.
Adults Wellbeing and Health,Head of Adults,Third Party Payments,472101,Purchase of Care,18-Jul-13,2620796-1345260H,"1,164.44",KELLY PARK OHC.
Adults Wellbeing and Health,Head of Adults,Third Party Payments,472101,Purchase of Care,18-Jul-13,2620796-1345299H,931.56,KELLY PARK OHC.
Adults Wellbeing and Health,Head of Adults,Third Party Payments,472101,Purchase of Care,18-Jul-13,2620796-1345535H,539.72,KELLY PARK OHC.
Adults Wellbeing and Health,Head of Adults,Third Party Payments,472101,Purchase of Care,18-Jul-13,2620796-1345576H,598.88,KELLY PARK OHC.
Adults Wellbeing and Health,Head of Adults,Third Party Payments,472101,Purchase of Care,18-Jul-13,2620796-1345595H,831.76,KELLY PARK OHC.
Adults Wellbeing and Health,Head of Adults,Third Party Payments,472101,Purchase of Care,18-Jul-13,2620796-1346155H,665.4,KELLY PARK OHC.
Adults Wellbeing and Health,Head of Adults,Third Party Payments,472101,Purchase of Care,18-Jul-13,2620796-1346158H,754.12,KELLY PARK OHC.
Adults Wellbeing and Health,Head of Adults,Third Party Payments,472101,Purchase of Care,18-Jul-13,2620796-1346259H,"2,046.11",KELLY PARK OHC.
Adults Wellbeing and Health,Head of Adults,Third Party Payments,472101,Purchase of Care,18-Jul-13,2620796-1346461H,643.21,KELLY PARK OHC.
Adults Wellbeing and Health,Head of Adults,Third Party Payments,472101,Purchase of Care,18-Jul-13,2620796-1346522H,754.12,KELLY PARK OHC.
Adults Wellbeing and Health,Head of Adults,Third Party Payments,472101,Purchase of Care,18-Jul-13,2620796-1346531H,"1,397.36",KELLY PARK OHC.
Adults Wellbeing and Health,Head of Adults,Third Party Payments,472101,Purchase of Care,18-Jul-13,2620796-1346595H,502.76,KELLY PARK OHC.
Adults Wellbeing and Health,Head of Adults,Third Party Payments,472101,Purchase of Care,18-Jul-13,2620796-1346644H,643.24,KELLY PARK OHC.
Adults Wellbeing and Health,Head of Adults,Third Party Payments,472101,Purchase of Care,18-Jul-13,2620796-1346651H,521.24,KELLY PARK OHC.
Adults Wellbeing and Health,Head of Adults,Third Party Payments,472101,Purchase of Care,18-Jul-13,2620796-1346904H,554.52,KELLY PARK OHC.
Adults Wellbeing and Health,Head of Adults,Third Party Payments,472101,Purchase of Care,18-Jul-13,2620796-1347206H,539.72,KELLY PARK OHC.
Adults Wellbeing and Health,Head of Adults,Third Party Payments,472101,Purchase of Care,18-Jul-13,2620796-1347229H,"1,138.56",KELLY PARK OHC.
Adults Wellbeing and Health,Head of Adults,Third Party Payments,472101,Purchase of Care,18-Jul-13,2620796-1347494H,521.24,KELLY PARK OHC.
Adults Wellbeing and Health,Head of Adults,Third Party Payments,472101,Purchase of Care,18-Jul-13,2620796-1347542H,650.6,KELLY PARK OHC.
Adults Wellbeing and Health,Head of Adults,Third Party Payments,472101,Purchase of Care,18-Jul-13,2620796-1347593H,510.14,KELLY PARK OHC.
Adults Wellbeing and Health,Head of Adults,Third Party Payments,472101,Purchase of Care,18-Jul-13,2620796-1347796H,643.24,KELLY PARK OHC.
Adults Wellbeing and Health,Head of Adults,Third Party Payments,472101,Purchase of Care,18-Jul-13,2620796-1347797H,"1,045.24",KELLY PARK OHC.
Adults Wellbeing and Health,Head of Adults,Third Party Payments,472101,Purchase of Care,18-Jul-13,2620796-1347831H,"1,674.60",KELLY PARK OHC.
Adults Wellbeing and Health,Head of Adults,Third Party Payments,472101,Purchase of Care,18-Jul-13,2620796-1347918H,554.52,KELLY PARK OHC.
Adults Wellbeing and Health,Head of Adults,Third Party Payments,472101,Purchase of Care,18-Jul-13,2620796-1347986H,809.56,KELLY PARK OHC.
Adults Wellbeing and Health,Head of Adults,Third Party Payments,472101,Purchase of Care,18-Jul-13,2620796-1348008H,"1,280.91",KELLY PARK OHC.
Adults Wellbeing and Health,Head of Adults,Third Party Payments,472101,Purchase of Care,18-Jul-13,2620796-1348169H,613.64,KELLY PARK OHC.
Adults Wellbeing and Health,Head of Adults,Third Party Payments,472101,Purchase of Care,18-Jul-13,2620796-1348404H,517.52,KELLY PARK OHC.
Adults Wellbeing and Health,Head of Adults,Third Party Payments,472101,Purchase of Care,18-Jul-13,2620796-1349058H,569.28,KELLY PARK OHC.
Adults Wellbeing and Health,Head of Adults,Third Party Payments,472101,Purchase of Care,18-Jul-13,2620796-1349131H,539.72,KELLY PARK OHC.
Adults Wellbeing and Health,Head of Adults,Third Party Payments,472101,Purchase of Care,18-Jul-13,2620796-1349192H,"1,242.08",KELLY PARK OHC.
Adults Wellbeing and Health,Head of Adults,Third Party Payments,472101,Purchase of Care,18-Jul-13,2620796-1349694H,556.35,KELLY PARK OHC.
Adults Wellbeing and Health,Head of Adults,Third Party Payments,472101,Purchase of Care,18-Jul-13,2620796-1349805H,698.68,KELLY PARK OHC.
Adults Wellbeing and Health,Head of Adults,Third Party Payments,472101,Purchase of Care,18-Jul-13,2620796-1349919H,992.56,KELLY PARK OHC.
Adults Wellbeing and Health,Head of Adults,Third Party Payments,472101,Purchase of Care,18-Jul-13,2620796-1349950H,709.76,KELLY PARK OHC.
Adults Wellbeing and Health,Head of Adults,Third Party Payments,472101,Purchase of Care,18-Jul-13,2620796-1350072H,676.48,KELLY PARK OHC.
Adults Wellbeing and Health,Head of Adults,Third Party Payments,472101,Purchase of Care,18-Jul-13,2620796-1350075H,521.24,KELLY PARK OHC.
Adults Wellbeing and Health,Head of Adults,Third Party Payments,472101,Purchase of Care,18-Jul-13,2620796-1350169H,510.16,KELLY PARK OHC.
Adults Wellbeing and Health,Head of Adults,Third Party Payments,472101,Purchase of Care,18-Jul-13,2620796-1350247H,621.04,KELLY PARK OHC.
Adults Wellbeing and Health,Head of Adults,Third Party Payments,472101,Purchase of Care,18-Jul-13,2620796-1350292H,621.04,KELLY PARK OHC.
Adults Wellbeing and Health,Head of Adults,Third Party Payments,472101,Purchase of Care,18-Jul-13,2620796-1350322H,517.52,KELLY PARK OHC.
Adults Wellbeing and Health,Head of Adults,Third Party Payments,472101,Purchase of Care,18-Jul-13,2620796-1350337H,702.37,KELLY PARK OHC.
Adults Wellbeing and Health,Head of Adults,Third Party Payments,472101,Purchase of Care,18-Jul-13,2620815-1347970H,"5,184.00",KINDSTREAM CARE LTD.
Adults Wellbeing and Health,Head of Adults,Third Party Payments,472101,Purchase of Care,18-Jul-13,2621031-1343873H,934.56,MENCAP.
Adults Wellbeing and Health,Head of Adults,Third Party Payments,472101,Purchase of Care,18-Jul-13,2621031-1344377H,"1,622.50",MENCAP.
Adults Wellbeing and Health,Head of Adults,Third Party Payments,472101,Purchase of Care,18-Jul-13,2621031-1344642H,"2,281.40",MENCAP.
Adults Wellbeing and Health,Head of Adults,Third Party Payments,472101,Purchase of Care,18-Jul-13,2621031-1344682H,830.72,MENCAP.
Adults Wellbeing and Health,Head of Adults,Third Party Payments,472101,Purchase of Care,18-Jul-13,2621031-1344698H,726.88,MENCAP.
Adults Wellbeing and Health,Head of Adults,Third Party Payments,472101,Purchase of Care,18-Jul-13,2621031-1344715H,778.8,MENCAP.
Adults Wellbeing and Health,Head of Adults,Third Party Payments,472101,Purchase of Care,18-Jul-13,2621046-1345629H,"2,491.52",MIDDLETON CARE LTD.
Adults Wellbeing and Health,Head of Adults,Third Party Payments,472101,Purchase of Care,18-Jul-13,2621046-1345647H,"1,723.16",MIDDLETON CARE LTD.
Adults Wellbeing and Health,Head of Adults,Third Party Payments,472101,Purchase of Care,18-Jul-13,2621247-1344935H,977.2,NORTH FARM COTTAGES SUPPORTED LIVING.
Adults Wellbeing and Health,Head of Adults,Third Party Payments,472101,Purchase of Care,18-Jul-13,2621276-1343997H,"2,206.92",ORCHARD HOME CARE SERVICES LTD.
Adults Wellbeing and Health,Head of Adults,Third Party Payments,472101,Purchase of Care,18-Jul-13,2621276-1344313H,687.58,ORCHARD HOME CARE SERVICES LTD.
Adults Wellbeing and Health,Head of Adults,Third Party Payments,472101,Purchase of Care,18-Jul-13,2621276-1344319H,576.68,ORCHARD HOME CARE SERVICES LTD.
Adults Wellbeing and Health,Head of Adults,Third Party Payments,472101,Purchase of Care,18-Jul-13,2621276-1344328H,598.88,ORCHARD HOME CARE SERVICES LTD.
Adults Wellbeing and Health,Head of Adults,Third Party Payments,472101,Purchase of Care,18-Jul-13,2621276-1344335H,"1,380.72",ORCHARD HOME CARE SERVICES LTD.
Adults Wellbeing and Health,Head of Adults,Third Party Payments,472101,Purchase of Care,18-Jul-13,2621276-1344351H,543.4,ORCHARD HOME CARE SERVICES LTD.
Adults Wellbeing and Health,Head of Adults,Third Party Payments,472101,Purchase of Care,18-Jul-13,2621276-1344861H,576.68,ORCHARD HOME CARE SERVICES LTD.
Adults Wellbeing and Health,Head of Adults,Third Party Payments,472101,Purchase of Care,18-Jul-13,2621276-1344927H,939.88,ORCHARD HOME CARE SERVICES LTD.
Adults Wellbeing and Health,Head of Adults,Third Party Payments,472101,Purchase of Care,18-Jul-13,2621276-1344995H,"1,951.84",ORCHARD HOME CARE SERVICES LTD.
Adults Wellbeing and Health,Head of Adults,Third Party Payments,472101,Purchase of Care,18-Jul-13,2621276-1345123H,640.46,ORCHARD HOME CARE SERVICES LTD.
Adults Wellbeing and Health,Head of Adults,Third Party Payments,472101,Purchase of Care,18-Jul-13,2621276-1345132H,609.96,ORCHARD HOME CARE SERVICES LTD.
Adults Wellbeing and Health,Head of Adults,Third Party Payments,472101,Purchase of Care,18-Jul-13,2621276-1345274H,623.2,ORCHARD HOME CARE SERVICES LTD.
Adults Wellbeing and Health,Head of Adults,Third Party Payments,472101,Purchase of Care,18-Jul-13,2621276-1345289H,720.84,ORCHARD HOME CARE SERVICES LTD.
Adults Wellbeing and Health,Head of Adults,Third Party Payments,472101,Purchase of Care,18-Jul-13,2621276-1345435H,612.72,ORCHARD HOME CARE SERVICES LTD.
Adults Wellbeing and Health,Head of Adults,Third Party Payments,472101,Purchase of Care,18-Jul-13,2621276-1345551H,"1,619.16",ORCHARD HOME CARE SERVICES LTD.
Adults Wellbeing and Health,Head of Adults,Third Party Payments,472101,Purchase of Care,18-Jul-13,2621276-1346018H,"1,460.21",ORCHARD HOME CARE SERVICES LTD.
Adults Wellbeing and Health,Head of Adults,Third Party Payments,472101,Purchase of Care,18-Jul-13,2621276-1346050H,698.68,ORCHARD HOME CARE SERVICES LTD.
Adults Wellbeing and Health,Head of Adults,Third Party Payments,472101,Purchase of Care,18-Jul-13,2621276-1346132H,524.01,ORCHARD HOME CARE SERVICES LTD.
Adults Wellbeing and Health,Head of Adults,Third Party Payments,472101,Purchase of Care,18-Jul-13,2621276-1346168H,695.68,ORCHARD HOME CARE SERVICES LTD.
Adults Wellbeing and Health,Head of Adults,Third Party Payments,472101,Purchase of Care,18-Jul-13,2621276-1346360H,"1,142.28",ORCHARD HOME CARE SERVICES LTD.
Adults Wellbeing and Health,Head of Adults,Third Party Payments,472101,Purchase of Care,18-Jul-13,2621276-1346527H,"1,863.12",ORCHARD HOME CARE SERVICES LTD.
Adults Wellbeing and Health,Head of Adults,Third Party Payments,472101,Purchase of Care,18-Jul-13,2621276-1346540H,"1,086.84",ORCHARD HOME CARE SERVICES LTD.
Adults Wellbeing and Health,Head of Adults,Third Party Payments,472101,Purchase of Care,18-Jul-13,2621276-1346556H,713.46,ORCHARD HOME CARE SERVICES LTD.
Adults Wellbeing and Health,Head of Adults,Third Party Payments,472101,Purchase of Care,18-Jul-13,2621276-1346792H,"1,380.48",ORCHARD HOME CARE SERVICES LTD.
Adults Wellbeing and Health,Head of Adults,Third Party Payments,472101,Purchase of Care,18-Jul-13,2621276-1346797H,618.26,ORCHARD HOME CARE SERVICES LTD.
Adults Wellbeing and Health,Head of Adults,Third Party Payments,472101,Purchase of Care,18-Jul-13,2621276-1346869H,"2,266.27",ORCHARD HOME CARE SERVICES LTD.
Adults Wellbeing and Health,Head of Adults,Third Party Payments,472101,Purchase of Care,18-Jul-13,2621276-1346874H,"1,463.88",ORCHARD HOME CARE SERVICES LTD.
Adults Wellbeing and Health,Head of Adults,Third Party Payments,472101,Purchase of Care,18-Jul-13,2621276-1346886H,"1,585.88",ORCHARD HOME CARE SERVICES LTD.
Adults Wellbeing and Health,Head of Adults,Third Party Payments,472101,Purchase of Care,18-Jul-13,2621276-1346995H,787.39,ORCHARD HOME CARE SERVICES LTD.
Adults Wellbeing and Health,Head of Adults,Third Party Payments,472101,Purchase of Care,18-Jul-13,2621276-1347170H,892.76,ORCHARD HOME CARE SERVICES LTD.
Adults Wellbeing and Health,Head of Adults,Third Party Payments,472101,Purchase of Care,18-Jul-13,2621276-1347217H,659.87,ORCHARD HOME CARE SERVICES LTD.
Adults Wellbeing and Health,Head of Adults,Third Party Payments,472101,Purchase of Care,18-Jul-13,2621276-1347221H,510.16,ORCHARD HOME CARE SERVICES LTD.
Adults Wellbeing and Health,Head of Adults,Third Party Payments,472101,Purchase of Care,18-Jul-13,2621276-1347255H,"1,242.08",ORCHARD HOME CARE SERVICES LTD.
Adults Wellbeing and Health,Head of Adults,Third Party Payments,472101,Purchase of Care,18-Jul-13,2621276-1347376H,809.56,ORCHARD HOME CARE SERVICES LTD.
Adults Wellbeing and Health,Head of Adults,Third Party Payments,472101,Purchase of Care,18-Jul-13,2621276-1347581H,717.16,ORCHARD HOME CARE SERVICES LTD.
Adults Wellbeing and Health,Head of Adults,Third Party Payments,472101,Purchase of Care,18-Jul-13,2621276-1347633H,608.72,ORCHARD HOME CARE SERVICES LTD.
Adults Wellbeing and Health,Head of Adults,Third Party Payments,472101,Purchase of Care,18-Jul-13,2621276-1348041H,"1,397.36",ORCHARD HOME CARE SERVICES LTD.
Adults Wellbeing and Health,Head of Adults,Third Party Payments,472101,Purchase of Care,18-Jul-13,2621276-1348150H,743.04,ORCHARD HOME CARE SERVICES LTD.
Adults Wellbeing and Health,Head of Adults,Third Party Payments,472101,Purchase of Care,18-Jul-13,2621276-1348195H,502.76,ORCHARD HOME CARE SERVICES LTD.
Adults Wellbeing and Health,Head of Adults,Third Party Payments,472101,Purchase of Care,18-Jul-13,2621276-1348221H,"1,397.36",ORCHARD HOME CARE SERVICES LTD.
Adults Wellbeing and Health,Head of Adults,Third Party Payments,472101,Purchase of Care,18-Jul-13,2621276-1348250H,510.16,ORCHARD HOME CARE SERVICES LTD.
Adults Wellbeing and Health,Head of Adults,Third Party Payments,472101,Purchase of Care,18-Jul-13,2621276-1348266H,"1,242.08",ORCHARD HOME CARE SERVICES LTD.
Adults Wellbeing and Health,Head of Adults,Third Party Payments,472101,Purchase of Care,18-Jul-13,2621276-1348291H,572.48,ORCHARD HOME CARE SERVICES LTD.
Adults Wellbeing and Health,Head of Adults,Third Party Payments,472101,Purchase of Care,18-Jul-13,2621276-1348347H,748.58,ORCHARD HOME CARE SERVICES LTD.
Adults Wellbeing and Health,Head of Adults,Third Party Payments,472101,Purchase of Care,18-Jul-13,2621276-1348401H,624.72,ORCHARD HOME CARE SERVICES LTD.
Adults Wellbeing and Health,Head of Adults,Third Party Payments,472101,Purchase of Care,18-Jul-13,2621276-1348714H,604.41,ORCHARD HOME CARE SERVICES LTD.
Adults Wellbeing and Health,Head of Adults,Third Party Payments,472101,Purchase of Care,18-Jul-13,2621276-1348749H,"1,277.24",ORCHARD HOME CARE SERVICES LTD.
Adults Wellbeing and Health,Head of Adults,Third Party Payments,472101,Purchase of Care,18-Jul-13,2621276-1348921H,"1,242.08",ORCHARD HOME CARE SERVICES LTD.
Adults Wellbeing and Health,Head of Adults,Third Party Payments,472101,Purchase of Care,18-Jul-13,2621276-1349084H,641.32,ORCHARD HOME CARE SERVICES LTD.
Adults Wellbeing and Health,Head of Adults,Third Party Payments,472101,Purchase of Care,18-Jul-13,2621276-1349132H,634.08,ORCHARD HOME CARE SERVICES LTD.
Adults Wellbeing and Health,Head of Adults,Third Party Payments,472101,Purchase of Care,18-Jul-13,2621276-1349169H,"1,297.54",ORCHARD HOME CARE SERVICES LTD.
Adults Wellbeing and Health,Head of Adults,Third Party Payments,472101,Purchase of Care,18-Jul-13,2621276-1349957H,619.6,ORCHARD HOME CARE SERVICES LTD.
Adults Wellbeing and Health,Head of Adults,Third Party Payments,472101,Purchase of Care,18-Jul-13,2621276-1350025H,850.24,ORCHARD HOME CARE SERVICES LTD.
Adults Wellbeing and Health,Head of Adults,Third Party Payments,472101,Purchase of Care,18-Jul-13,2621276-1350078H,"1,242.08",ORCHARD HOME CARE SERVICES LTD.
Adults Wellbeing and Health,Head of Adults,Third Party Payments,472101,Purchase of Care,18-Jul-13,2621276-1350125H,"1,175.56",ORCHARD HOME CARE SERVICES LTD.
Adults Wellbeing and Health,Head of Adults,Third Party Payments,472101,Purchase of Care,18-Jul-13,2621276-1350131H,621.04,ORCHARD HOME CARE SERVICES LTD.
Adults Wellbeing and Health,Head of Adults,Third Party Payments,472101,Purchase of Care,18-Jul-13,2621276-1350159H,586.84,ORCHARD HOME CARE SERVICES LTD.
Adults Wellbeing and Health,Head of Adults,Third Party Payments,472101,Purchase of Care,18-Jul-13,2621276-1350181H,572.99,ORCHARD HOME CARE SERVICES LTD.
Adults Wellbeing and Health,Head of Adults,Third Party Payments,472101,Purchase of Care,18-Jul-13,2621276-1350185H,695.68,ORCHARD HOME CARE SERVICES LTD.
Adults Wellbeing and Health,Head of Adults,Third Party Payments,472101,Purchase of Care,18-Jul-13,2621276-1350207H,637.72,ORCHARD HOME CARE SERVICES LTD.
Adults Wellbeing and Health,Head of Adults,Third Party Payments,472101,Purchase of Care,18-Jul-13,2621276-1350209H,"1,286.44",ORCHARD HOME CARE SERVICES LTD.
Adults Wellbeing and Health,Head of Adults,Third Party Payments,472101,Purchase of Care,18-Jul-13,2621276-1350268H,614.17,ORCHARD HOME CARE SERVICES LTD.
Adults Wellbeing and Health,Head of Adults,Third Party Payments,472101,Purchase of Care,18-Jul-13,2621276-1350343H,643.24,ORCHARD HOME CARE SERVICES LTD.
Adults Wellbeing and Health,Head of Adults,Third Party Payments,472101,Purchase of Care,18-Jul-13,2621276-1350717H,583.15,ORCHARD HOME CARE SERVICES LTD.
Adults Wellbeing and Health,Head of Adults,Third Party Payments,472101,Purchase of Care,18-Jul-13,2621332-1347091H,570,PERFECT CARE LTD.
Adults Wellbeing and Health,Head of Adults,Third Party Payments,472101,Purchase of Care,18-Jul-13,2621332-1349064H,"2,340.00",PERFECT CARE LTD.
Adults Wellbeing and Health,Head of Adults,Third Party Payments,472101,Purchase of Care,18-Jul-13,2621363-1343608H,748.58,PREMIER COMMUNITY CARE LTD.
Adults Wellbeing and Health,Head of Adults,Third Party Payments,472101,Purchase of Care,18-Jul-13,2621363-1343629H,964.84,PREMIER COMMUNITY CARE LTD.
Adults Wellbeing and Health,Head of Adults,Third Party Payments,472101,Purchase of Care,18-Jul-13,2621363-1343632H,"1,596.96",PREMIER COMMUNITY CARE LTD.
Adults Wellbeing and Health,Head of Adults,Third Party Payments,472101,Purchase of Care,18-Jul-13,2621363-1343654H,665.4,PREMIER COMMUNITY CARE LTD.
Adults Wellbeing and Health,Head of Adults,Third Party Payments,472101,Purchase of Care,18-Jul-13,2621363-1343676H,545.25,PREMIER COMMUNITY CARE LTD.
Adults Wellbeing and Health,Head of Adults,Third Party Payments,472101,Purchase of Care,18-Jul-13,2621363-1343733H,586.84,PREMIER COMMUNITY CARE LTD.
Adults Wellbeing and Health,Head of Adults,Third Party Payments,472101,Purchase of Care,18-Jul-13,2621363-1343741H,524.93,PREMIER COMMUNITY CARE LTD.
Adults Wellbeing and Health,Head of Adults,Third Party Payments,472101,Purchase of Care,18-Jul-13,2621363-1343767H,510.16,PREMIER COMMUNITY CARE LTD.
Adults Wellbeing and Health,Head of Adults,Third Party Payments,472101,Purchase of Care,18-Jul-13,2621363-1343775H,743.04,PREMIER COMMUNITY CARE LTD.
Adults Wellbeing and Health,Head of Adults,Third Party Payments,472101,Purchase of Care,18-Jul-13,2621363-1343778H,683.88,PREMIER COMMUNITY CARE LTD.
Adults Wellbeing and Health,Head of Adults,Third Party Payments,472101,Purchase of Care,18-Jul-13,2621363-1343780H,806.81,PREMIER COMMUNITY CARE LTD.
Adults Wellbeing and Health,Head of Adults,Third Party Payments,472101,Purchase of Care,18-Jul-13,2621363-1343783H,909.4,PREMIER COMMUNITY CARE LTD.
Adults Wellbeing and Health,Head of Adults,Third Party Payments,472101,Purchase of Care,18-Jul-13,2621363-1343789H,669.08,PREMIER COMMUNITY CARE LTD.
Adults Wellbeing and Health,Head of Adults,Third Party Payments,472101,Purchase of Care,18-Jul-13,2621363-1343796H,"1,474.96",PREMIER COMMUNITY CARE LTD.
Adults Wellbeing and Health,Head of Adults,Third Party Payments,472101,Purchase of Care,18-Jul-13,2621363-1343824H,547.12,PREMIER COMMUNITY CARE LTD.
Adults Wellbeing and Health,Head of Adults,Third Party Payments,472101,Purchase of Care,18-Jul-13,2621363-1343849H,"1,547.06",PREMIER COMMUNITY CARE LTD.
Adults Wellbeing and Health,Head of Adults,Third Party Payments,472101,Purchase of Care,18-Jul-13,2621363-1343852H,532.32,PREMIER COMMUNITY CARE LTD.
Adults Wellbeing and Health,Head of Adults,Third Party Payments,472101,Purchase of Care,18-Jul-13,2621363-1343866H,687.6,PREMIER COMMUNITY CARE LTD.
Adults Wellbeing and Health,Head of Adults,Third Party Payments,472101,Purchase of Care,18-Jul-13,2621363-1343926H,"1,039.70",PREMIER COMMUNITY CARE LTD.
Adults Wellbeing and Health,Head of Adults,Third Party Payments,472101,Purchase of Care,18-Jul-13,2621363-1343943H,754.12,PREMIER COMMUNITY CARE LTD.
Adults Wellbeing and Health,Head of Adults,Third Party Payments,472101,Purchase of Care,18-Jul-13,2621363-1343948H,776.32,PREMIER COMMUNITY CARE LTD.
Adults Wellbeing and Health,Head of Adults,Third Party Payments,472101,Purchase of Care,18-Jul-13,2621363-1343962H,621.04,PREMIER COMMUNITY CARE LTD.
Adults Wellbeing and Health,Head of Adults,Third Party Payments,472101,Purchase of Care,18-Jul-13,2621363-1343987H,526.78,PREMIER COMMUNITY CARE LTD.
Adults Wellbeing and Health,Head of Adults,Third Party Payments,472101,Purchase of Care,18-Jul-13,2621363-1344000H,632.12,PREMIER COMMUNITY CARE LTD.
Adults Wellbeing and Health,Head of Adults,Third Party Payments,472101,Purchase of Care,18-Jul-13,2621363-1344019H,576.18,PREMIER COMMUNITY CARE LTD.
Adults Wellbeing and Health,Head of Adults,Third Party Payments,472101,Purchase of Care,18-Jul-13,2621363-1344040H,709.76,PREMIER COMMUNITY CARE LTD.
Adults Wellbeing and Health,Head of Adults,Third Party Payments,472101,Purchase of Care,18-Jul-13,2621363-1344083H,"1,513.80",PREMIER COMMUNITY CARE LTD.
Adults Wellbeing and Health,Head of Adults,Third Party Payments,472101,Purchase of Care,18-Jul-13,2621363-1344114H,521.24,PREMIER COMMUNITY CARE LTD.
Adults Wellbeing and Health,Head of Adults,Third Party Payments,472101,Purchase of Care,18-Jul-13,2621363-1344119H,672.8,PREMIER COMMUNITY CARE LTD.
Adults Wellbeing and Health,Head of Adults,Third Party Payments,472101,Purchase of Care,18-Jul-13,2621363-1344154H,776.31,PREMIER COMMUNITY CARE LTD.
Adults Wellbeing and Health,Head of Adults,Third Party Payments,472101,Purchase of Care,18-Jul-13,2621363-1344179H,787.4,PREMIER COMMUNITY CARE LTD.
Adults Wellbeing and Health,Head of Adults,Third Party Payments,472101,Purchase of Care,18-Jul-13,2621363-1344181H,532.32,PREMIER COMMUNITY CARE LTD.
Adults Wellbeing and Health,Head of Adults,Third Party Payments,472101,Purchase of Care,18-Jul-13,2621363-1344404H,554.52,PREMIER COMMUNITY CARE LTD.
Adults Wellbeing and Health,Head of Adults,Third Party Payments,472101,Purchase of Care,18-Jul-13,2621363-1344511H,632.12,PREMIER COMMUNITY CARE LTD.
Adults Wellbeing and Health,Head of Adults,Third Party Payments,472101,Purchase of Care,18-Jul-13,2621363-1344540H,536.02,PREMIER COMMUNITY CARE LTD.
Adults Wellbeing and Health,Head of Adults,Third Party Payments,472101,Purchase of Care,18-Jul-13,2621363-1344719H,554.52,PREMIER COMMUNITY CARE LTD.
Adults Wellbeing and Health,Head of Adults,Third Party Payments,472101,Purchase of Care,18-Jul-13,2621363-1344824H,"1,574.80",PREMIER COMMUNITY CARE LTD.
Adults Wellbeing and Health,Head of Adults,Third Party Payments,472101,Purchase of Care,18-Jul-13,2621363-1344897H,632.12,PREMIER COMMUNITY CARE LTD.
Adults Wellbeing and Health,Head of Adults,Third Party Payments,472101,Purchase of Care,18-Jul-13,2621363-1344964H,521.24,PREMIER COMMUNITY CARE LTD.
Adults Wellbeing and Health,Head of Adults,Third Party Payments,472101,Purchase of Care,18-Jul-13,2621363-1344974H,"1,685.68",PREMIER COMMUNITY CARE LTD.
Adults Wellbeing and Health,Head of Adults,Third Party Payments,472101,Purchase of Care,18-Jul-13,2621363-1344991H,953.74,PREMIER COMMUNITY CARE LTD.
Adults Wellbeing and Health,Head of Adults,Third Party Payments,472101,Purchase of Care,18-Jul-13,2621363-1345090H,658,PREMIER COMMUNITY CARE LTD.
Adults Wellbeing and Health,Head of Adults,Third Party Payments,472101,Purchase of Care,18-Jul-13,2621363-1345167H,742.11,PREMIER COMMUNITY CARE LTD.
Adults Wellbeing and Health,Head of Adults,Third Party Payments,472101,Purchase of Care,18-Jul-13,2621363-1345676H,587.76,PREMIER COMMUNITY CARE LTD.
Adults Wellbeing and Health,Head of Adults,Third Party Payments,472101,Purchase of Care,18-Jul-13,2621363-1345905H,621.04,PREMIER COMMUNITY CARE LTD.
Adults Wellbeing and Health,Head of Adults,Third Party Payments,472101,Purchase of Care,18-Jul-13,2621363-1345927H,604.42,PREMIER COMMUNITY CARE LTD.
Adults Wellbeing and Health,Head of Adults,Third Party Payments,472101,Purchase of Care,18-Jul-13,2621363-1346068H,755.96,PREMIER COMMUNITY CARE LTD.
Adults Wellbeing and Health,Head of Adults,Third Party Payments,472101,Purchase of Care,18-Jul-13,2621363-1346074H,776.32,PREMIER COMMUNITY CARE LTD.
Adults Wellbeing and Health,Head of Adults,Third Party Payments,472101,Purchase of Care,18-Jul-13,2621363-1346138H,524.94,PREMIER COMMUNITY CARE LTD.
Adults Wellbeing and Health,Head of Adults,Third Party Payments,472101,Purchase of Care,18-Jul-13,2621363-1346141H,593.32,PREMIER COMMUNITY CARE LTD.
Adults Wellbeing and Health,Head of Adults,Third Party Payments,472101,Purchase of Care,18-Jul-13,2621363-1346236H,"1,286.44",PREMIER COMMUNITY CARE LTD.
Adults Wellbeing and Health,Head of Adults,Third Party Payments,472101,Purchase of Care,18-Jul-13,2621363-1346390H,"1,630.24",PREMIER COMMUNITY CARE LTD.
Adults Wellbeing and Health,Head of Adults,Third Party Payments,472101,Purchase of Care,18-Jul-13,2621363-1346429H,501.83,PREMIER COMMUNITY CARE LTD.
Adults Wellbeing and Health,Head of Adults,Third Party Payments,472101,Purchase of Care,18-Jul-13,2621363-1346499H,928.79,PREMIER COMMUNITY CARE LTD.
Adults Wellbeing and Health,Head of Adults,Third Party Payments,472101,Purchase of Care,18-Jul-13,2621363-1346507H,704.22,PREMIER COMMUNITY CARE LTD.
Adults Wellbeing and Health,Head of Adults,Third Party Payments,472101,Purchase of Care,18-Jul-13,2621363-1346622H,687.59,PREMIER COMMUNITY CARE LTD.
Adults Wellbeing and Health,Head of Adults,Third Party Payments,472101,Purchase of Care,18-Jul-13,2621363-1346639H,"1,245.78",PREMIER COMMUNITY CARE LTD.
Adults Wellbeing and Health,Head of Adults,Third Party Payments,472101,Purchase of Care,18-Jul-13,2621363-1346677H,802.16,PREMIER COMMUNITY CARE LTD.
Adults Wellbeing and Health,Head of Adults,Third Party Payments,472101,Purchase of Care,18-Jul-13,2621363-1346827H,532.32,PREMIER COMMUNITY CARE LTD.
Adults Wellbeing and Health,Head of Adults,Third Party Payments,472101,Purchase of Care,18-Jul-13,2621363-1346862H,598.86,PREMIER COMMUNITY CARE LTD.
Adults Wellbeing and Health,Head of Adults,Third Party Payments,472101,Purchase of Care,18-Jul-13,2621363-1346885H,502.76,PREMIER COMMUNITY CARE LTD.
Adults Wellbeing and Health,Head of Adults,Third Party Payments,472101,Purchase of Care,18-Jul-13,2621363-1346909H,536,PREMIER COMMUNITY CARE LTD.
Adults Wellbeing and Health,Head of Adults,Third Party Payments,472101,Purchase of Care,18-Jul-13,2621363-1346918H,745.82,PREMIER COMMUNITY CARE LTD.
Adults Wellbeing and Health,Head of Adults,Third Party Payments,472101,Purchase of Care,18-Jul-13,2621363-1347121H,543.41,PREMIER COMMUNITY CARE LTD.
Adults Wellbeing and Health,Head of Adults,Third Party Payments,472101,Purchase of Care,18-Jul-13,2621363-1347197H,621.04,PREMIER COMMUNITY CARE LTD.
Adults Wellbeing and Health,Head of Adults,Third Party Payments,472101,Purchase of Care,18-Jul-13,2621363-1347207H,528.64,PREMIER COMMUNITY CARE LTD.
Adults Wellbeing and Health,Head of Adults,Third Party Payments,472101,Purchase of Care,18-Jul-13,2621363-1347216H,513.84,PREMIER COMMUNITY CARE LTD.
Adults Wellbeing and Health,Head of Adults,Third Party Payments,472101,Purchase of Care,18-Jul-13,2621363-1347292H,650.6,PREMIER COMMUNITY CARE LTD.
Adults Wellbeing and Health,Head of Adults,Third Party Payments,472101,Purchase of Care,18-Jul-13,2621363-1347294H,502.76,PREMIER COMMUNITY CARE LTD.
Adults Wellbeing and Health,Head of Adults,Third Party Payments,472101,Purchase of Care,18-Jul-13,2621363-1347309H,515.7,PREMIER COMMUNITY CARE LTD.
Adults Wellbeing and Health,Head of Adults,Third Party Payments,472101,Purchase of Care,18-Jul-13,2621363-1347401H,"1,619.16",PREMIER COMMUNITY CARE LTD.
Adults Wellbeing and Health,Head of Adults,Third Party Payments,472101,Purchase of Care,18-Jul-13,2621363-1347471H,565.59,PREMIER COMMUNITY CARE LTD.
Adults Wellbeing and Health,Head of Adults,Third Party Payments,472101,Purchase of Care,18-Jul-13,2621363-1347487H,543.4,PREMIER COMMUNITY CARE LTD.
Adults Wellbeing and Health,Head of Adults,Third Party Payments,472101,Purchase of Care,18-Jul-13,2621363-1347493H,843.76,PREMIER COMMUNITY CARE LTD.
Adults Wellbeing and Health,Head of Adults,Third Party Payments,472101,Purchase of Care,18-Jul-13,2621363-1347502H,975.92,PREMIER COMMUNITY CARE LTD.
Adults Wellbeing and Health,Head of Adults,Third Party Payments,472101,Purchase of Care,18-Jul-13,2621363-1347547H,661.71,PREMIER COMMUNITY CARE LTD.
Adults Wellbeing and Health,Head of Adults,Third Party Payments,472101,Purchase of Care,18-Jul-13,2621363-1347712H,"1,253.19",PREMIER COMMUNITY CARE LTD.
Adults Wellbeing and Health,Head of Adults,Third Party Payments,472101,Purchase of Care,18-Jul-13,2621363-1347728H,842.84,PREMIER COMMUNITY CARE LTD.
Adults Wellbeing and Health,Head of Adults,Third Party Payments,472101,Purchase of Care,18-Jul-13,2621363-1347758H,513.84,PREMIER COMMUNITY CARE LTD.
Adults Wellbeing and Health,Head of Adults,Third Party Payments,472101,Purchase of Care,18-Jul-13,2621363-1347779H,"1,386.24",PREMIER COMMUNITY CARE LTD.
Adults Wellbeing and Health,Head of Adults,Third Party Payments,472101,Purchase of Care,18-Jul-13,2621363-1347850H,809.56,PREMIER COMMUNITY CARE LTD.
Adults Wellbeing and Health,Head of Adults,Third Party Payments,472101,Purchase of Care,18-Jul-13,2621363-1347930H,"1,017.52",PREMIER COMMUNITY CARE LTD.
Adults Wellbeing and Health,Head of Adults,Third Party Payments,472101,Purchase of Care,18-Jul-13,2621363-1347966H,521.23,PREMIER COMMUNITY CARE LTD.
Adults Wellbeing and Health,Head of Adults,Third Party Payments,472101,Purchase of Care,18-Jul-13,2621363-1348013H,698.67,PREMIER COMMUNITY CARE LTD.
Adults Wellbeing and Health,Head of Adults,Third Party Payments,472101,Purchase of Care,18-Jul-13,2621363-1348065H,"1,441.72",PREMIER COMMUNITY CARE LTD.
Adults Wellbeing and Health,Head of Adults,Third Party Payments,472101,Purchase of Care,18-Jul-13,2621363-1348072H,621.04,PREMIER COMMUNITY CARE LTD.
Adults Wellbeing and Health,Head of Adults,Third Party Payments,472101,Purchase of Care,18-Jul-13,2621363-1348074H,565.6,PREMIER COMMUNITY CARE LTD.
Adults Wellbeing and Health,Head of Adults,Third Party Payments,472101,Purchase of Care,18-Jul-13,2621363-1348086H,621.04,PREMIER COMMUNITY CARE LTD.
Adults Wellbeing and Health,Head of Adults,Third Party Payments,472101,Purchase of Care,18-Jul-13,2621363-1348180H,"1,552.60",PREMIER COMMUNITY CARE LTD.
Adults Wellbeing and Health,Head of Adults,Third Party Payments,472101,Purchase of Care,18-Jul-13,2621363-1348232H,547.12,PREMIER COMMUNITY CARE LTD.
Adults Wellbeing and Health,Head of Adults,Third Party Payments,472101,Purchase of Care,18-Jul-13,2621363-1348309H,621.04,PREMIER COMMUNITY CARE LTD.
Adults Wellbeing and Health,Head of Adults,Third Party Payments,472101,Purchase of Care,18-Jul-13,2621363-1348348H,"1,009.20",PREMIER COMMUNITY CARE LTD.
Adults Wellbeing and Health,Head of Adults,Third Party Payments,472101,Purchase of Care,18-Jul-13,2621363-1348396H,501.83,PREMIER COMMUNITY CARE LTD.
Adults Wellbeing and Health,Head of Adults,Third Party Payments,472101,Purchase of Care,18-Jul-13,2621363-1348454H,931.56,PREMIER COMMUNITY CARE LTD.
Adults Wellbeing and Health,Head of Adults,Third Party Payments,472101,Purchase of Care,18-Jul-13,2621363-1348565H,530.48,PREMIER COMMUNITY CARE LTD.
Adults Wellbeing and Health,Head of Adults,Third Party Payments,472101,Purchase of Care,18-Jul-13,2621363-1348596H,926.02,PREMIER COMMUNITY CARE LTD.
Adults Wellbeing and Health,Head of Adults,Third Party Payments,472101,Purchase of Care,18-Jul-13,2621363-1348615H,665.4,PREMIER COMMUNITY CARE LTD.
Adults Wellbeing and Health,Head of Adults,Third Party Payments,472101,Purchase of Care,18-Jul-13,2621363-1348712H,659.86,PREMIER COMMUNITY CARE LTD.
Adults Wellbeing and Health,Head of Adults,Third Party Payments,472101,Purchase of Care,18-Jul-13,2621363-1348812H,665.4,PREMIER COMMUNITY CARE LTD.
Adults Wellbeing and Health,Head of Adults,Third Party Payments,472101,Purchase of Care,18-Jul-13,2621363-1348903H,654.33,PREMIER COMMUNITY CARE LTD.
Adults Wellbeing and Health,Head of Adults,Third Party Payments,472101,Purchase of Care,18-Jul-13,2621363-1348938H,"1,131.20",PREMIER COMMUNITY CARE LTD.
Adults Wellbeing and Health,Head of Adults,Third Party Payments,472101,Purchase of Care,18-Jul-13,2621363-1348970H,"1,105.31",PREMIER COMMUNITY CARE LTD.
Adults Wellbeing and Health,Head of Adults,Third Party Payments,472101,Purchase of Care,18-Jul-13,2621363-1349032H,"1,264.28",PREMIER COMMUNITY CARE LTD.
Adults Wellbeing and Health,Head of Adults,Third Party Payments,472101,Purchase of Care,18-Jul-13,2621363-1349043H,500.68,PREMIER COMMUNITY CARE LTD.
Adults Wellbeing and Health,Head of Adults,Third Party Payments,472101,Purchase of Care,18-Jul-13,2621363-1349093H,515.69,PREMIER COMMUNITY CARE LTD.
Adults Wellbeing and Health,Head of Adults,Third Party Payments,472101,Purchase of Care,18-Jul-13,2621363-1349120H,646.92,PREMIER COMMUNITY CARE LTD.
Adults Wellbeing and Health,Head of Adults,Third Party Payments,472101,Purchase of Care,18-Jul-13,2621363-1349130H,621.04,PREMIER COMMUNITY CARE LTD.
Adults Wellbeing and Health,Head of Adults,Third Party Payments,472101,Purchase of Care,18-Jul-13,2621363-1349202H,539.72,PREMIER COMMUNITY CARE LTD.
Adults Wellbeing and Health,Head of Adults,Third Party Payments,472101,Purchase of Care,18-Jul-13,2621363-1349321H,981.48,PREMIER COMMUNITY CARE LTD.
Adults Wellbeing and Health,Head of Adults,Third Party Payments,472101,Purchase of Care,18-Jul-13,2621363-1349459H,632.13,PREMIER COMMUNITY CARE LTD.
Adults Wellbeing and Health,Head of Adults,Third Party Payments,472101,Purchase of Care,18-Jul-13,2621363-1349512H,"1,434.32",PREMIER COMMUNITY CARE LTD.
Adults Wellbeing and Health,Head of Adults,Third Party Payments,472101,Purchase of Care,18-Jul-13,2621363-1349641H,746.72,PREMIER COMMUNITY CARE LTD.
Adults Wellbeing and Health,Head of Adults,Third Party Payments,472101,Purchase of Care,18-Jul-13,2621363-1349653H,597.03,PREMIER COMMUNITY CARE LTD.
Adults Wellbeing and Health,Head of Adults,Third Party Payments,472101,Purchase of Care,18-Jul-13,2621363-1349654H,646.01,PREMIER COMMUNITY CARE LTD.
Adults Wellbeing and Health,Head of Adults,Third Party Payments,472101,Purchase of Care,18-Jul-13,2621363-1349658H,513.84,PREMIER COMMUNITY CARE LTD.
Adults Wellbeing and Health,Head of Adults,Third Party Payments,472101,Purchase of Care,18-Jul-13,2621363-1349773H,621.04,PREMIER COMMUNITY CARE LTD.
Adults Wellbeing and Health,Head of Adults,Third Party Payments,472101,Purchase of Care,18-Jul-13,2621363-1349825H,709.76,PREMIER COMMUNITY CARE LTD.
Adults Wellbeing and Health,Head of Adults,Third Party Payments,472101,Purchase of Care,18-Jul-13,2621363-1349879H,"1,494.39",PREMIER COMMUNITY CARE LTD.
Adults Wellbeing and Health,Head of Adults,Third Party Payments,472101,Purchase of Care,18-Jul-13,2621363-1349947H,543.4,PREMIER COMMUNITY CARE LTD.
Adults Wellbeing and Health,Head of Adults,Third Party Payments,472101,Purchase of Care,18-Jul-13,2621363-1350031H,560.04,PREMIER COMMUNITY CARE LTD.
Adults Wellbeing and Health,Head of Adults,Third Party Payments,472101,Purchase of Care,18-Jul-13,2621365-1343662H,"1,391.52",PRESTIGE CARE TEAM.
Adults Wellbeing and Health,Head of Adults,Third Party Payments,472101,Purchase of Care,18-Jul-13,2621365-1343700H,"1,004.84",PRESTIGE CARE TEAM.
Adults Wellbeing and Health,Head of Adults,Third Party Payments,472101,Purchase of Care,18-Jul-13,2621423-2112530,"1,954.08",RICHMOND COURT.
Adults Wellbeing and Health,Head of Adults,Third Party Payments,472101,Purchase of Care,18-Jul-13,2621423-2112531,"1,954.08",RICHMOND COURT.
Adults Wellbeing and Health,Head of Adults,Third Party Payments,472101,Purchase of Care,18-Jul-13,2621550-1343623H,"1,278.13",SOCIAL RESOURCE CENTRE LTD.
Adults Wellbeing and Health,Head of Adults,Third Party Payments,472101,Purchase of Care,18-Jul-13,2621550-1343655H,608.72,SOCIAL RESOURCE CENTRE LTD.
Adults Wellbeing and Health,Head of Adults,Third Party Payments,472101,Purchase of Care,18-Jul-13,2621550-1343670H,632.13,SOCIAL RESOURCE CENTRE LTD.
Adults Wellbeing and Health,Head of Adults,Third Party Payments,472101,Purchase of Care,18-Jul-13,2621550-1343675H,649.48,SOCIAL RESOURCE CENTRE LTD.
Adults Wellbeing and Health,Head of Adults,Third Party Payments,472101,Purchase of Care,18-Jul-13,2621550-1343705H,634.08,SOCIAL RESOURCE CENTRE LTD.
Adults Wellbeing and Health,Head of Adults,Third Party Payments,472101,Purchase of Care,18-Jul-13,2621550-1343723H,"1,330.80",SOCIAL RESOURCE CENTRE LTD.
Adults Wellbeing and Health,Head of Adults,Third Party Payments,472101,Purchase of Care,18-Jul-13,2621550-1343731H,634.08,SOCIAL RESOURCE CENTRE LTD.
Adults Wellbeing and Health,Head of Adults,Third Party Payments,472101,Purchase of Care,18-Jul-13,2621550-1343834H,652.2,SOCIAL RESOURCE CENTRE LTD.
Adults Wellbeing and Health,Head of Adults,Third Party Payments,472101,Purchase of Care,18-Jul-13,2621550-1343840H,783.68,SOCIAL RESOURCE CENTRE LTD.
Adults Wellbeing and Health,Head of Adults,Third Party Payments,472101,Purchase of Care,18-Jul-13,2621550-1343848H,887.2,SOCIAL RESOURCE CENTRE LTD.
Adults Wellbeing and Health,Head of Adults,Third Party Payments,472101,Purchase of Care,18-Jul-13,2621550-1343888H,"1,527.25",SOCIAL RESOURCE CENTRE LTD.
Adults Wellbeing and Health,Head of Adults,Third Party Payments,472101,Purchase of Care,18-Jul-13,2621550-1343897H,"1,521.80",SOCIAL RESOURCE CENTRE LTD.
Adults Wellbeing and Health,Head of Adults,Third Party Payments,472101,Purchase of Care,18-Jul-13,2621550-1344303H,621.04,SOCIAL RESOURCE CENTRE LTD.
Adults Wellbeing and Health,Head of Adults,Third Party Payments,472101,Purchase of Care,18-Jul-13,2621550-1344650H,691.28,SOCIAL RESOURCE CENTRE LTD.
Adults Wellbeing and Health,Head of Adults,Third Party Payments,472101,Purchase of Care,18-Jul-13,2621550-1344672H,887.2,SOCIAL RESOURCE CENTRE LTD.
Adults Wellbeing and Health,Head of Adults,Third Party Payments,472101,Purchase of Care,18-Jul-13,2621550-1345195H,561.88,SOCIAL RESOURCE CENTRE LTD.
Adults Wellbeing and Health,Head of Adults,Third Party Payments,472101,Purchase of Care,18-Jul-13,2621550-1345715H,842.84,SOCIAL RESOURCE CENTRE LTD.
Adults Wellbeing and Health,Head of Adults,Third Party Payments,472101,Purchase of Care,18-Jul-13,2621550-1345764H,837,SOCIAL RESOURCE CENTRE LTD.
Adults Wellbeing and Health,Head of Adults,Third Party Payments,472101,Purchase of Care,18-Jul-13,2621550-1345785H,"1,217.13",SOCIAL RESOURCE CENTRE LTD.
Adults Wellbeing and Health,Head of Adults,Third Party Payments,472101,Purchase of Care,18-Jul-13,2621550-1345799H,621.04,SOCIAL RESOURCE CENTRE LTD.
Adults Wellbeing and Health,Head of Adults,Third Party Payments,472101,Purchase of Care,18-Jul-13,2621550-1345811H,648.78,SOCIAL RESOURCE CENTRE LTD.
Adults Wellbeing and Health,Head of Adults,Third Party Payments,472101,Purchase of Care,18-Jul-13,2621550-1345843H,502.76,SOCIAL RESOURCE CENTRE LTD.
Adults Wellbeing and Health,Head of Adults,Third Party Payments,472101,Purchase of Care,18-Jul-13,2621550-1345846H,569.28,SOCIAL RESOURCE CENTRE LTD.
Adults Wellbeing and Health,Head of Adults,Third Party Payments,472101,Purchase of Care,18-Jul-13,2621550-1345878H,865.04,SOCIAL RESOURCE CENTRE LTD.
Adults Wellbeing and Health,Head of Adults,Third Party Payments,472101,Purchase of Care,18-Jul-13,2621550-1345903H,608.74,SOCIAL RESOURCE CENTRE LTD.
Adults Wellbeing and Health,Head of Adults,Third Party Payments,472101,Purchase of Care,18-Jul-13,2621550-1345930H,"1,134.88",SOCIAL RESOURCE CENTRE LTD.
Adults Wellbeing and Health,Head of Adults,Third Party Payments,472101,Purchase of Care,18-Jul-13,2621550-1345970H,615.5,SOCIAL RESOURCE CENTRE LTD.
Adults Wellbeing and Health,Head of Adults,Third Party Payments,472101,Purchase of Care,18-Jul-13,2621550-1346097H,584.08,SOCIAL RESOURCE CENTRE LTD.
Adults Wellbeing and Health,Head of Adults,Third Party Payments,472101,Purchase of Care,18-Jul-13,2621550-1346115H,848.38,SOCIAL RESOURCE CENTRE LTD.
Adults Wellbeing and Health,Head of Adults,Third Party Payments,472101,Purchase of Care,18-Jul-13,2621550-1346159H,521.24,SOCIAL RESOURCE CENTRE LTD.
Adults Wellbeing and Health,Head of Adults,Third Party Payments,472101,Purchase of Care,18-Jul-13,2621550-1346201H,561.88,SOCIAL RESOURCE CENTRE LTD.
Adults Wellbeing and Health,Head of Adults,Third Party Payments,472101,Purchase of Care,18-Jul-13,2621550-1346238H,898.28,SOCIAL RESOURCE CENTRE LTD.
Adults Wellbeing and Health,Head of Adults,Third Party Payments,472101,Purchase of Care,18-Jul-13,2621550-1346376H,565.59,SOCIAL RESOURCE CENTRE LTD.
Adults Wellbeing and Health,Head of Adults,Third Party Payments,472101,Purchase of Care,18-Jul-13,2621550-1346402H,687.6,SOCIAL RESOURCE CENTRE LTD.
Adults Wellbeing and Health,Head of Adults,Third Party Payments,472101,Purchase of Care,18-Jul-13,2621550-1346570H,521.24,SOCIAL RESOURCE CENTRE LTD.
Adults Wellbeing and Health,Head of Adults,Third Party Payments,472101,Purchase of Care,18-Jul-13,2621550-1346599H,568.88,SOCIAL RESOURCE CENTRE LTD.
Adults Wellbeing and Health,Head of Adults,Third Party Payments,472101,Purchase of Care,18-Jul-13,2621550-1346629H,815.24,SOCIAL RESOURCE CENTRE LTD.
Adults Wellbeing and Health,Head of Adults,Third Party Payments,472101,Purchase of Care,18-Jul-13,2621550-1346643H,587,SOCIAL RESOURCE CENTRE LTD.
Adults Wellbeing and Health,Head of Adults,Third Party Payments,472101,Purchase of Care,18-Jul-13,2621550-1346880H,513.84,SOCIAL RESOURCE CENTRE LTD.
Adults Wellbeing and Health,Head of Adults,Third Party Payments,472101,Purchase of Care,18-Jul-13,2621550-1346888H,621.04,SOCIAL RESOURCE CENTRE LTD.
Adults Wellbeing and Health,Head of Adults,Third Party Payments,472101,Purchase of Care,18-Jul-13,2621550-1346994H,"1,996.20",SOCIAL RESOURCE CENTRE LTD.
Adults Wellbeing and Health,Head of Adults,Third Party Payments,472101,Purchase of Care,18-Jul-13,2621550-1347082H,742.78,SOCIAL RESOURCE CENTRE LTD.
Adults Wellbeing and Health,Head of Adults,Third Party Payments,472101,Purchase of Care,18-Jul-13,2621550-1347289H,"2,018.38",SOCIAL RESOURCE CENTRE LTD.
Adults Wellbeing and Health,Head of Adults,Third Party Payments,472101,Purchase of Care,18-Jul-13,2621550-1347347H,698.68,SOCIAL RESOURCE CENTRE LTD.
Adults Wellbeing and Health,Head of Adults,Third Party Payments,472101,Purchase of Care,18-Jul-13,2621550-1347348H,565.6,SOCIAL RESOURCE CENTRE LTD.
Adults Wellbeing and Health,Head of Adults,Third Party Payments,472101,Purchase of Care,18-Jul-13,2621550-1347538H,831.56,SOCIAL RESOURCE CENTRE LTD.
Adults Wellbeing and Health,Head of Adults,Third Party Payments,472101,Purchase of Care,18-Jul-13,2621550-1347545H,521.76,SOCIAL RESOURCE CENTRE LTD.
Adults Wellbeing and Health,Head of Adults,Third Party Payments,472101,Purchase of Care,18-Jul-13,2621550-1347601H,698.68,SOCIAL RESOURCE CENTRE LTD.
Adults Wellbeing and Health,Head of Adults,Third Party Payments,472101,Purchase of Care,18-Jul-13,2621550-1347617H,610.52,SOCIAL RESOURCE CENTRE LTD.
Adults Wellbeing and Health,Head of Adults,Third Party Payments,472101,Purchase of Care,18-Jul-13,2621550-1347671H,909.4,SOCIAL RESOURCE CENTRE LTD.
Adults Wellbeing and Health,Head of Adults,Third Party Payments,472101,Purchase of Care,18-Jul-13,2621550-1347737H,608.72,SOCIAL RESOURCE CENTRE LTD.
Adults Wellbeing and Health,Head of Adults,Third Party Payments,472101,Purchase of Care,18-Jul-13,2621550-1347747H,621.04,SOCIAL RESOURCE CENTRE LTD.
Adults Wellbeing and Health,Head of Adults,Third Party Payments,472101,Purchase of Care,18-Jul-13,2621550-1347823H,933.41,SOCIAL RESOURCE CENTRE LTD.
Adults Wellbeing and Health,Head of Adults,Third Party Payments,472101,Purchase of Care,18-Jul-13,2621550-1347890H,576.13,SOCIAL RESOURCE CENTRE LTD.
Adults Wellbeing and Health,Head of Adults,Third Party Payments,472101,Purchase of Care,18-Jul-13,2621550-1348034H,515.69,SOCIAL RESOURCE CENTRE LTD.
Adults Wellbeing and Health,Head of Adults,Third Party Payments,472101,Purchase of Care,18-Jul-13,2621550-1348087H,510.9,SOCIAL RESOURCE CENTRE LTD.
Adults Wellbeing and Health,Head of Adults,Third Party Payments,472101,Purchase of Care,18-Jul-13,2621550-1348155H,731.96,SOCIAL RESOURCE CENTRE LTD.
Adults Wellbeing and Health,Head of Adults,Third Party Payments,472101,Purchase of Care,18-Jul-13,2621550-1348158H,"2,070.13",SOCIAL RESOURCE CENTRE LTD.
Adults Wellbeing and Health,Head of Adults,Third Party Payments,472101,Purchase of Care,18-Jul-13,2621550-1348185H,562.82,SOCIAL RESOURCE CENTRE LTD.
Adults Wellbeing and Health,Head of Adults,Third Party Payments,472101,Purchase of Care,18-Jul-13,2621550-1348316H,632.12,SOCIAL RESOURCE CENTRE LTD.
Adults Wellbeing and Health,Head of Adults,Third Party Payments,472101,Purchase of Care,18-Jul-13,2621550-1348378H,684.8,SOCIAL RESOURCE CENTRE LTD.
Adults Wellbeing and Health,Head of Adults,Third Party Payments,472101,Purchase of Care,18-Jul-13,2621550-1348560H,661.72,SOCIAL RESOURCE CENTRE LTD.
Adults Wellbeing and Health,Head of Adults,Third Party Payments,472101,Purchase of Care,18-Jul-13,2621550-1348661H,521.24,SOCIAL RESOURCE CENTRE LTD.
Adults Wellbeing and Health,Head of Adults,Third Party Payments,472101,Purchase of Care,18-Jul-13,2621550-1348678H,602.56,SOCIAL RESOURCE CENTRE LTD.
Adults Wellbeing and Health,Head of Adults,Third Party Payments,472101,Purchase of Care,18-Jul-13,2621550-1348709H,"1,696.79",SOCIAL RESOURCE CENTRE LTD.
Adults Wellbeing and Health,Head of Adults,Third Party Payments,472101,Purchase of Care,18-Jul-13,2621550-1348761H,521.24,SOCIAL RESOURCE CENTRE LTD.
Adults Wellbeing and Health,Head of Adults,Third Party Payments,472101,Purchase of Care,18-Jul-13,2621550-1348780H,568.36,SOCIAL RESOURCE CENTRE LTD.
Adults Wellbeing and Health,Head of Adults,Third Party Payments,472101,Purchase of Care,18-Jul-13,2621550-1348798H,541.57,SOCIAL RESOURCE CENTRE LTD.
Adults Wellbeing and Health,Head of Adults,Third Party Payments,472101,Purchase of Care,18-Jul-13,2621550-1348824H,534.17,SOCIAL RESOURCE CENTRE LTD.
Adults Wellbeing and Health,Head of Adults,Third Party Payments,472101,Purchase of Care,18-Jul-13,2621550-1348837H,576.67,SOCIAL RESOURCE CENTRE LTD.
Adults Wellbeing and Health,Head of Adults,Third Party Payments,472101,Purchase of Care,18-Jul-13,2621550-1348855H,579.72,SOCIAL RESOURCE CENTRE LTD.
Adults Wellbeing and Health,Head of Adults,Third Party Payments,472101,Purchase of Care,18-Jul-13,2621550-1348864H,"1,333.40",SOCIAL RESOURCE CENTRE LTD.
Adults Wellbeing and Health,Head of Adults,Third Party Payments,472101,Purchase of Care,18-Jul-13,2621550-1348868H,876.12,SOCIAL RESOURCE CENTRE LTD.
Adults Wellbeing and Health,Head of Adults,Third Party Payments,472101,Purchase of Care,18-Jul-13,2621550-1348958H,507.28,SOCIAL RESOURCE CENTRE LTD.
Adults Wellbeing and Health,Head of Adults,Third Party Payments,472101,Purchase of Care,18-Jul-13,2621550-1349020H,837,SOCIAL RESOURCE CENTRE LTD.
Adults Wellbeing and Health,Head of Adults,Third Party Payments,472101,Purchase of Care,18-Jul-13,2621550-1349027H,687.57,SOCIAL RESOURCE CENTRE LTD.
Adults Wellbeing and Health,Head of Adults,Third Party Payments,472101,Purchase of Care,18-Jul-13,2621550-1349072H,700.51,SOCIAL RESOURCE CENTRE LTD.
